Workbook

Sheet Start

Sheet Final Output
N3: Year 1 | O3: Year 2 | P3: Year 3 | Q3: Year 4 | R3: Year 5
M4: Gain/Loss during Previous Winter [acre-feet]
O5: ='Calculation Sheet'!J16 -> -200 | P5: ='Calculation Sheet'!R16 -> -165.6 | Q5: ='Calculation Sheet'!Z16 -> 0 | R5: ='Calculation Sheet'!AH16 -> 0
M6: Initial Values (April 1)
M7: Volume [acre-feet] | N7: ='Calculation Sheet'!C3 -> 5506.34 | O7: ='Calculation Sheet'!K3 -> 230.59 | P7: ='Calculation Sheet'!S3 -> 1 | Q7: ='Calculation Sheet'!AA3 -> 1 | R7: ='Calculation Sheet'!AI3 -> 1
M8: Surface Area [acres] | N8: ='Calculation Sheet'!C4 -> 4610 | O8: ='Calculation Sheet'!K4 -> 267 | P8: ='Calculation Sheet'!S4 -> 0 | Q8: ='Calculation Sheet'!AA4 -> 0 | R8: ='Calculation Sheet'!AI4 -> 0
M9: Percent Full | N9: =N7/16685.87 -> 0.3300001738 | O9: =O7/16685.87 -> 0.0138194772 | P9: =P7/16685.87 -> 5.993094756e-05 | Q9: =Q7/16685.87 -> 5.993094756e-05 | R9: =R7/16685.87 -> 5.993094756e-05
M10: Inflows [acre-feet]
M11: Runoff | N11: ='Calculation Sheet'!J7 -> 157 | O11: ='Calculation Sheet'!R7 -> 353 | P11: ='Calculation Sheet'!Z7 -> 0 | Q11: ='Calculation Sheet'!AH7 -> 0 | R11: ='Calculation Sheet'!AP7 -> 0
M12: Pumped | N12: ='Calculation Sheet'!J10 -> 0 | O12: ='Calculation Sheet'!R10 -> 0 | P12: ='Calculation Sheet'!Z10 -> 0 | Q12: ='Calculation Sheet'!AH10 -> 0 | R12: ='Calculation Sheet'!AP10 -> 0
M13: Precipitation | N13: ='Calculation Sheet'!J6 -> 2028 | O13: ='Calculation Sheet'!R6 -> 231 | P13: ='Calculation Sheet'!Z6 -> 0 | Q13: ='Calculation Sheet'!AH6 -> 0 | R13: ='Calculation Sheet'!AP6 -> 0
M14: Total | N14: =SUM(N11:N13) -> 2185 | O14: =SUM(O11:O13) -> 584 | P14: =SUM(P11:P13) -> 0 | Q14: =SUM(Q11:Q13) -> 0 | R14: =SUM(R11:R13) -> 0
M15: Outflow [acre-feet]
M16: Evaporation | N16: ='Calculation Sheet'!J14 -> -7260 | O16: ='Calculation Sheet'!R14 -> -648 | P16: ='Calculation Sheet'!Z14 -> 0 | Q16: ='Calculation Sheet'!AH14 -> 0 | R16: ='Calculation Sheet'!AP14 -> 0
M17: Ending Values (October 31)
M18: Volume [acre-feet] | N18: ='Calculation Sheet'!I15 -> 431 | O18: ='Calculation Sheet'!Q15 -> 167 | P18: ='Calculation Sheet'!Y15 -> 1 | Q18: ='Calculation Sheet'!AG15 -> 1 | R18: ='Calculation Sheet'!AO15 -> 1
M19: Surface Area [acres] | N19: ='Calculation Sheet'!I16 -> 376 | O19: ='Calculation Sheet'!Q16 -> 168 | P19: ='Calculation Sheet'!Y16 -> 0 | Q19: ='Calculation Sheet'!AG16 -> 0 | R19: ='Calculation Sheet'!AO16 -> 0
M20: Percent Full | N20: =N18/16685.87 -> 0.0258302384 | O20: =O18/16685.87 -> 0.01000846824 | P20: =P18/16685.87 -> 5.993094756e-05 | Q20: =Q18/16685.87 -> 5.993094756e-05 | R20: =R18/16685.87 -> 5.993094756e-05

Sheet Calculation Sheet
A1: 6 | C1: Year 1 | K1: Year 2 | S1: Year 3 | AA1: Year 4 | AI1: Year 5
C2: Apr. | D2: May | E2: June | F2: July | G2: Aug. | H2: Sept. | I2: Oct. | J2: Carry-over and Totals | K2: Apr. | L2: May | M2: June | N2: July | O2: Aug. | P2: Sept. | Q2: Oct. | R2: Carry-over and Totals | S2: Apr. | T2: May | U2: June | V2: July | W2: Aug. | X2: Sept. | Y2: Oct. | Z2: Carry-over and Totals | AA2: Apr. | AB2: May | AC2: June | AD2: July | AE2: Aug. | AF2: Sept. | AG2: Oct. | AH2: Carry-over and Totals | AI2: Apr. | AJ2: May | AK2: June | AL2: July | AM2: Aug. | AN2: Sept. | AO2: Oct. | AP2: Totals
A3: All Units | B3: Start Volume [acre-ft] | C3: =C18+C27+C36+C45+C54+C63+C72+C81 -> 5506.34 | D3: 4543.85 | E3: 3625.76 | F3: 2722.07 | G3: 1359.82 | H3: 651.32 | I3: 503.75 | J3: -200 | K3: =K18+K27+K36+K45+K54+K63+K72+K81 -> 230.59 | L3: 200.18 | M3: 244.13 | N3: 310.96 | O3: 234.21 | P3: 203.55 | Q3: 194.81 | R3: -200 | S3: =S18+S27+S36+S45+S54+S63+S72+S81 -> 1 | T3: 1 | U3: 1 | V3: 1 | W3: 1 | X3: 1 | Y3: 1 | Z3: -200 | AA3: =AA18+AA27+AA36+AA45+AA54+AA63+AA72+AA81 -> 1 | AB3: 1 | AC3: 1 | AD3: 1 | AE3: 1 | AF3: 1 | AG3: 1 | AH3: -200 | AI3: =AI18+AI27+AI36+AI45+AI54+AI63+AI72+AI81 -> 1 | AJ3: 1 | AK3: 1 | AL3: 1 | AM3: 1 | AN3: 1 | AO3: 1
B4: Start Area [acres] | C4: =ROUND(C19+C28+C37+C46+C55+C64+C73+C82,0) -> 4610 | D4: =ROUND(D19+D28+D37+D46+D55+D64+D73+D82,0) -> 4177 | E4: 3625 | F4: 3171 | G4: 2049 | H4: 795 | I4: 439 | K4: =ROUND(K19+K28+K37+K46+K55+K64+K73+K82,0) -> 267 | L4: =ROUND(L19+L28+L37+L46+L55+L64+L73+L82,0) -> 239 | M4: 248 | N4: 249 | O4: 206 | P4: 191 | Q4: 186 | S4: =ROUND(S19+S28+S37+S46+S55+S64+S73+S82,0) -> 0 | T4: =ROUND(T19+T28+T37+T46+T55+T64+T73+T82,0) -> 0 | U4: 0 | V4: 0 | W4: 0 | X4: 0 | Y4: 0 | AA4: =ROUND(AA19+AA28+AA37+AA46+AA55+AA64+AA73+AA82,0) -> 0 | AB4: =ROUND(AB19+AB28+AB37+AB46+AB55+AB64+AB73+AB82,0) -> 0 | AC4: 0 | AD4: 0 | AE4: 0 | AF4: 0 | AG4: 0 | AI4: =ROUND(AI19+AI28+AI37+AI46+AI55+AI64+AI73+AI82,0) -> 0 | AJ4: =ROUND(AJ19+AJ28+AJ37+AJ46+AJ55+AJ64+AJ73+AJ82,0) -> 0 | AK4: 0 | AL4: 0 | AM4: 0 | AN4: 0 | AO4: 0
B5: Precipitation [in] | C5: 0.95 | D5: 1.59 | E5: 1.8 | F5: 1.02 | G5: 1.18 | H5: 1.02 | I5: 0.59 | K5: 1.24 | L5: 2.09 | M5: 2.35 | N5: 1.34 | O5: 1.54 | P5: 1.33 | Q5: 0.77
B6: Precipitation [acre-ft] | C6: =ROUND(C20+C29+C38+C47+C56+C65+C74+C83,0) -> 365 | D6: =ROUND(D20+D29+D38+D47+D56+D65+D74+D83,0) -> 555 | E6: 546 | F6: 270 | G6: 202 | H6: 68 | I6: 22 | J6: =SUM(C6:I6) -> 2028 | K6: =ROUND(K20+K29+K38+K47+K56+K65+K74+K83,0) -> 29 | L6: =ROUND(L20+L29+L38+L47+L56+L65+L74+L83,0) -> 51 | M6: 58 | N6: 29 | O6: 29 | P6: 23 | Q6: 12 | R6: =SUM(K6:Q6) -> 231 | S6: =ROUND(S20+S29+S38+S47+S56+S65+S74+S83,0) -> 0 | T6: =ROUND(T20+T29+T38+T47+T56+T65+T74+T83,0) -> 0 | U6: 0 | V6: 0 | W6: 0 | X6: 0 | Y6: 0 | Z6: =SUM(S6:Y6) -> 0 | AA6: =ROUND(AA20+AA29+AA38+AA47+AA56+AA65+AA74+AA83,0) -> 0 | AB6: =ROUND(AB20+AB29+AB38+AB47+AB56+AB65+AB74+AB83,0) -> 0 | AC6: 0 | AD6: 0 | AE6: 0 | AF6: 0 | AG6: 0 | AH6: =SUM(AA6:AG6) -> 0 | AI6: =ROUND(AI20+AI29+AI38+AI47+AI56+AI65+AI74+AI83,0) -> 0 | AJ6: =ROUND(AJ20+AJ29+AJ38+AJ47+AJ56+AJ65+AJ74+AJ83,0) -> 0 | AK6: 0 | AL6: 0 | AM6: 0 | AN6: 0 | AO6: 0 | AP6: =SUM(AI6:AO6) -> 0
B7: Runoff [acre-ft] | C7: 6 | D7: 48 | E7: 67 | F7: 9 | G7: 18 | H7: 9 | I7: 0 | J7: =SUM(C7:I7) -> 157 | K7: 22 | L7: 99 | M7: 132 | N7: 28 | O7: 44 | P7: 28 | Q7: 0 | R7: =SUM(K7:Q7) -> 353 | S7: 0 | T7: 0 | U7: 0 | V7: 0 | W7: 0 | X7: 0 | Y7: 0 | Z7: =SUM(S7:Y7) -> 0 | AA7: 0 | AB7: 0 | AC7: 0 | AD7: 0 | AE7: 0 | AF7: 0 | AG7: 0 | AH7: =SUM(AA7:AG7) -> 0 | AI7: 0 | AJ7: 0 | AK7: 0 | AL7: 0 | AM7: 0 | AN7: 0 | AO7: 0 | AP7: =SUM(AI7:AO7) -> 0
B8: Allocated Runoff [acre-ft] | C8: =ROUND(C21+C30+C39+C48+C57+C66+C75+C84,2) -> 6 | D8: 48 | E8: 67 | F8: 9 | G8: 18 | H8: 9 | I8: 0 | K8: =ROUND(K21+K30+K39+K48+K57+K66+K75+K84,2) -> 22 | L8: 99 | M8: 132 | N8: 28 | O8: =ROUND(O21+O30+O39+O48+O57+O66+O75+O84,2) -> 44 | P8: 28 | Q8: 0 | S8: =ROUND(S21+S30+S39+S48+S57+S66+S75+S84,2) -> 0 | T8: 0 | U8: 0 | V8: 0 | W8: 0 | X8: 0 | Y8: 0 | AA8: =ROUND(AA21+AA30+AA39+AA48+AA57+AA66+AA75+AA84,2) -> 0 | AB8: 0 | AC8: 0 | AD8: 0 | AE8: 0 | AF8: 0 | AG8: 0 | AI8: =ROUND(AI21+AI30+AI39+AI48+AI57+AI66+AI75+AI84,2) -> 0 | AJ8: 0 | AK8: 0 | AL8: 0 | AM8: 0 | AN8: 0 | AO8: 0
B9: Unallocated Runoff [acre-ft] | C9: =ROUND(C7-C8,2) -> 0 | D9: 0 | E9: 0 | F9: 0 | G9: 0 | H9: 0 | I9: 0 | J9: =SUM(C9:I9) -> 0 | K9: =ROUND(K7-K8,2) -> 0 | L9: 0 | M9: 0 | N9: 0 | O9: 0 | P9: 0 | Q9: 0 | R9: =SUM(K9:Q9) -> 0 | S9: =ROUND(S7-S8,2) -> 0 | T9: 0 | U9: 0 | V9: 0 | W9: 0 | X9: 0 | Y9: 0 | Z9: =SUM(S9:Y9) -> 0 | AA9: =ROUND(AA7-AA8,2) -> 0 | AB9: 0 | AC9: 0 | AD9: 0 | AE9: 0 | AF9: 0 | AG9: 0 | AH9: =SUM(AA9:AG9) -> 0 | AI9: =ROUND(AI7-AI8,2) -> 0 | AJ9: 0 | AK9: 0 | AL9: 0 | AM9: 0 | AN9: 0 | AO9: 0 | AP9: =SUM(AI9:AO9) -> 0
B10: Pumped [acre-ft] | C10: =ROUND(C22+C31+C40+C49+C58+C67+C76+C85,2) -> 0 | D10: 0 | E10: 0 | F10: 0 | G10: 0 | H10: 0 | I10: 0 | J10: =SUM(C10:I10) -> 0 | K10: =ROUND(K22+K31+K40+K49+K58+K67+K76+K85,2) -> 0 | L10: 0 | M10: 0 | N10: 0 | O10: 0 | P10: 0 | Q10: 0 | R10: =SUM(K10:Q10) -> 0 | S10: =ROUND(S22+S31+S40+S49+S58+S67+S76+S85,2) -> 0 | T10: 0 | U10: 0 | V10: 0 | W10: 0 | X10: 0 | Y10: 0 | Z10: =SUM(S10:Y10) -> 0 | AA10: =ROUND(AA22+AA31+AA40+AA49+AA58+AA67+AA76+AA85,2) -> 0 | AB10: 0 | AC10: 0 | AD10: 0 | AE10: 0 | AF10: 0 | AG10: 0 | AH10: =SUM(AA10:AG10) -> 0 | AI10: =ROUND(AI22+AI31+AI40+AI49+AI58+AI67+AI76+AI85,2) -> 0 | AJ10: 0 | AK10: 0 | AL10: 0 | AM10: 0 | AN10: 0 | AO10: 0 | AP10: =SUM(AI10:AO10) -> 0
B11: Total Inflow [acre-ft] | C11: =ROUND(C7+C10,2) -> 6 | D11: 48 | E11: 67 | F11: 9 | G11: 18 | H11: 9 | I11: 0 | K11: =ROUND(K7+K10,2) -> 22 | L11: 99 | M11: 132 | N11: 28 | O11: 44 | P11: 28 | Q11: 0 | S11: =ROUND(S7+S10,2) -> 0 | T11: 0 | U11: 0 | V11: 0 | W11: 0 | X11: 0 | Y11: 0 | AA11: =ROUND(AA7+AA10,2) -> 0 | AB11: 0 | AC11: 0 | AD11: 0 | AE11: 0 | AF11: 0 | AG11: 0 | AI11: =ROUND(AI7+AI10,2) -> 0 | AJ11: 0 | AK11: 0 | AL11: 0 | AM11: 0 | AN11: 0 | AO11: 0
B12: Pan Evaporation [in] | C12: 4.5 | D12: 5.66 | E12: 6.51 | F12: 8.16 | G12: 7.19 | H12: 4.5 | I12: 3.37 | K12: 4.5 | L12: 5.66 | M12: 6.51 | N12: 8.16 | O12: 7.19 | P12: 4.5 | Q12: 3.37 | S12: 4.5 | T12: 5.66 | U12: 6.51 | V12: 8.16 | W12: 7.19 | X12: 4.5 | Y12: 3.37 | AA12: 4.5 | AB12: 5.66 | AC12: 6.51 | AD12: 8.16 | AE12: 7.19 | AF12: 4.5 | AG12: 3.37 | AI12: 4.5 | AJ12: 5.66 | AK12: 6.51 | AL12: 8.16 | AM12: 7.19 | AN12: 4.5 | AO12: 3.37
B13: Adjusted Evaporation [in] | C13: =ROUND(C12*$C$90,2) -> 3.47 | D13: =ROUND(D12*$C$90,2) -> 4.36 | E13: 5.01 | F13: 6.28 | G13: 5.54 | H13: 3.47 | I13: 2.59 | K13: =ROUND(K12*$C$90,2) -> 3.47 | L13: 4.36 | M13: 5.01 | N13: 6.28 | O13: 5.54 | P13: 3.47 | Q13: 2.59 | S13: =ROUND(S12*$C$90,2) -> 3.47 | T13: 4.36 | U13: 5.01 | V13: 6.28 | W13: 5.54 | X13: 3.47 | Y13: 2.59 | AA13: =ROUND(AA12*$C$90,2) -> 3.47 | AB13: 4.36 | AC13: 5.01 | AD13: 6.28 | AE13: 5.54 | AF13: 3.47 | AG13: 2.59 | AI13: =ROUND(AI12*$C$90,2) -> 3.47 | AJ13: 4.36 | AK13: 5.01 | AL13: 6.28 | AM13: 5.54 | AN13: 3.47 | AO13: 2.59
B14: Evaporation [acre-ft] | C14: =ROUND(C23+C32+C41+C50+C59+C68+C77+C86,0) -> -1334 | D14: =ROUND(D23+D32+D41+D50+D59+D68+D77+D86,0) -> -1521 | E14: -1517 | F14: -1641 | G14: -928 | H14: -224 | I14: -95 | J14: =SUM(C14:I14) -> -7260 | K14: =ROUND(K23+K32+K41+K50+K59+K68+K77+K86,0) -> -82 | L14: =ROUND(L23+L32+L41+L50+L59+L68+L77+L86,0) -> -106 | M14: -123 | N14: -134 | O14: -103 | P14: -60 | Q14: -40 | R14: =SUM(K14:Q14) -> -648 | S14: =ROUND(S23+S32+S41+S50+S59+S68+S77+S86,0) -> 0 | T14: =ROUND(T23+T32+T41+T50+T59+T68+T77+T86,0) -> 0 | U14: 0 | V14: 0 | W14: 0 | X14: 0 | Y14: 0 | Z14: =SUM(S14:Y14) -> 0 | AA14: =ROUND(AA23+AA32+AA41+AA50+AA59+AA68+AA77+AA86,0) -> 0 | AB14: =ROUND(AB23+AB32+AB41+AB50+AB59+AB68+AB77+AB86,0) -> 0 | AC14: 0 | AD14: 0 | AE14: 0 | AF14: 0 | AG14: 0 | AH14: =SUM(AA14:AG14) -> 0 | AI14: =ROUND(AI23+AI32+AI41+AI50+AI59+AI68+AI77+AI86,0) -> 0 | AJ14: =ROUND(AJ23+AJ32+AJ41+AJ50+AJ59+AJ68+AJ77+AJ86,0) -> 0 | AK14: 0 | AL14: 0 | AM14: 0 | AN14: 0 | AO14: 0 | AP14: =SUM(AI14:AO14) -> 0
B15: End Volume [acre-ft] | C15: =ROUND(C24+C33+C42+C51+C60+C69+C78+C87,0) -> 4544 | D15: 3626 | E15: 2722 | F15: 1360 | G15: 651 | H15: 504 | I15: 431 | K15: =ROUND(K24+K33+K42+K51+K60+K69+K78+K87,0) -> 200 | L15: 244 | M15: 311 | N15: 234 | O15: 204 | P15: 195 | Q15: 167 | S15: =ROUND(S24+S33+S42+S51+S60+S69+S78+S87,0) -> 1 | T15: 1 | U15: 1 | V15: 1 | W15: 1 | X15: 1 | Y15: 1 | AA15: =ROUND(AA24+AA33+AA42+AA51+AA60+AA69+AA78+AA87,0) -> 1 | AB15: 1 | AC15: 1 | AD15: 1 | AE15: 1 | AF15: 1 | AG15: 1 | AI15: =ROUND(AI24+AI33+AI42+AI51+AI60+AI69+AI78+AI87,0) -> 1 | AJ15: 1 | AK15: 1 | AL15: 1 | AM15: 1 | AN15: 1 | AO15: 1
B16: End Area [acres] | C16: =ROUND(C25+C34+C43+C52+C61+C70+C79+C88,0) -> 4177 | D16: 3625 | E16: 3171 | F16: 2049 | G16: 795 | H16: 439 | I16: 376 | J16: =SUM(J18,J27,J36,J45,J54,J63,J72,J81) -> -200 | K16: =ROUND(K25+K34+K43+K52+K61+K70+K79+K88,0) -> 239 | L16: 248 | M16: 249 | N16: 206 | O16: 191 | P16: 186 | Q16: 168 | R16: =SUM(R18,R27,R36,R45,R54,R63,R72,R81) -> -165.6 | S16: =ROUND(S25+S34+S43+S52+S61+S70+S79+S88,0) -> 0 | T16: 0 | U16: 0 | V16: 0 | W16: 0 | X16: 0 | Y16: 0 | Z16: =SUM(Z18,Z27,Z36,Z45,Z54,Z63,Z72,Z81) -> 0 | AA16: =ROUND(AA25+AA34+AA43+AA52+AA61+AA70+AA79+AA88,0) -> 0 | AB16: 0 | AC16: 0 | AD16: 0 | AE16: 0 | AF16: 0 | AG16: 0 | AH16: =SUM(AH18,AH27,AH36,AH45,AH54,AH63,AH72,AH81) -> 0 | AI16: =ROUND(AI25+AI34+AI43+AI52+AI61+AI70+AI79+AI88,0) -> 0 | AJ16: 0 | AK16: 0 | AL16: 0 | AM16: 0 | AN16: 0 | AO16: 0
A18: Unit 1 | B18: Starting Volume [acre-ft] | C18: =ROUND('Previous Data'!C70,2) -> 752.4 | D18: =C24 -> 684.9 | E18: 652.57 | F18: 627.01 | G18: 491.36 | H18: 400.36 | I18: 354.85 | J18: =IF($I$16=0,0,IF(-1*($J$3*(I25/(SUM(I$25,I$34,I$43,I$52,I$61,I$70,I$79,I$88))))<I24,$J$3*(I25/(SUM(I$25,I$34,I$43,I$52,I$61,I$70,I$79,I$88))),-I24)) -> -125.5319149 | K18: =ROUND(I24+J18,2) -> 187.32 | L18: =K24 -> 172.89 | M18: 229.51 | N18: 305.65 | O18: 233.21 | P18: 202.55 | Q18: 193.81 | R18: =IF($Q$16=0,0,IF(-1*($R$3*(Q25/(SUM(Q$25,Q$34,Q$43,Q$52,Q$61,Q$70,Q$79,Q$88))))<Q24,$R$3*(Q25/(SUM(Q$25,Q$34,Q$43,Q$52,Q$61,Q$70,Q$79,Q$88))),-Q24)) -> -165.6 | S18: =ROUND(Q24+R18,2) -> 0 | T18: =S24 -> 0 | U18: 0 | V18: 0 | W18: 0 | X18: 0 | Y18: 0 | Z18: =IF($Y$16=0,0,IF(-1*($Z$3*(Y25/(SUM(Y$25,Y$34,Y$43,Y$52,Y$61,Y$70,Y$79,Y$88))))<Y24,$Z$3*(Y25/(SUM(Y$25,Y$34,Y$43,Y$52,Y$61,Y$70,Y$79,Y$88))),-Y24)) -> 0 | AA18: =ROUND(Y24+Z18,2) -> 0 | AB18: =AA24 -> 0 | AC18: 0 | AD18: 0 | AE18: 0 | AF18: 0 | AG18: 0 | AH18: =IF($AG$16=0,0,IF(-1*($AH$3*(AG25/(SUM(AG$25,AG$34,AG$43,AG$52,AG$61,AG$70,AG$79,AG$88))))<AG24,$AH$3*(AG25/(SUM(AG$25,AG$34,AG$43,AG$52,AG$61,AG$70,AG$79,AG$88))),-AG24)) -> 0 | AI18: =ROUND(AG24+AH18,2) -> 0 | AJ18: =AI24 -> 0 | AK18: 0 | AL18: 0 | AM18: 0 | AN18: 0 | AO18: 0
B19: Starting Area [acres] | C19: =ROUND(IF(C18>0,VLOOKUP(C18,Table.Pool1.area.volume,2,TRUE),0),2) -> 348 | D19: =IF(D18>0,VLOOKUP(D18,Table.Pool1.area.volume,2,TRUE),0) -> 340 | E19: 332 | F19: 330 | G19: 295 | H19: 267 | I19: 252 | K19: =IF(K18>0,VLOOKUP(K18,Table.Pool1.area.volume,2,TRUE),0) -> 181 | L19: 172 | M19: 206 | N19: 232 | O19: 206 | P19: 191 | Q19: 186 | S19: =IF(S18>0,VLOOKUP(S18,Table.Pool1.area.volume,2,TRUE),0) -> 0 | T19: 0 | U19: 0 | V19: 0 | W19: 0 | X19: 0 | Y19: 0 | AA19: =IF(AA18>0,VLOOKUP(AA18,Table.Pool1.area.volume,2,TRUE),0) -> 0 | AB19: 0 | AC19: 0 | AD19: 0 | AE19: 0 | AF19: 0 | AG19: 0 | AI19: =IF(AI18>0,VLOOKUP(AI18,Table.Pool1.area.volume,2,TRUE),0) -> 0 | AJ19: 0 | AK19: 0 | AL19: 0 | AM19: 0 | AN19: 0 | AO19: 0
B20: Precip [acre-ft] | C20: =ROUND(VLOOKUP(SUM(C18,C22,C21),Table.Pool1.area.volume,2,TRUE)*C5/12,2) -> 27.71 | D20: 46.11 | E20: 51.9 | F20: 28.05 | G20: 29.5 | H20: 22.7 | I20: 12.39 | K20: =ROUND(VLOOKUP(SUM(K18,K22,K21),Table.Pool1.area.volume,2,TRUE)*K5/12,2) -> 20.25 | L20: 39.01 | M20: 49.35 | N20: 27.25 | O20: 28.75 | P20: 22.83 | Q20: 11.94 | S20: =ROUND(VLOOKUP(SUM(S18,S22,S21),Table.Pool1.area.volume,2,TRUE)*S5/12,2) -> 0 | T20: 0 | U20: 0 | V20: 0 | W20: 0 | X20: 0 | Y20: 0 | AA20: =ROUND(VLOOKUP(SUM(AA18,AA22,AA21),Table.Pool1.area.volume,2,TRUE)*AA5/12,2) -> 0 | AB20: 0 | AC20: 0 | AD20: 0 | AE20: 0 | AF20: 0 | AG20: 0 | AI20: =ROUND(VLOOKUP(SUM(AI18,AI22,AI21),Table.Pool1.area.volume,2,TRUE)*AI5/12,2) -> 0 | AJ20: 0 | AK20: 0 | AL20: 0 | AM20: 0 | AN20: 0 | AO20: 0
B21: Runoff [acre-ft] | C21: 6 | D21: 48 | E21: 67 | F21: 9 | G21: 18 | H21: 9 | I21: 0 | K21: 22 | L21: 99 | M21: 132 | N21: 28 | O21: 44 | P21: 28 | Q21: 0 | S21: 0 | T21: 0 | U21: 0 | V21: 0 | W21: 0 | X21: 0 | Y21: 0 | AA21: 0 | AB21: 0 | AC21: 0 | AD21: 0 | AE21: 0 | AF21: 0 | AG21: 0 | AI21: 0 | AJ21: 0 | AK21: 0 | AL21: 0 | AM21: 0 | AN21: 0 | AO21: 0
B22: Pump [acre-ft] | C22: 0 | D22: 0 | E22: 0 | F22: 0 | G22: 0 | H22: 0 | I22: 0 | J22: =SUM(C21:I22) -> 157 | K22: 0 | L22: 0 | M22: 0 | N22: 0 | O22: 0 | P22: 0 | Q22: 0 | R22: =SUM(K21:Q22) -> 353 | S22: 0 | T22: 0 | U22: 0 | V22: 0 | W22: 0 | X22: 0 | Y22: 0 | Z22: =SUM(S21:Y22) -> 0 | AA22: 0 | AB22: 0 | AC22: 0 | AD22: 0 | AE22: 0 | AF22: 0 | AG22: 0 | AH22: =SUM(AA21:AG22) -> 0 | AI22: 0 | AJ22: 0 | AK22: 0 | AL22: 0 | AM22: 0 | AN22: 0 | AO22: 0 | AP22: =SUM(AI21:AO22) -> 0
B23: Evap [acre-ft] | C23: =ROUND(IF(SUM(C18,C22,C21,C20)-(VLOOKUP(SUM(C18,C22,C21),Table.Pool1.area.volume,2,TRUE)*C$13/12)>0,(-VLOOKUP(SUM(C18,C22,C21),Table.Pool1.area.volume,2,TRUE)*C$13/12),-SUM(C18,C22,C21,C20)),2) -> -101.21 | D23: -126.44 | E23: -144.46 | F23: -172.7 | G23: -138.5 | H23: -77.21 | I23: -54.39 | K23: =ROUND(IF(SUM(K18,K22,K21,K20)-(VLOOKUP(SUM(K18,K22,K21),Table.Pool1.area.volume,2,TRUE)*K$13/12)>0,(-VLOOKUP(SUM(K18,K22,K21),Table.Pool1.area.volume,2,TRUE)*K$13/12),-SUM(K18,K22,K21,K20)),2) -> -56.68 | L23: -81.39 | M23: -105.21 | N23: -127.69 | O23: -103.41 | P23: -59.57 | Q23: -40.15 | S23: =ROUND(IF(SUM(S18,S22,S21,S20)-(VLOOKUP(SUM(S18,S22,S21),Table.Pool1.area.volume,2,TRUE)*S$13/12)>0,(-VLOOKUP(SUM(S18,S22,S21),Table.Pool1.area.volume,2,TRUE)*S$13/12),-SUM(S18,S22,S21,S20)),2) -> 0 | T23: 0 | U23: 0 | V23: 0 | W23: 0 | X23: 0 | Y23: 0 | AA23: =ROUND(IF(SUM(AA18,AA22,AA21,AA20)-(VLOOKUP(SUM(AA18,AA22,AA21),Table.Pool1.area.volume,2,TRUE)*AA$13/12)>0,(-VLOOKUP(SUM(AA18,AA22,AA21),Table.Pool1.area.volume,2,TRUE)*AA$13/12),-SUM(AA18,AA22,AA21,AA20)),2) -> 0 | AB23: 0 | AC23: 0 | AD23: 0 | AE23: 0 | AF23: 0 | AG23: 0 | AI23: =ROUND(IF(SUM(AI18,AI22,AI21,AI20)-(VLOOKUP(SUM(AI18,AI22,AI21),Table.Pool1.area.volume,2,TRUE)*AI$13/12)>0,(-VLOOKUP(SUM(AI18,AI22,AI21),Table.Pool1.area.volume,2,TRUE)*AI$13/12),-SUM(AI18,AI22,AI21,AI20)),2) -> 0 | AJ23: 0 | AK23: 0 | AL23: 0 | AM23: 0 | AN23: 0 | AO23: 0
B24: Ending Volume [acre-ft] | C24: =IF(SUM(C18,C20,C21,C22,C23)>0,SUM(C18,C20,C21,C22,C23),0) -> 684.9 | D24: =IF(SUM(D18,D20,D21,D22,D23)>0,SUM(D18,D20,D21,D22,D23),0) -> 652.57 | E24: 627.01 | F24: 491.36 | G24: 400.36 | H24: 354.85 | I24: 312.85 | J24: =K18 -> 187.32 | K24: =IF(SUM(K18,K20,K21,K22,K23)>0,SUM(K18,K20,K21,K22,K23),0) -> 172.89 | L24: 229.51 | M24: 305.65 | N24: 233.21 | O24: 202.55 | P24: 193.81 | Q24: 165.6 | R24: =S18 -> 0 | S24: =IF(SUM(S18,S20,S21,S22,S23)>0,SUM(S18,S20,S21,S22,S23),0) -> 0 | T24: 0 | U24: 0 | V24: 0 | W24: 0 | X24: 0 | Y24: 0 | Z24: =AA18 -> 0 | AA24: =IF(SUM(AA18,AA20,AA21,AA22,AA23)>0,SUM(AA18,AA20,AA21,AA22,AA23),0) -> 0 | AB24: 0 | AC24: 0 | AD24: 0 | AE24: 0 | AF24: 0 | AG24: 0 | AH24: =AI18 -> 0 | AI24: =IF(SUM(AI18,AI20,AI21,AI22,AI23)>0,SUM(AI18,AI20,AI21,AI22,AI23),0) -> 0 | AJ24: 0 | AK24: 0 | AL24: 0 | AM24: 0 | AN24: 0 | AO24: 0
B25: Ending Area [acres] | C25: =IF(C24>0,VLOOKUP(C24,Table.Pool1.area.volume,2,TRUE),0) -> 340 | D25: 332 | E25: 330 | F25: 295 | G25: 267 | H25: 252 | I25: 236 | J25: =K19 -> 181 | K25: =IF(K24>0,VLOOKUP(K24,Table.Pool1.area.volume,2,TRUE),0) -> 172 | L25: 206 | M25: 232 | N25: 206 | O25: 191 | P25: 186 | Q25: 168 | R25: =S19 -> 0 | S25: =IF(S24>0,VLOOKUP(S24,Table.Pool1.area.volume,2,TRUE),0) -> 0 | T25: 0 | U25: 0 | V25: 0 | W25: 0 | X25: 0 | Y25: 0 | Z25: =AA19 -> 0 | AA25: =IF(AA24>0,VLOOKUP(AA24,Table.Pool1.area.volume,2,TRUE),0) -> 0 | AB25: 0 | AC25: 0 | AD25: 0 | AE25: 0 | AF25: 0 | AG25: 0 | AH25: =AI19 -> 0 | AI25: =IF(AI24>0,VLOOKUP(AI24,Table.Pool1.area.volume,2,TRUE),0) -> 0 | AJ25: 0 | AK25: 0 | AL25: 0 | AM25: 0 | AN25: 0 | AO25: 0
A27: Unit 2 | B27: Starting Volume [acre-ft] | C27: =ROUND('Previous Data'!C71,2) -> 690.36 | D27: =C33 -> 590.61 | E27: 490.89 | F27: 397.26 | G27: 264.01 | H27: 180.81 | I27: 143.24 | J27: =IF($I$16=0,0,IF(-1*($J$3*(I34/(SUM(I$25,I$34,I$43,I$52,I$61,I$70,I$79,I$88))))<I33,$J$3*(I34/(SUM(I$25,I$34,I$43,I$52,I$61,I$70,I$79,I$88))),-I33)) -> -74.46808511 | K27: =ROUND(I33+J27,2) -> 42.27 | L27: =K33 -> 26.29 | M27: 13.62 | N27: 4.31 | O27: 0 | P27: 0 | Q27: 0 | R27: =IF($Q$16=0,0,IF(-1*($R$3*(Q34/(SUM(Q$25,Q$34,Q$43,Q$52,Q$61,Q$70,Q$79,Q$88))))<Q33,$R$3*(Q34/(SUM(Q$25,Q$34,Q$43,Q$52,Q$61,Q$70,Q$79,Q$88))),-Q33)) -> 0 | S27: =ROUND(Q33+R27,2) -> 0 | T27: =S33 -> 0 | U27: 0 | V27: 0 | W27: 0 | X27: 0 | Y27: 0 | Z27: =IF($Y$16=0,0,IF(-1*($Z$3*(Y34/(SUM(Y$25,Y$34,Y$43,Y$52,Y$61,Y$70,Y$79,Y$88))))<Y33,$Z$3*(Y34/(SUM(Y$25,Y$34,Y$43,Y$52,Y$61,Y$70,Y$79,Y$88))),-Y33)) -> 0 | AA27: =ROUND(Y33+Z27,2) -> 0 | AB27: =AA33 -> 0 | AC27: 0 | AD27: 0 | AE27: 0 | AF27: 0 | AG27: 0 | AH27: =IF($AG$16=0,0,IF(-1*($AH$3*(AG34/(SUM(AG$25,AG$34,AG$43,AG$52,AG$61,AG$70,AG$79,AG$88))))<AG33,$AH$3*(AG34/(SUM(AG$25,AG$34,AG$43,AG$52,AG$61,AG$70,AG$79,AG$88))),-AG33)) -> 0 | AI27: =ROUND(AG33+AH27,2) -> 0 | AJ27: =AI33 -> 0 | AK27: 0 | AL27: 0 | AM27: 0 | AN27: 0 | AO27: 0
B28: Starting Area [acres] | C28: =IF(C27>0,VLOOKUP(C27,Table.Pool2.area.volume,2,TRUE),0) -> 475 | D28: 432 | E28: 350 | F28: 304 | G28: 229 | H28: 184 | I28: 159 | K28: =IF(K27>0,VLOOKUP(K27,Table.Pool2.area.volume,2,TRUE),0) -> 86 | L28: 67 | M28: 42 | N28: 17 | O28: 0 | P28: 0 | Q28: 0 | S28: =IF(S27>0,VLOOKUP(S27,Table.Pool2.area.volume,2,TRUE),0) -> 0 | T28: 0 | U28: 0 | V28: 0 | W28: 0 | X28: 0 | Y28: 0 | AA28: =IF(AA27>0,VLOOKUP(AA27,Table.Pool2.area.volume,2,TRUE),0) -> 0 | AB28: 0 | AC28: 0 | AD28: 0 | AE28: 0 | AF28: 0 | AG28: 0 | AI28: =IF(AI27>0,VLOOKUP(AI27,Table.Pool2.area.volume,2,TRUE),0) -> 0 | AJ28: 0 | AK28: 0 | AL28: 0 | AM28: 0 | AN28: 0 | AO28: 0
B29: Precip [acre-ft] | C29: =ROUND(VLOOKUP(SUM(C27,C31,C30),Table.Pool2.area.volume,2,TRUE)*C5/12,2) -> 37.6 | D29: 57.24 | E29: 52.5 | F29: 25.84 | G29: 22.52 | H29: 15.64 | I29: 7.82 | K29: =ROUND(VLOOKUP(SUM(K27,K31,K30),Table.Pool2.area.volume,2,TRUE)*K5/12,2) -> 8.89 | L29: 11.67 | M29: 8.23 | N29: 1.9 | O29: 0 | P29: 0 | Q29: 0 | S29: =ROUND(VLOOKUP(SUM(S27,S31,S30),Table.Pool2.area.volume,2,TRUE)*S5/12,2) -> 0 | T29: 0 | U29: 0 | V29: 0 | W29: 0 | X29: 0 | Y29: 0 | AA29: =ROUND(VLOOKUP(SUM(AA27,AA31,AA30),Table.Pool2.area.volume,2,TRUE)*AA5/12,2) -> 0 | AB29: 0 | AC29: 0 | AD29: 0 | AE29: 0 | AF29: 0 | AG29: 0 | AI29: =ROUND(VLOOKUP(SUM(AI27,AI31,AI30),Table.Pool2.area.volume,2,TRUE)*AI5/12,2) -> 0 | AJ29: 0 | AK29: 0 | AL29: 0 | AM29: 0 | AN29: 0 | AO29: 0
B30: Runoff [acre-ft] | C30: 0 | D30: 0 | E30: 0 | F30: 0 | G30: 0 | H30: 0 | I30: 0 | K30: 0 | L30: 0 | M30: 0 | N30: 0 | O30: 0 | P30: 0 | Q30: 0 | S30: 0 | T30: 0 | U30: 0 | V30: 0 | W30: 0 | X30: 0 | Y30: 0 | AA30: 0 | AB30: 0 | AC30: 0 | AD30: 0 | AE30: 0 | AF30: 0 | AG30: 0 | AI30: 0 | AJ30: 0 | AK30: 0 | AL30: 0 | AM30: 0 | AN30: 0 | AO30: 0
B31: Pump [acre-ft] | C31: 0 | D31: 0 | E31: 0 | F31: 0 | G31: 0 | H31: 0 | I31: 0 | J31: =SUM(C30:I31) -> 0 | K31: 0 | L31: 0 | M31: 0 | N31: 0 | O31: 0 | P31: 0 | Q31: 0 | R31: =SUM(K30:Q31) -> 0 | S31: 0 | T31: 0 | U31: 0 | V31: 0 | W31: 0 | X31: 0 | Y31: 0 | Z31: =SUM(S30:Y31) -> 0 | AA31: 0 | AB31: 0 | AC31: 0 | AD31: 0 | AE31: 0 | AF31: 0 | AG31: 0 | AH31: =SUM(AA30:AG31) -> 0 | AI31: 0 | AJ31: 0 | AK31: 0 | AL31: 0 | AM31: 0 | AN31: 0 | AO31: 0 | AP31: =SUM(AI30:AO31) -> 0
B32: Evap [acre-ft] | C32: =ROUND(IF(SUM(C27,C31,C30,C29)-(VLOOKUP(SUM(C27,C31,C30),Table.Pool2.area.volume,2,TRUE)*C13/12)>0,(-VLOOKUP(SUM(C27,C31,C30),Table.Pool2.area.volume,2,TRUE)*C13/12),-SUM(C27,C31,C30,C29)),2) -> -137.35 | D32: -156.96 | E32: -146.13 | F32: -159.09 | G32: -105.72 | H32: -53.21 | I32: -34.32 | K32: =ROUND(IF(SUM(K27,K31,K30,K29)-(VLOOKUP(SUM(K27,K31,K30),Table.Pool2.area.volume,2,TRUE)*K13/12)>0,(-VLOOKUP(SUM(K27,K31,K30),Table.Pool2.area.volume,2,TRUE)*K13/12),-SUM(K27,K31,K30,K29)),2) -> -24.87 | L32: -24.34 | M32: -17.54 | N32: -6.21 | O32: 0 | P32: 0 | Q32: 0 | S32: =ROUND(IF(SUM(S27,S31,S30,S29)-(VLOOKUP(SUM(S27,S31,S30),Table.Pool2.area.volume,2,TRUE)*S13/12)>0,(-VLOOKUP(SUM(S27,S31,S30),Table.Pool2.area.volume,2,TRUE)*S13/12),-SUM(S27,S31,S30,S29)),2) -> 0 | T32: 0 | U32: 0 | V32: 0 | W32: 0 | X32: 0 | Y32: 0 | AA32: =ROUND(IF(SUM(AA27,AA31,AA30,AA29)-(VLOOKUP(SUM(AA27,AA31,AA30),Table.Pool2.area.volume,2,TRUE)*AA13/12)>0,(-VLOOKUP(SUM(AA27,AA31,AA30),Table.Pool2.area.volume,2,TRUE)*AA13/12),-SUM(AA27,AA31,AA30,AA29)),2) -> 0 | AB32: 0 | AC32: 0 | AD32: 0 | AE32: 0 | AF32: 0 | AG32: 0 | AI32: =ROUND(IF(SUM(AI27,AI31,AI30,AI29)-(VLOOKUP(SUM(AI27,AI31,AI30),Table.Pool2.area.volume,2,TRUE)*AI13/12)>0,(-VLOOKUP(SUM(AI27,AI31,AI30),Table.Pool2.area.volume,2,TRUE)*AI13/12),-SUM(AI27,AI31,AI30,AI29)),2) -> 0 | AJ32: 0 | AK32: 0 | AL32: 0 | AM32: 0 | AN32: 0 | AO32: 0
B33: Ending Volume [acre-ft] | C33: =IF(SUM(C27,C29,C30,C31,C32)>0,SUM(C27,C29,C30,C31,C32),0) -> 590.61 | D33: 490.89 | E33: 397.26 | F33: 264.01 | G33: 180.81 | H33: 143.24 | I33: 116.74 | J33: =K27 -> 42.27 | K33: =IF(SUM(K27,K29,K30,K31,K32)>0,SUM(K27,K29,K30,K31,K32),0) -> 26.29 | L33: 13.62 | M33: 4.31 | N33: 0 | O33: 0 | P33: 0 | Q33: 0 | R33: =S27 -> 0 | S33: =IF(SUM(S27,S29,S30,S31,S32)>0,SUM(S27,S29,S30,S31,S32),0) -> 0 | T33: 0 | U33: 0 | V33: 0 | W33: 0 | X33: 0 | Y33: 0 | Z33: =AA27 -> 0 | AA33: =IF(SUM(AA27,AA29,AA30,AA31,AA32)>0,SUM(AA27,AA29,AA30,AA31,AA32),0) -> 0 | AB33: 0 | AC33: 0 | AD33: 0 | AE33: 0 | AF33: 0 | AG33: 0 | AH33: =AI27 -> 0 | AI33: =IF(SUM(AI27,AI29,AI30,AI31,AI32)>0,SUM(AI27,AI29,AI30,AI31,AI32),0) -> 0 | AJ33: 0 | AK33: 0 | AL33: 0 | AM33: 0 | AN33: 0 | AO33: 0
B34: Ending Area [acres] | C34: =IF(C33>0,VLOOKUP(C33,Table.Pool2.area.volume,2,TRUE),0) -> 432 | D34: 350 | E34: 304 | F34: 229 | G34: 184 | H34: 159 | I34: 140 | J34: =K28 -> 86 | K34: =IF(K33>0,VLOOKUP(K33,Table.Pool2.area.volume,2,TRUE),0) -> 67 | L34: 42 | M34: 17 | N34: 0 | O34: 0 | P34: 0 | Q34: 0 | R34: =S28 -> 0 | S34: =IF(S33>0,VLOOKUP(S33,Table.Pool2.area.volume,2,TRUE),0) -> 0 | T34: 0 | U34: 0 | V34: 0 | W34: 0 | X34: 0 | Y34: 0 | Z34: =AA28 -> 0 | AA34: =IF(AA33>0,VLOOKUP(AA33,Table.Pool2.area.volume,2,TRUE),0) -> 0 | AB34: 0 | AC34: 0 | AD34: 0 | AE34: 0 | AF34: 0 | AG34: 0 | AH34: =AI28 -> 0 | AI34: =IF(AI33>0,VLOOKUP(AI33,Table.Pool2.area.volume,2,TRUE),0) -> 0 | AJ34: 0 | AK34: 0 | AL34: 0 | AM34: 0 | AN34: 0 | AO34: 0
A36: Unit 3 | B36: Starting Volume [acre-ft] | C36: =ROUND('Previous Data'!C72,2) -> 1347.72 | D36: =C42 -> 1132.26 | E36: 903.74 | F36: 650.42 | G36: 258.99 | H36: 35.91 | I36: 0 | J36: =IF($I$16=0,0,IF(-1*($J$3*(I43/(SUM(I$25,I$34,I$43,I$52,I$61,I$70,I$79,I$88))))<I42,$J$3*(I43/(SUM(I$25,I$34,I$43,I$52,I$61,I$70,I$79,I$88))),-I42)) -> 0 | K36: =ROUND(I42+J36,2) -> 0 | L36: =K42 -> 0 | M36: 0 | N36: 0 | O36: 0 | P36: 0 | Q36: 0 | R36: =IF($Q$16=0,0,IF(-1*($R$3*(Q43/(SUM(Q$25,Q$34,Q$43,Q$52,Q$61,Q$70,Q$79,Q$88))))<Q42,$R$3*(Q43/(SUM(Q$25,Q$34,Q$43,Q$52,Q$61,Q$70,Q$79,Q$88))),-Q42)) -> 0 | S36: =ROUND(Q42+R36,2) -> 0 | T36: =S42 -> 0 | U36: 0 | V36: 0 | W36: 0 | X36: 0 | Y36: 0 | Z36: =IF($Y$16=0,0,IF(-1*($Z$3*(Y43/(SUM(Y$25,Y$34,Y$43,Y$52,Y$61,Y$70,Y$79,Y$88))))<Y42,$Z$3*(Y43/(SUM(Y$25,Y$34,Y$43,Y$52,Y$61,Y$70,Y$79,Y$88))),-Y42)) -> 0 | AA36: =ROUND(Y42+Z36,2) -> 0 | AB36: =AA42 -> 0 | AC36: 0 | AD36: 0 | AE36: 0 | AF36: 0 | AG36: 0 | AH36: =IF($AG$16=0,0,IF(-1*($AH$3*(AG43/(SUM(AG$25,AG$34,AG$43,AG$52,AG$61,AG$70,AG$79,AG$88))))<AG42,$AH$3*(AG43/(SUM(AG$25,AG$34,AG$43,AG$52,AG$61,AG$70,AG$79,AG$88))),-AG42)) -> 0 | AI36: =ROUND(AG42+AH36,2) -> 0 | AJ36: =AI42 -> 0 | AK36: 0 | AL36: 0 | AM36: 0 | AN36: 0 | AO36: 0
B37: Starting Area [acres] | C37: =IF(C36>0,VLOOKUP(C36,Table.Pool3.area.volume,2,TRUE),0) -> 1026 | D37: 990 | E37: 947 | F37: 893 | G37: 614 | H37: 204 | I37: 0 | K37: =IF(K36>0,VLOOKUP(K36,Table.Pool3.area.volume,2,TRUE),0) -> 0 | L37: 0 | M37: 0 | N37: 0 | O37: 0 | P37: 0 | Q37: 0 | S37: =IF(S36>0,VLOOKUP(S36,Table.Pool3.area.volume,2,TRUE),0) -> 0 | T37: 0 | U37: 0 | V37: 0 | W37: 0 | X37: 0 | Y37: 0 | AA37: =IF(AA36>0,VLOOKUP(AA36,Table.Pool3.area.volume,2,TRUE),0) -> 0 | AB37: 0 | AC37: 0 | AD37: 0 | AE37: 0 | AF37: 0 | AG37: 0 | AI37: =IF(AI36>0,VLOOKUP(AI36,Table.Pool3.area.volume,2,TRUE),0) -> 0 | AJ37: 0 | AK37: 0 | AL37: 0 | AM37: 0 | AN37: 0 | AO37: 0
B38: Precip [acre-ft] | C38: =ROUND(VLOOKUP(SUM(C36,C40,C39),Table.Pool3.area.volume,2,TRUE)*C5/12,2) -> 81.23 | D38: 131.18 | E38: 142.05 | F38: 75.91 | G38: 60.38 | H38: 17.34 | I38: 0 | K38: =ROUND(VLOOKUP(SUM(K36,K40,K39),Table.Pool3.area.volume,2,TRUE)*K5/12,2) -> 0 | L38: 0 | M38: 0 | N38: 0 | O38: 0 | P38: 0 | Q38: 0 | S38: =ROUND(VLOOKUP(SUM(S36,S40,S39),Table.Pool3.area.volume,2,TRUE)*S5/12,2) -> 0 | T38: 0 | U38: 0 | V38: 0 | W38: 0 | X38: 0 | Y38: 0 | AA38: =ROUND(VLOOKUP(SUM(AA36,AA40,AA39),Table.Pool3.area.volume,2,TRUE)*AA5/12,2) -> 0 | AB38: 0 | AC38: 0 | AD38: 0 | AE38: 0 | AF38: 0 | AG38: 0 | AI38: =ROUND(VLOOKUP(SUM(AI36,AI40,AI39),Table.Pool3.area.volume,2,TRUE)*AI5/12,2) -> 0 | AJ38: 0 | AK38: 0 | AL38: 0 | AM38: 0 | AN38: 0 | AO38: 0
B39: Runoff [acre-ft] | C39: 0 | D39: 0 | E39: 0 | F39: 0 | G39: 0 | H39: 0 | I39: 0 | K39: 0 | L39: 0 | M39: 0 | N39: 0 | O39: 0 | P39: 0 | Q39: 0 | S39: 0 | T39: 0 | U39: 0 | V39: 0 | W39: 0 | X39: 0 | Y39: 0 | AA39: 0 | AB39: 0 | AC39: 0 | AD39: 0 | AE39: 0 | AF39: 0 | AG39: 0 | AI39: 0 | AJ39: 0 | AK39: 0 | AL39: 0 | AM39: 0 | AN39: 0 | AO39: 0
B40: Pump [acre-ft] | C40: 0 | D40: 0 | E40: 0 | F40: 0 | G40: 0 | H40: 0 | I40: 0 | J40: =SUM(C39:I40) -> 0 | K40: 0 | L40: 0 | M40: 0 | N40: 0 | O40: 0 | P40: 0 | Q40: 0 | R40: =SUM(K39:Q40) -> 0 | S40: 0 | T40: 0 | U40: 0 | V40: 0 | W40: 0 | X40: 0 | Y40: 0 | Z40: =SUM(S39:Y40) -> 0 | AA40: 0 | AB40: 0 | AC40: 0 | AD40: 0 | AE40: 0 | AF40: 0 | AG40: 0 | AH40: =SUM(AA39:AG40) -> 0 | AI40: 0 | AJ40: 0 | AK40: 0 | AL40: 0 | AM40: 0 | AN40: 0 | AO40: 0 | AP40: =SUM(AI39:AO40) -> 0
B41: Evap [acre-ft] | C41: =ROUND(IF(SUM(C36,C40,C39,C38)-(VLOOKUP(SUM(C36,C40,C39),Table.Pool3.area.volume,2,TRUE)*C13/12)>0,(-VLOOKUP(SUM(C36,C40,C39),Table.Pool3.area.volume,2,TRUE)*C13/12),-SUM(C36,C40,C39,C38)),2) -> -296.69 | D41: -359.7 | E41: -395.37 | F41: -467.34 | G41: -283.46 | H41: -53.25 | I41: 0 | K41: =ROUND(IF(SUM(K36,K40,K39,K38)-(VLOOKUP(SUM(K36,K40,K39),Table.Pool3.area.volume,2,TRUE)*K13/12)>0,(-VLOOKUP(SUM(K36,K40,K39),Table.Pool3.area.volume,2,TRUE)*K13/12),-SUM(K36,K40,K39,K38)),2) -> 0 | L41: 0 | M41: 0 | N41: 0 | O41: 0 | P41: 0 | Q41: 0 | S41: =ROUND(IF(SUM(S36,S40,S39,S38)-(VLOOKUP(SUM(S36,S40,S39),Table.Pool3.area.volume,2,TRUE)*S13/12)>0,(-VLOOKUP(SUM(S36,S40,S39),Table.Pool3.area.volume,2,TRUE)*S13/12),-SUM(S36,S40,S39,S38)),2) -> 0 | T41: 0 | U41: 0 | V41: 0 | W41: 0 | X41: 0 | Y41: 0 | AA41: =ROUND(IF(SUM(AA36,AA40,AA39,AA38)-(VLOOKUP(SUM(AA36,AA40,AA39),Table.Pool3.area.volume,2,TRUE)*AA13/12)>0,(-VLOOKUP(SUM(AA36,AA40,AA39),Table.Pool3.area.volume,2,TRUE)*AA13/12),-SUM(AA36,AA40,AA39,AA38)),2) -> 0 | AB41: 0 | AC41: 0 | AD41: 0 | AE41: 0 | AF41: 0 | AG41: 0 | AI41: =ROUND(IF(SUM(AI36,AI40,AI39,AI38)-(VLOOKUP(SUM(AI36,AI40,AI39),Table.Pool3.area.volume,2,TRUE)*AI13/12)>0,(-VLOOKUP(SUM(AI36,AI40,AI39),Table.Pool3.area.volume,2,TRUE)*AI13/12),-SUM(AI36,AI40,AI39,AI38)),2) -> 0 | AJ41: 0 | AK41: 0 | AL41: 0 | AM41: 0 | AN41: 0 | AO41: 0
B42: Ending Volume [acre-ft] | C42: =IF(SUM(C36,C38,C39,C40,C41)>0,SUM(C36,C38,C39,C40,C41),0) -> 1132.26 | D42: 903.74 | E42: 650.42 | F42: 258.99 | G42: 35.91 | H42: 0 | I42: 0 | J42: =K36 -> 0 | K42: =IF(SUM(K36,K38,K39,K40,K41)>0,SUM(K36,K38,K39,K40,K41),0) -> 0 | L42: 0 | M42: 0 | N42: 0 | O42: 0 | P42: 0 | Q42: 0 | R42: =S36 -> 0 | S42: =IF(SUM(S36,S38,S39,S40,S41)>0,SUM(S36,S38,S39,S40,S41),0) -> 0 | T42: 0 | U42: 0 | V42: 0 | W42: 0 | X42: 0 | Y42: 0 | Z42: =AA36 -> 0 | AA42: =IF(SUM(AA36,AA38,AA39,AA40,AA41)>0,SUM(AA36,AA38,AA39,AA40,AA41),0) -> 0 | AB42: 0 | AC42: 0 | AD42: 0 | AE42: 0 | AF42: 0 | AG42: 0 | AH42: =AI36 -> 0 | AI42: =IF(SUM(AI36,AI38,AI39,AI40,AI41)>0,SUM(AI36,AI38,AI39,AI40,AI41),0) -> 0 | AJ42: 0 | AK42: 0 | AL42: 0 | AM42: 0 | AN42: 0 | AO42: 0
B43: Ending Area [acres] | C43: =IF(C42>0,VLOOKUP(C42,Table.Pool3.area.volume,2,TRUE),0) -> 990 | D43: 947 | E43: 893 | F43: 614 | G43: 204 | H43: 0 | I43: 0 | J43: =K37 -> 0 | K43: =IF(K42>0,VLOOKUP(K42,Table.Pool3.area.volume,2,TRUE),0) -> 0 | L43: 0 | M43: 0 | N43: 0 | O43: 0 | P43: 0 | Q43: 0 | R43: =S37 -> 0 | S43: =IF(S42>0,VLOOKUP(S42,Table.Pool3.area.volume,2,TRUE),0) -> 0 | T43: 0 | U43: 0 | V43: 0 | W43: 0 | X43: 0 | Y43: 0 | Z43: =AA37 -> 0 | AA43: =IF(AA42>0,VLOOKUP(AA42,Table.Pool3.area.volume,2,TRUE),0) -> 0 | AB43: 0 | AC43: 0 | AD43: 0 | AE43: 0 | AF43: 0 | AG43: 0 | AH43: =AI37 -> 0 | AI43: =IF(AI42>0,VLOOKUP(AI42,Table.Pool3.area.volume,2,TRUE),0) -> 0 | AJ43: 0 | AK43: 0 | AL43: 0 | AM43: 0 | AN43: 0 | AO43: 0
A45: Unit 4a | B45: Starting Volume [acre-ft] | C45: =ROUND('Previous Data'!C73,2) -> 81.99 | D45: =C51 -> 42.93 | E45: 10.61 | F45: 0 | G45: 0 | H45: 0 | I45: 0 | J45: =IF($I$16=0,0,IF(-1*($J$3*(I52/(SUM(I$25,I$34,I$43,I$52,I$61,I$70,I$79,I$88))))<I51,$J$3*(I52/(SUM(I$25,I$34,I$43,I$52,I$61,I$70,I$79,I$88))),-I51)) -> 0 | K45: =ROUND(I51+J45,2) -> 0 | L45: =K51 -> 0 | M45: 0 | N45: 0 | O45: 0 | P45: 0 | Q45: 0 | R45: =IF($Q$16=0,0,IF(-1*($R$3*(Q52/(SUM(Q$25,Q$34,Q$43,Q$52,Q$61,Q$70,Q$79,Q$88))))<Q51,$R$3*(Q52/(SUM(Q$25,Q$34,Q$43,Q$52,Q$61,Q$70,Q$79,Q$88))),-Q51)) -> 0 | S45: =ROUND(Q51+R45,2) -> 0 | T45: =S51 -> 0 | U45: 0 | V45: 0 | W45: 0 | X45: 0 | Y45: 0 | Z45: =IF($Y$16=0,0,IF(-1*($Z$3*(Y52/(SUM(Y$25,Y$34,Y$43,Y$52,Y$61,Y$70,Y$79,Y$88))))<Y51,$Z$3*(Y52/(SUM(Y$25,Y$34,Y$43,Y$52,Y$61,Y$70,Y$79,Y$88))),-Y51)) -> 0 | AA45: =ROUND(Y51+Z45,2) -> 0 | AB45: =AA51 -> 0 | AC45: 0 | AD45: 0 | AE45: 0 | AF45: 0 | AG45: 0 | AH45: =IF($AG$16=0,0,IF(-1*($AH$3*(AG52/(SUM(AG$25,AG$34,AG$43,AG$52,AG$61,AG$70,AG$79,AG$88))))<AG51,$AH$3*(AG52/(SUM(AG$25,AG$34,AG$43,AG$52,AG$61,AG$70,AG$79,AG$88))),-AG51)) -> 0 | AI45: =ROUND(AG51+AH45,2) -> 0 | AJ45: =AI51 -> 0 | AK45: 0 | AL45: 0 | AM45: 0 | AN45: 0 | AO45: 0
B46: Starting Area [acres] | C46: =IF(C45>0,VLOOKUP(C45,Table.Pool4a.area.volume,2,TRUE),0) -> 186 | D46: 140 | E46: 50 | F46: 0 | G46: 0 | H46: 0 | I46: 0 | K46: =IF(K45>0,VLOOKUP(K45,Table.Pool4a.area.volume,2,TRUE),0) -> 0 | L46: 0 | M46: 0 | N46: 0 | O46: 0 | P46: 0 | Q46: 0 | S46: =IF(S45>0,VLOOKUP(S45,Table.Pool4a.area.volume,2,TRUE),0) -> 0 | T46: 0 | U46: 0 | V46: 0 | W46: 0 | X46: 0 | Y46: 0 | AA46: =IF(AA45>0,VLOOKUP(AA45,Table.Pool4a.area.volume,2,TRUE),0) -> 0 | AB46: 0 | AC46: 0 | AD46: 0 | AE46: 0 | AF46: 0 | AG46: 0 | AI46: =IF(AI45>0,VLOOKUP(AI45,Table.Pool4a.area.volume,2,TRUE),0) -> 0 | AJ46: 0 | AK46: 0 | AL46: 0 | AM46: 0 | AN46: 0 | AO46: 0
B47: Precip [acre-ft] | C47: =ROUND(VLOOKUP(SUM(C45,C49,C48),Table.Pool4a.area.volume,2,TRUE)*C5/12,2) -> 14.73 | D47: 18.55 | E47: 7.5 | F47: 0 | G47: 0 | H47: 0 | I47: 0 | K47: =ROUND(VLOOKUP(SUM(K45,K49,K48),Table.Pool4a.area.volume,2,TRUE)*K5/12,2) -> 0 | L47: 0 | M47: 0 | N47: 0 | O47: 0 | P47: 0 | Q47: 0 | S47: =ROUND(VLOOKUP(SUM(S45,S49,S48),Table.Pool4a.area.volume,2,TRUE)*S5/12,2) -> 0 | T47: 0 | U47: 0 | V47: 0 | W47: 0 | X47: 0 | Y47: 0 | AA47: =ROUND(VLOOKUP(SUM(AA45,AA49,AA48),Table.Pool4a.area.volume,2,TRUE)*AA5/12,2) -> 0 | AB47: 0 | AC47: 0 | AD47: 0 | AE47: 0 | AF47: 0 | AG47: 0 | AI47: =ROUND(VLOOKUP(SUM(AI45,AI49,AI48),Table.Pool4a.area.volume,2,TRUE)*AI5/12,2) -> 0 | AJ47: 0 | AK47: 0 | AL47: 0 | AM47: 0 | AN47: 0 | AO47: 0
B48: Runoff [acre-ft] | C48: 0 | D48: 0 | E48: 0 | F48: 0 | G48: 0 | H48: 0 | I48: 0 | K48: 0 | L48: 0 | M48: 0 | N48: 0 | O48: 0 | P48: 0 | Q48: 0 | S48: 0 | T48: 0 | U48: 0 | V48: 0 | W48: 0 | X48: 0 | Y48: 0 | AA48: 0 | AB48: 0 | AC48: 0 | AD48: 0 | AE48: 0 | AF48: 0 | AG48: 0 | AI48: 0 | AJ48: 0 | AK48: 0 | AL48: 0 | AM48: 0 | AN48: 0 | AO48: 0
B49: Pump [acre-ft] | C49: 0 | D49: 0 | E49: 0 | F49: 0 | G49: 0 | H49: 0 | I49: 0 | J49: =SUM(C48:I49) -> 0 | K49: 0 | L49: 0 | M49: 0 | N49: 0 | O49: 0 | P49: 0 | Q49: 0 | R49: =SUM(K48:Q49) -> 0 | S49: 0 | T49: 0 | U49: 0 | V49: 0 | W49: 0 | X49: 0 | Y49: 0 | Z49: =SUM(S48:Y49) -> 0 | AA49: 0 | AB49: 0 | AC49: 0 | AD49: 0 | AE49: 0 | AF49: 0 | AG49: 0 | AH49: =SUM(AA48:AG49) -> 0 | AI49: 0 | AJ49: 0 | AK49: 0 | AL49: 0 | AM49: 0 | AN49: 0 | AO49: 0 | AP49: =SUM(AI48:AO49) -> 0
B50: Evap [acre-ft] | C50: =ROUND(IF(SUM(C45,C49,C48,C47)-(VLOOKUP(SUM(C45,C49,C48),Table.Pool4a.area.volume,2,TRUE)*C13/12)>0,(-VLOOKUP(SUM(C45,C49,C48),Table.Pool4a.area.volume,2,TRUE)*C13/12),-SUM(C45,C49,C48,C47)),2) -> -53.79 | D50: -50.87 | E50: -18.11 | F50: 0 | G50: 0 | H50: 0 | I50: 0 | K50: =ROUND(IF(SUM(K45,K49,K48,K47)-(VLOOKUP(SUM(K45,K49,K48),Table.Pool4a.area.volume,2,TRUE)*K13/12)>0,(-VLOOKUP(SUM(K45,K49,K48),Table.Pool4a.area.volume,2,TRUE)*K13/12),-SUM(K45,K49,K48,K47)),2) -> 0 | L50: 0 | M50: 0 | N50: 0 | O50: 0 | P50: 0 | Q50: 0 | S50: =ROUND(IF(SUM(S45,S49,S48,S47)-(VLOOKUP(SUM(S45,S49,S48),Table.Pool4a.area.volume,2,TRUE)*S13/12)>0,(-VLOOKUP(SUM(S45,S49,S48),Table.Pool4a.area.volume,2,TRUE)*S13/12),-SUM(S45,S49,S48,S47)),2) -> 0 | T50: 0 | U50: 0 | V50: 0 | W50: 0 | X50: 0 | Y50: 0 | AA50: =ROUND(IF(SUM(AA45,AA49,AA48,AA47)-(VLOOKUP(SUM(AA45,AA49,AA48),Table.Pool4a.area.volume,2,TRUE)*AA13/12)>0,(-VLOOKUP(SUM(AA45,AA49,AA48),Table.Pool4a.area.volume,2,TRUE)*AA13/12),-SUM(AA45,AA49,AA48,AA47)),2) -> 0 | AB50: 0 | AC50: 0 | AD50: 0 | AE50: 0 | AF50: 0 | AG50: 0 | AI50: =ROUND(IF(SUM(AI45,AI49,AI48,AI47)-(VLOOKUP(SUM(AI45,AI49,AI48),Table.Pool4a.area.volume,2,TRUE)*AI13/12)>0,(-VLOOKUP(SUM(AI45,AI49,AI48),Table.Pool4a.area.volume,2,TRUE)*AI13/12),-SUM(AI45,AI49,AI48,AI47)),2) -> 0 | AJ50: 0 | AK50: 0 | AL50: 0 | AM50: 0 | AN50: 0 | AO50: 0
B51: Ending Volume [acre-ft] | C51: =IF(SUM(C45,C47,C48,C49,C50)>0,SUM(C45,C47,C48,C49,C50),0) -> 42.93 | D51: 10.61 | E51: 0 | F51: 0 | G51: 0 | H51: 0 | I51: 0 | J51: =K45 -> 0 | K51: =IF(SUM(K45,K47,K48,K49,K50)>0,SUM(K45,K47,K48,K49,K50),0) -> 0 | L51: 0 | M51: 0 | N51: 0 | O51: 0 | P51: 0 | Q51: 0 | R51: =S45 -> 0 | S51: =IF(SUM(S45,S47,S48,S49,S50)>0,SUM(S45,S47,S48,S49,S50),0) -> 0 | T51: 0 | U51: 0 | V51: 0 | W51: 0 | X51: 0 | Y51: 0 | Z51: =AA45 -> 0 | AA51: =IF(SUM(AA45,AA47,AA48,AA49,AA50)>0,SUM(AA45,AA47,AA48,AA49,AA50),0) -> 0 | AB51: 0 | AC51: 0 | AD51: 0 | AE51: 0 | AF51: 0 | AG51: 0 | AH51: =AI45 -> 0 | AI51: =IF(SUM(AI45,AI47,AI48,AI49,AI50)>0,SUM(AI45,AI47,AI48,AI49,AI50),0) -> 0 | AJ51: 0 | AK51: 0 | AL51: 0 | AM51: 0 | AN51: 0 | AO51: 0
B52: Ending Area [acres] | C52: =IF(C51>0,VLOOKUP(C51,Table.Pool4a.area.volume,2,TRUE),0) -> 140 | D52: 50 | E52: 0 | F52: 0 | G52: 0 | H52: 0 | I52: 0 | J52: =K46 -> 0 | K52: =IF(K51>0,VLOOKUP(K51,Table.Pool4a.area.volume,2,TRUE),0) -> 0 | L52: 0 | M52: 0 | N52: 0 | O52: 0 | P52: 0 | Q52: 0 | R52: =S46 -> 0 | S52: =IF(S51>0,VLOOKUP(S51,Table.Pool4a.area.volume,2,TRUE),0) -> 0 | T52: 0 | U52: 0 | V52: 0 | W52: 0 | X52: 0 | Y52: 0 | Z52: =AA46 -> 0 | AA52: =IF(AA51>0,VLOOKUP(AA51,Table.Pool4a.area.volume,2,TRUE),0) -> 0 | AB52: 0 | AC52: 0 | AD52: 0 | AE52: 0 | AF52: 0 | AG52: 0 | AH52: =AI46 -> 0 | AI52: =IF(AI51>0,VLOOKUP(AI51,Table.Pool4a.area.volume,2,TRUE),0) -> 0 | AJ52: 0 | AK52: 0 | AL52: 0 | AM52: 0 | AN52: 0 | AO52: 0
A54: Unit 4b | B54: Starting Volume [acre-ft] | C54: =ROUND('Previous Data'!C74,2) -> 228.32 | D54: =C60 -> 177.11 | E54: 124.65 | F54: 68.74 | G54: 0 | H54: 0 | I54: 0 | J54: =IF($I$16=0,0,IF(-1*($J$3*(I61/(SUM(I$25,I$34,I$43,I$52,I$61,I$70,I$79,I$88))))<I60,$J$3*(I61/(SUM(I$25,I$34,I$43,I$52,I$61,I$70,I$79,I$88))),-I60)) -> 0 | K54: =ROUND(I60+J54,2) -> 0 | L54: =K60 -> 0 | M54: 0 | N54: 0 | O54: 0 | P54: 0 | Q54: 0 | R54: =IF($Q$16=0,0,IF(-1*($R$3*(Q61/(SUM(Q$25,Q$34,Q$43,Q$52,Q$61,Q$70,Q$79,Q$88))))<Q60,$R$3*(Q61/(SUM(Q$25,Q$34,Q$43,Q$52,Q$61,Q$70,Q$79,Q$88))),-Q60)) -> 0 | S54: =ROUND(Q60+R54,2) -> 0 | T54: =S60 -> 0 | U54: 0 | V54: 0 | W54: 0 | X54: 0 | Y54: 0 | Z54: =IF($Y$16=0,0,IF(-1*($Z$3*(Y61/(SUM(Y$25,Y$34,Y$43,Y$52,Y$61,Y$70,Y$79,Y$88))))<Y60,$Z$3*(Y61/(SUM(Y$25,Y$34,Y$43,Y$52,Y$61,Y$70,Y$79,Y$88))),-Y60)) -> 0 | AA54: =ROUND(Y60+Z54,2) -> 0 | AB54: =AA60 -> 0 | AC54: 0 | AD54: 0 | AE54: 0 | AF54: 0 | AG54: 0 | AH54: =IF($AG$16=0,0,IF(-1*($AH$3*(AG61/(SUM(AG$25,AG$34,AG$43,AG$52,AG$61,AG$70,AG$79,AG$88))))<AG60,$AH$3*(AG61/(SUM(AG$25,AG$34,AG$43,AG$52,AG$61,AG$70,AG$79,AG$88))),-AG60)) -> 0 | AI54: =ROUND(AG60+AH54,2) -> 0 | AJ54: =AI60 -> 0 | AK54: 0 | AL54: 0 | AM54: 0 | AN54: 0 | AO54: 0
B55: Starting Area [acres] | C55: =IF(C54>0,VLOOKUP(C54,Table.Pool4b.area.volume,2,TRUE),0) -> 243.89 | D55: 227.27 | E55: 209 | F55: 167.09 | G55: 0 | H55: 0 | I55: 0 | K55: =IF(K54>0,VLOOKUP(K54,Table.Pool4b.area.volume,2,TRUE),0) -> 0 | L55: 0 | M55: 0 | N55: 0 | O55: 0 | P55: 0 | Q55: 0 | S55: =IF(S54>0,VLOOKUP(S54,Table.Pool4b.area.volume,2,TRUE),0) -> 0 | T55: 0 | U55: 0 | V55: 0 | W55: 0 | X55: 0 | Y55: 0 | AA55: =IF(AA54>0,VLOOKUP(AA54,Table.Pool4b.area.volume,2,TRUE),0) -> 0 | AB55: 0 | AC55: 0 | AD55: 0 | AE55: 0 | AF55: 0 | AG55: 0 | AI55: =IF(AI54>0,VLOOKUP(AI54,Table.Pool4b.area.volume,2,TRUE),0) -> 0 | AJ55: 0 | AK55: 0 | AL55: 0 | AM55: 0 | AN55: 0 | AO55: 0
B56: Precip [acre-ft] | C56: =ROUND(VLOOKUP(SUM(C54,C58,C57),Table.Pool4b.area.volume,2,TRUE)*C5/12,2) -> 19.31 | D56: 30.11 | E56: 31.35 | F56: 14.2 | G56: 0 | H56: 0 | I56: 0 | K56: =ROUND(VLOOKUP(SUM(K54,K58,K57),Table.Pool4b.area.volume,2,TRUE)*K5/12,2) -> 0 | L56: 0 | M56: 0 | N56: 0 | O56: 0 | P56: 0 | Q56: 0 | S56: =ROUND(VLOOKUP(SUM(S54,S58,S57),Table.Pool4b.area.volume,2,TRUE)*S5/12,2) -> 0 | T56: 0 | U56: 0 | V56: 0 | W56: 0 | X56: 0 | Y56: 0 | AA56: =ROUND(VLOOKUP(SUM(AA54,AA58,AA57),Table.Pool4b.area.volume,2,TRUE)*AA5/12,2) -> 0 | AB56: 0 | AC56: 0 | AD56: 0 | AE56: 0 | AF56: 0 | AG56: 0 | AI56: =ROUND(VLOOKUP(SUM(AI54,AI58,AI57),Table.Pool4b.area.volume,2,TRUE)*AI5/12,2) -> 0 | AJ56: 0 | AK56: 0 | AL56: 0 | AM56: 0 | AN56: 0 | AO56: 0
B57: Runoff [acre-ft] | C57: 0 | D57: 0 | E57: 0 | F57: 0 | G57: 0 | H57: 0 | I57: 0 | K57: 0 | L57: 0 | M57: 0 | N57: 0 | O57: 0 | P57: 0 | Q57: 0 | S57: 0 | T57: 0 | U57: 0 | V57: 0 | W57: 0 | X57: 0 | Y57: 0 | AA57: 0 | AB57: 0 | AC57: 0 | AD57: 0 | AE57: 0 | AF57: 0 | AG57: 0 | AI57: 0 | AJ57: 0 | AK57: 0 | AL57: 0 | AM57: 0 | AN57: 0 | AO57: 0
B58: Pump [acre-ft] | C58: 0 | D58: 0 | E58: 0 | F58: 0 | G58: 0 | H58: 0 | I58: 0 | J58: =SUM(C57:I58) -> 0 | K58: 0 | L58: 0 | M58: 0 | N58: 0 | O58: 0 | P58: 0 | Q58: 0 | R58: =SUM(K57:Q58) -> 0 | S58: 0 | T58: 0 | U58: 0 | V58: 0 | W58: 0 | X58: 0 | Y58: 0 | Z58: =SUM(S57:Y58) -> 0 | AA58: 0 | AB58: 0 | AC58: 0 | AD58: 0 | AE58: 0 | AF58: 0 | AG58: 0 | AH58: =SUM(AA57:AG58) -> 0 | AI58: 0 | AJ58: 0 | AK58: 0 | AL58: 0 | AM58: 0 | AN58: 0 | AO58: 0 | AP58: =SUM(AI57:AO58) -> 0
B59: Evap [acre-ft] | C59: =ROUND(IF(SUM(C54,C58,C57,C56)-(VLOOKUP(SUM(C54,C58,C57),Table.Pool4b.area.volume,2,TRUE)*C13/12)>0,(-VLOOKUP(SUM(C54,C58,C57),Table.Pool4b.area.volume,2,TRUE)*C13/12),-SUM(C54,C58,C57,C56)),2) -> -70.52 | D59: -82.57 | E59: -87.26 | F59: -82.94 | G59: 0 | H59: 0 | I59: 0 | K59: =ROUND(IF(SUM(K54,K58,K57,K56)-(VLOOKUP(SUM(K54,K58,K57),Table.Pool4b.area.volume,2,TRUE)*K13/12)>0,(-VLOOKUP(SUM(K54,K58,K57),Table.Pool4b.area.volume,2,TRUE)*K13/12),-SUM(K54,K58,K57,K56)),2) -> 0 | L59: 0 | M59: 0 | N59: 0 | O59: 0 | P59: 0 | Q59: 0 | S59: =ROUND(IF(SUM(S54,S58,S57,S56)-(VLOOKUP(SUM(S54,S58,S57),Table.Pool4b.area.volume,2,TRUE)*S13/12)>0,(-VLOOKUP(SUM(S54,S58,S57),Table.Pool4b.area.volume,2,TRUE)*S13/12),-SUM(S54,S58,S57,S56)),2) -> 0 | T59: 0 | U59: 0 | V59: 0 | W59: 0 | X59: 0 | Y59: 0 | AA59: =ROUND(IF(SUM(AA54,AA58,AA57,AA56)-(VLOOKUP(SUM(AA54,AA58,AA57),Table.Pool4b.area.volume,2,TRUE)*AA13/12)>0,(-VLOOKUP(SUM(AA54,AA58,AA57),Table.Pool4b.area.volume,2,TRUE)*AA13/12),-SUM(AA54,AA58,AA57,AA56)),2) -> 0 | AB59: 0 | AC59: 0 | AD59: 0 | AE59: 0 | AF59: 0 | AG59: 0 | AI59: =ROUND(IF(SUM(AI54,AI58,AI57,AI56)-(VLOOKUP(SUM(AI54,AI58,AI57),Table.Pool4b.area.volume,2,TRUE)*AI13/12)>0,(-VLOOKUP(SUM(AI54,AI58,AI57),Table.Pool4b.area.volume,2,TRUE)*AI13/12),-SUM(AI54,AI58,AI57,AI56)),2) -> 0 | AJ59: 0 | AK59: 0 | AL59: 0 | AM59: 0 | AN59: 0 | AO59: 0
B60: Ending Volume [acre-ft] | C60: =IF(SUM(C54,C56,C57,C58,C59)>0,SUM(C54,C56,C57,C58,C59),0) -> 177.11 | D60: 124.65 | E60: 68.74 | F60: 0 | G60: 0 | H60: 0 | I60: 0 | J60: =K54 -> 0 | K60: =IF(SUM(K54,K56,K57,K58,K59)>0,SUM(K54,K56,K57,K58,K59),0) -> 0 | L60: 0 | M60: 0 | N60: 0 | O60: 0 | P60: 0 | Q60: 0 | R60: =S54 -> 0 | S60: =IF(SUM(S54,S56,S57,S58,S59)>0,SUM(S54,S56,S57,S58,S59),0) -> 0 | T60: 0 | U60: 0 | V60: 0 | W60: 0 | X60: 0 | Y60: 0 | Z60: =AA54 -> 0 | AA60: =IF(SUM(AA54,AA56,AA57,AA58,AA59)>0,SUM(AA54,AA56,AA57,AA58,AA59),0) -> 0 | AB60: 0 | AC60: 0 | AD60: 0 | AE60: 0 | AF60: 0 | AG60: 0 | AH60: =AI54 -> 0 | AI60: =IF(SUM(AI54,AI56,AI57,AI58,AI59)>0,SUM(AI54,AI56,AI57,AI58,AI59),0) -> 0 | AJ60: 0 | AK60: 0 | AL60: 0 | AM60: 0 | AN60: 0 | AO60: 0
B61: Ending Area [acres] | C61: =IF(C60>0,VLOOKUP(C60,Table.Pool4b.area.volume,2,TRUE),0) -> 227.27 | D61: 209 | E61: 167.09 | F61: 0 | G61: 0 | H61: 0 | I61: 0 | J61: =K55 -> 0 | K61: =IF(K60>0,VLOOKUP(K60,Table.Pool4b.area.volume,2,TRUE),0) -> 0 | L61: 0 | M61: 0 | N61: 0 | O61: 0 | P61: 0 | Q61: 0 | R61: =S55 -> 0 | S61: =IF(S60>0,VLOOKUP(S60,Table.Pool4b.area.volume,2,TRUE),0) -> 0 | T61: 0 | U61: 0 | V61: 0 | W61: 0 | X61: 0 | Y61: 0 | Z61: =AA55 -> 0 | AA61: =IF(AA60>0,VLOOKUP(AA60,Table.Pool4b.area.volume,2,TRUE),0) -> 0 | AB61: 0 | AC61: 0 | AD61: 0 | AE61: 0 | AF61: 0 | AG61: 0 | AH61: =AI55 -> 0 | AI61: =IF(AI60>0,VLOOKUP(AI60,Table.Pool4b.area.volume,2,TRUE),0) -> 0 | AJ61: 0 | AK61: 0 | AL61: 0 | AM61: 0 | AN61: 0 | AO61: 0
A63: Unit 4c | B63: Starting Volume [acre-ft] | C63: =ROUND('Previous Data'!C75,2) -> 446.34 | D63: =C69 -> 274.14 | E63: 138.88 | F63: 48.46 | G63: 0 | H63: 0 | I63: 0 | J63: =IF($I$16=0,0,IF(-1*($J$3*(I70/(SUM(I$25,I$34,I$43,I$52,I$61,I$70,I$79,I$88))))<I69,$J$3*(I70/(SUM(I$25,I$34,I$43,I$52,I$61,I$70,I$79,I$88))),-I69)) -> 0 | K63: =ROUND(I69+J63,2) -> 0 | L63: =K69 -> 0 | M63: 0 | N63: 0 | O63: 0 | P63: 0 | Q63: 0 | R63: =IF($Q$16=0,0,IF(-1*($R$3*(Q70/(SUM(Q$25,Q$34,Q$43,Q$52,Q$61,Q$70,Q$79,Q$88))))<Q69,$R$3*(Q70/(SUM(Q$25,Q$34,Q$43,Q$52,Q$61,Q$70,Q$79,Q$88))),-Q69)) -> 0 | S63: =ROUND(Q69+R63,2) -> 0 | T63: =S69 -> 0 | U63: 0 | V63: 0 | W63: 0 | X63: 0 | Y63: 0 | Z63: =IF($Y$16=0,0,IF(-1*($Z$3*(Y70/(SUM(Y$25,Y$34,Y$43,Y$52,Y$61,Y$70,Y$79,Y$88))))<Y69,$Z$3*(Y70/(SUM(Y$25,Y$34,Y$43,Y$52,Y$61,Y$70,Y$79,Y$88))),-Y69)) -> 0 | AA63: =ROUND(Y69+Z63,2) -> 0 | AB63: =AA69 -> 0 | AC63: 0 | AD63: 0 | AE63: 0 | AF63: 0 | AG63: 0 | AH63: =IF($AG$16=0,0,IF(-1*($AH$3*(AG70/(SUM(AG$25,AG$34,AG$43,AG$52,AG$61,AG$70,AG$79,AG$88))))<AG69,$AH$3*(AG70/(SUM(AG$25,AG$34,AG$43,AG$52,AG$61,AG$70,AG$79,AG$88))),-AG69)) -> 0 | AI63: =ROUND(AG69+AH63,2) -> 0 | AJ63: =AI69 -> 0 | AK63: 0 | AL63: 0 | AM63: 0 | AN63: 0 | AO63: 0
B64: Starting Area [acres] | C64: =IF(C63>0,VLOOKUP(C63,Table.Pool4c.area.volume,2,TRUE),0) -> 820 | D64: 586 | E64: 338 | F64: 143 | G64: 0 | H64: 0 | I64: 0 | K64: =IF(K63>0,VLOOKUP(K63,Table.Pool4c.area.volume,2,TRUE),0) -> 0 | L64: 0 | M64: 0 | N64: 0 | O64: 0 | P64: 0 | Q64: 0 | S64: =IF(S63>0,VLOOKUP(S63,Table.Pool4c.area.volume,2,TRUE),0) -> 0 | T64: 0 | U64: 0 | V64: 0 | W64: 0 | X64: 0 | Y64: 0 | AA64: =IF(AA63>0,VLOOKUP(AA63,Table.Pool4c.area.volume,2,TRUE),0) -> 0 | AB64: 0 | AC64: 0 | AD64: 0 | AE64: 0 | AF64: 0 | AG64: 0 | AI64: =IF(AI63>0,VLOOKUP(AI63,Table.Pool4c.area.volume,2,TRUE),0) -> 0 | AJ64: 0 | AK64: 0 | AL64: 0 | AM64: 0 | AN64: 0 | AO64: 0
B65: Precip [acre-ft] | C65: =ROUND(VLOOKUP(SUM(C63,C67,C66),Table.Pool4c.area.volume,2,TRUE)*C5/12,2) -> 64.92 | D65: 77.65 | E65: 50.7 | F65: 12.16 | G65: 0 | H65: 0 | I65: 0 | K65: =ROUND(VLOOKUP(SUM(K63,K67,K66),Table.Pool4c.area.volume,2,TRUE)*K5/12,2) -> 0 | L65: 0 | M65: 0 | N65: 0 | O65: 0 | P65: 0 | Q65: 0 | S65: =ROUND(VLOOKUP(SUM(S63,S67,S66),Table.Pool4c.area.volume,2,TRUE)*S5/12,2) -> 0 | T65: 0 | U65: 0 | V65: 0 | W65: 0 | X65: 0 | Y65: 0 | AA65: =ROUND(VLOOKUP(SUM(AA63,AA67,AA66),Table.Pool4c.area.volume,2,TRUE)*AA5/12,2) -> 0 | AB65: 0 | AC65: 0 | AD65: 0 | AE65: 0 | AF65: 0 | AG65: 0 | AI65: =ROUND(VLOOKUP(SUM(AI63,AI67,AI66),Table.Pool4c.area.volume,2,TRUE)*AI5/12,2) -> 0 | AJ65: 0 | AK65: 0 | AL65: 0 | AM65: 0 | AN65: 0 | AO65: 0
B66: Runoff [acre-ft] | C66: 0 | D66: 0 | E66: 0 | F66: 0 | G66: 0 | H66: 0 | I66: 0 | K66: 0 | L66: 0 | M66: 0 | N66: 0 | O66: 0 | P66: 0 | Q66: 0 | S66: 0 | T66: 0 | U66: 0 | V66: 0 | W66: 0 | X66: 0 | Y66: 0 | AA66: 0 | AB66: 0 | AC66: 0 | AD66: 0 | AE66: 0 | AF66: 0 | AG66: 0 | AI66: 0 | AJ66: 0 | AK66: 0 | AL66: 0 | AM66: 0 | AN66: 0 | AO66: 0
B67: Pump [acre-ft] | C67: 0 | D67: 0 | E67: 0 | F67: 0 | G67: 0 | H67: 0 | I67: 0 | J67: =SUM(C66:I67) -> 0 | K67: 0 | L67: 0 | M67: 0 | N67: 0 | O67: 0 | P67: 0 | Q67: 0 | R67: =SUM(K66:Q67) -> 0 | S67: 0 | T67: 0 | U67: 0 | V67: 0 | W67: 0 | X67: 0 | Y67: 0 | Z67: =SUM(S66:Y67) -> 0 | AA67: 0 | AB67: 0 | AC67: 0 | AD67: 0 | AE67: 0 | AF67: 0 | AG67: 0 | AH67: =SUM(AA66:AG67) -> 0 | AI67: 0 | AJ67: 0 | AK67: 0 | AL67: 0 | AM67: 0 | AN67: 0 | AO67: 0 | AP67: =SUM(AI66:AO67) -> 0
B68: Evap [acre-ft] | C68: =ROUND(IF(SUM(C63,C67,C66,C65)-(VLOOKUP(SUM(C63,C67,C66),Table.Pool4c.area.volume,2,TRUE)*C13/12)>0,(-VLOOKUP(SUM(C63,C67,C66),Table.Pool4c.area.volume,2,TRUE)*C13/12),-SUM(C63,C67,C66,C65)),2) -> -237.12 | D68: -212.91 | E68: -141.12 | F68: -60.62 | G68: 0 | H68: 0 | I68: 0 | K68: =ROUND(IF(SUM(K63,K67,K66,K65)-(VLOOKUP(SUM(K63,K67,K66),Table.Pool4c.area.volume,2,TRUE)*K13/12)>0,(-VLOOKUP(SUM(K63,K67,K66),Table.Pool4c.area.volume,2,TRUE)*K13/12),-SUM(K63,K67,K66,K65)),2) -> 0 | L68: 0 | M68: 0 | N68: 0 | O68: 0 | P68: 0 | Q68: 0 | S68: =ROUND(IF(SUM(S63,S67,S66,S65)-(VLOOKUP(SUM(S63,S67,S66),Table.Pool4c.area.volume,2,TRUE)*S13/12)>0,(-VLOOKUP(SUM(S63,S67,S66),Table.Pool4c.area.volume,2,TRUE)*S13/12),-SUM(S63,S67,S66,S65)),2) -> 0 | T68: 0 | U68: 0 | V68: 0 | W68: 0 | X68: 0 | Y68: 0 | AA68: =ROUND(IF(SUM(AA63,AA67,AA66,AA65)-(VLOOKUP(SUM(AA63,AA67,AA66),Table.Pool4c.area.volume,2,TRUE)*AA13/12)>0,(-VLOOKUP(SUM(AA63,AA67,AA66),Table.Pool4c.area.volume,2,TRUE)*AA13/12),-SUM(AA63,AA67,AA66,AA65)),2) -> 0 | AB68: 0 | AC68: 0 | AD68: 0 | AE68: 0 | AF68: 0 | AG68: 0 | AI68: =ROUND(IF(SUM(AI63,AI67,AI66,AI65)-(VLOOKUP(SUM(AI63,AI67,AI66),Table.Pool4c.area.volume,2,TRUE)*AI13/12)>0,(-VLOOKUP(SUM(AI63,AI67,AI66),Table.Pool4c.area.volume,2,TRUE)*AI13/12),-SUM(AI63,AI67,AI66,AI65)),2) -> 0 | AJ68: 0 | AK68: 0 | AL68: 0 | AM68: 0 | AN68: 0 | AO68: 0
B69: Ending Volume [acre-ft] | C69: =IF(SUM(C63,C65,C66,C67,C68)>0,SUM(C63,C65,C66,C67,C68),0) -> 274.14 | D69: 138.88 | E69: 48.46 | F69: 0 | G69: 0 | H69: 0 | I69: 0 | J69: =K63 -> 0 | K69: =IF(SUM(K63,K65,K66,K67,K68)>0,SUM(K63,K65,K66,K67,K68),0) -> 0 | L69: 0 | M69: 0 | N69: 0 | O69: 0 | P69: 0 | Q69: 0 | R69: =S63 -> 0 | S69: =IF(SUM(S63,S65,S66,S67,S68)>0,SUM(S63,S65,S66,S67,S68),0) -> 0 | T69: 0 | U69: 0 | V69: 0 | W69: 0 | X69: 0 | Y69: 0 | Z69: =AA63 -> 0 | AA69: =IF(SUM(AA63,AA65,AA66,AA67,AA68)>0,SUM(AA63,AA65,AA66,AA67,AA68),0) -> 0 | AB69: 0 | AC69: 0 | AD69: 0 | AE69: 0 | AF69: 0 | AG69: 0 | AH69: =AI63 -> 0 | AI69: =IF(SUM(AI63,AI65,AI66,AI67,AI68)>0,SUM(AI63,AI65,AI66,AI67,AI68),0) -> 0 | AJ69: 0 | AK69: 0 | AL69: 0 | AM69: 0 | AN69: 0 | AO69: 0
B70: Ending Area [acres] | C70: =IF(C69>0,VLOOKUP(C69,Table.Pool4c.area.volume,2,TRUE),0) -> 586 | D70: 338 | E70: 143 | F70: 0 | G70: 0 | H70: 0 | I70: 0 | J70: =K64 -> 0 | K70: =IF(K69>0,VLOOKUP(K69,Table.Pool4c.area.volume,2,TRUE),0) -> 0 | L70: 0 | M70: 0 | N70: 0 | O70: 0 | P70: 0 | Q70: 0 | R70: =S64 -> 0 | S70: =IF(S69>0,VLOOKUP(S69,Table.Pool4c.area.volume,2,TRUE),0) -> 0 | T70: 0 | U70: 0 | V70: 0 | W70: 0 | X70: 0 | Y70: 0 | Z70: =AA64 -> 0 | AA70: =IF(AA69>0,VLOOKUP(AA69,Table.Pool4c.area.volume,2,TRUE),0) -> 0 | AB70: 0 | AC70: 0 | AD70: 0 | AE70: 0 | AF70: 0 | AG70: 0 | AH70: =AI64 -> 0 | AI70: =IF(AI69>0,VLOOKUP(AI69,Table.Pool4c.area.volume,2,TRUE),0) -> 0 | AJ70: 0 | AK70: 0 | AL70: 0 | AM70: 0 | AN70: 0 | AO70: 0
A72: Unit 5 | B72: Starting Volume [acre-ft] | C72: =ROUND('Previous Data'!C76,2) -> 1013.43 | D72: =C78 -> 844.59 | E72: 664.08 | F72: 462.38 | G72: 143.72 | H72: 0 | I72: 0 | J72: =IF($I$16=0,0,IF(-1*($J$3*(I79/(SUM(I$25,I$34,I$43,I$52,I$61,I$70,I$79,I$88))))<I78,$J$3*(I79/(SUM(I$25,I$34,I$43,I$52,I$61,I$70,I$79,I$88))),-I78)) -> 0 | K72: =ROUND(I78+J72,2) -> 0 | L72: =K78 -> 0 | M72: 0 | N72: 0 | O72: 0 | P72: 0 | Q72: 0 | R72: =IF($Q$16=0,0,IF(-1*($R$3*(Q79/(SUM(Q$25,Q$34,Q$43,Q$52,Q$61,Q$70,Q$79,Q$88))))<Q78,$R$3*(Q79/(SUM(Q$25,Q$34,Q$43,Q$52,Q$61,Q$70,Q$79,Q$88))),-Q78)) -> 0 | S72: =ROUND(Q78+R72,2) -> 0 | T72: =S78 -> 0 | U72: 0 | V72: 0 | W72: 0 | X72: 0 | Y72: 0 | Z72: =IF($Y$16=0,0,IF(-1*($Z$3*(Y79/(SUM(Y$25,Y$34,Y$43,Y$52,Y$61,Y$70,Y$79,Y$88))))<Y78,$Z$3*(Y79/(SUM(Y$25,Y$34,Y$43,Y$52,Y$61,Y$70,Y$79,Y$88))),-Y78)) -> 0 | AA72: =ROUND(Y78+Z72,2) -> 0 | AB72: =AA78 -> 0 | AC72: 0 | AD72: 0 | AE72: 0 | AF72: 0 | AG72: 0 | AH72: =IF($AG$16=0,0,IF(-1*($AH$3*(AG79/(SUM(AG$25,AG$34,AG$43,AG$52,AG$61,AG$70,AG$79,AG$88))))<AG78,$AH$3*(AG79/(SUM(AG$25,AG$34,AG$43,AG$52,AG$61,AG$70,AG$79,AG$88))),-AG78)) -> 0 | AI72: =ROUND(AG78+AH72,2) -> 0 | AJ72: =AI78 -> 0 | AK72: 0 | AL72: 0 | AM72: 0 | AN72: 0 | AO72: 0
B73: Starting Area [acres] | C73: =IF(C72>0,VLOOKUP(C72,Table.Pool5.area.volume,2,TRUE),0) -> 804 | D73: 782 | E73: 754 | F73: 727 | G73: 450 | H73: 0 | I73: 0 | K73: =IF(K72>0,VLOOKUP(K72,Table.Pool5.area.volume,2,TRUE),0) -> 0 | L73: 0 | M73: 0 | N73: 0 | O73: 0 | P73: 0 | Q73: 0 | S73: =IF(S72>0,VLOOKUP(S72,Table.Pool5.area.volume,2,TRUE),0) -> 0 | T73: 0 | U73: 0 | V73: 0 | W73: 0 | X73: 0 | Y73: 0 | AA73: =IF(AA72>0,VLOOKUP(AA72,Table.Pool5.area.volume,2,TRUE),0) -> 0 | AB73: 0 | AC73: 0 | AD73: 0 | AE73: 0 | AF73: 0 | AG73: 0 | AI73: =IF(AI72>0,VLOOKUP(AI72,Table.Pool5.area.volume,2,TRUE),0) -> 0 | AJ73: 0 | AK73: 0 | AL73: 0 | AM73: 0 | AN73: 0 | AO73: 0
B74: Precip [acre-ft] | C74: =ROUND(VLOOKUP(SUM(C72,C76,C75),Table.Pool5.area.volume,2,TRUE)*C5/12,2) -> 63.65 | D74: 103.62 | E74: 113.1 | F74: 61.8 | G74: 44.25 | H74: 0 | I74: 0 | K74: =ROUND(VLOOKUP(SUM(K72,K76,K75),Table.Pool5.area.volume,2,TRUE)*K5/12,2) -> 0 | L74: 0 | M74: 0 | N74: 0 | O74: 0 | P74: 0 | Q74: 0 | S74: =ROUND(VLOOKUP(SUM(S72,S76,S75),Table.Pool5.area.volume,2,TRUE)*S5/12,2) -> 0 | T74: 0 | U74: 0 | V74: 0 | W74: 0 | X74: 0 | Y74: 0 | AA74: =ROUND(VLOOKUP(SUM(AA72,AA76,AA75),Table.Pool5.area.volume,2,TRUE)*AA5/12,2) -> 0 | AB74: 0 | AC74: 0 | AD74: 0 | AE74: 0 | AF74: 0 | AG74: 0 | AI74: =ROUND(VLOOKUP(SUM(AI72,AI76,AI75),Table.Pool5.area.volume,2,TRUE)*AI5/12,2) -> 0 | AJ74: 0 | AK74: 0 | AL74: 0 | AM74: 0 | AN74: 0 | AO74: 0
B75: Runoff [acre-ft] | C75: 0 | D75: 0 | E75: 0 | F75: 0 | G75: 0 | H75: 0 | I75: 0 | K75: 0 | L75: 0 | M75: 0 | N75: 0 | O75: 0 | P75: 0 | Q75: 0 | S75: 0 | T75: 0 | U75: 0 | V75: 0 | W75: 0 | X75: 0 | Y75: 0 | AA75: 0 | AB75: 0 | AC75: 0 | AD75: 0 | AE75: 0 | AF75: 0 | AG75: 0 | AI75: 0 | AJ75: 0 | AK75: 0 | AL75: 0 | AM75: 0 | AN75: 0 | AO75: 0
B76: Pump [acre-ft] | C76: 0 | D76: 0 | E76: 0 | F76: 0 | G76: 0 | H76: 0 | I76: 0 | J76: =SUM(C75:I76) -> 0 | K76: 0 | L76: 0 | M76: 0 | N76: 0 | O76: 0 | P76: 0 | Q76: 0 | R76: =SUM(K75:Q76) -> 0 | S76: 0 | T76: 0 | U76: 0 | V76: 0 | W76: 0 | X76: 0 | Y76: 0 | Z76: =SUM(S75:Y76) -> 0 | AA76: 0 | AB76: 0 | AC76: 0 | AD76: 0 | AE76: 0 | AF76: 0 | AG76: 0 | AH76: =SUM(AA75:AG76) -> 0 | AI76: 0 | AJ76: 0 | AK76: 0 | AL76: 0 | AM76: 0 | AN76: 0 | AO76: 0 | AP76: =SUM(AI75:AO76) -> 0
B77: Evap [acre-ft] | C77: =ROUND(IF(SUM(C72,C76,C75,C74)-(VLOOKUP(SUM(C72,C76,C75),Table.Pool5.area.volume,2,TRUE)*C13/12)>0,(-VLOOKUP(SUM(C72,C76,C75),Table.Pool5.area.volume,2,TRUE)*C13/12),-SUM(C72,C76,C75,C74)),2) -> -232.49 | D77: -284.13 | E77: -314.8 | F77: -380.46 | G77: -187.97 | H77: 0 | I77: 0 | K77: =ROUND(IF(SUM(K72,K76,K75,K74)-(VLOOKUP(SUM(K72,K76,K75),Table.Pool5.area.volume,2,TRUE)*K13/12)>0,(-VLOOKUP(SUM(K72,K76,K75),Table.Pool5.area.volume,2,TRUE)*K13/12),-SUM(K72,K76,K75,K74)),2) -> 0 | L77: 0 | M77: 0 | N77: 0 | O77: 0 | P77: 0 | Q77: 0 | S77: =ROUND(IF(SUM(S72,S76,S75,S74)-(VLOOKUP(SUM(S72,S76,S75),Table.Pool5.area.volume,2,TRUE)*S13/12)>0,(-VLOOKUP(SUM(S72,S76,S75),Table.Pool5.area.volume,2,TRUE)*S13/12),-SUM(S72,S76,S75,S74)),2) -> 0 | T77: 0 | U77: 0 | V77: 0 | W77: 0 | X77: 0 | Y77: 0 | AA77: =ROUND(IF(SUM(AA72,AA76,AA75,AA74)-(VLOOKUP(SUM(AA72,AA76,AA75),Table.Pool5.area.volume,2,TRUE)*AA13/12)>0,(-VLOOKUP(SUM(AA72,AA76,AA75),Table.Pool5.area.volume,2,TRUE)*AA13/12),-SUM(AA72,AA76,AA75,AA74)),2) -> 0 | AB77: 0 | AC77: 0 | AD77: 0 | AE77: 0 | AF77: 0 | AG77: 0 | AI77: =ROUND(IF(SUM(AI72,AI76,AI75,AI74)-(VLOOKUP(SUM(AI72,AI76,AI75),Table.Pool5.area.volume,2,TRUE)*AI13/12)>0,(-VLOOKUP(SUM(AI72,AI76,AI75),Table.Pool5.area.volume,2,TRUE)*AI13/12),-SUM(AI72,AI76,AI75,AI74)),2) -> 0 | AJ77: 0 | AK77: 0 | AL77: 0 | AM77: 0 | AN77: 0 | AO77: 0
B78: Ending Volume [acre-ft] | C78: =IF(SUM(C72,C74,C75,C76,C77)>0,SUM(C72,C74,C75,C76,C77),0) -> 844.59 | D78: 664.08 | E78: 462.38 | F78: 143.72 | G78: 0 | H78: 0 | I78: 0 | J78: =K72 -> 0 | K78: =IF(SUM(K72,K74,K75,K76,K77)>0,SUM(K72,K74,K75,K76,K77),0) -> 0 | L78: 0 | M78: 0 | N78: 0 | O78: 0 | P78: 0 | Q78: 0 | R78: =S72 -> 0 | S78: =IF(SUM(S72,S74,S75,S76,S77)>0,SUM(S72,S74,S75,S76,S77),0) -> 0 | T78: 0 | U78: 0 | V78: 0 | W78: 0 | X78: 0 | Y78: 0 | Z78: =AA72 -> 0 | AA78: =IF(SUM(AA72,AA74,AA75,AA76,AA77)>0,SUM(AA72,AA74,AA75,AA76,AA77),0) -> 0 | AB78: 0 | AC78: 0 | AD78: 0 | AE78: 0 | AF78: 0 | AG78: 0 | AH78: =AI72 -> 0 | AI78: =IF(SUM(AI72,AI74,AI75,AI76,AI77)>0,SUM(AI72,AI74,AI75,AI76,AI77),0) -> 0 | AJ78: 0 | AK78: 0 | AL78: 0 | AM78: 0 | AN78: 0 | AO78: 0
B79: Ending Area [acres] | C79: =IF(C78>0,VLOOKUP(C78,Table.Pool5.area.volume,2,TRUE),0) -> 782 | D79: 754 | E79: 727 | F79: 450 | G79: 0 | H79: 0 | I79: 0 | J79: =K73 -> 0 | K79: =IF(K78>0,VLOOKUP(K78,Table.Pool5.area.volume,2,TRUE),0) -> 0 | L79: 0 | M79: 0 | N79: 0 | O79: 0 | P79: 0 | Q79: 0 | R79: =S73 -> 0 | S79: =IF(S78>0,VLOOKUP(S78,Table.Pool5.area.volume,2,TRUE),0) -> 0 | T79: 0 | U79: 0 | V79: 0 | W79: 0 | X79: 0 | Y79: 0 | Z79: =AA73 -> 0 | AA79: =IF(AA78>0,VLOOKUP(AA78,Table.Pool5.area.volume,2,TRUE),0) -> 0 | AB79: 0 | AC79: 0 | AD79: 0 | AE79: 0 | AF79: 0 | AG79: 0 | AH79: =AI73 -> 0 | AI79: =IF(AI78>0,VLOOKUP(AI78,Table.Pool5.area.volume,2,TRUE),0) -> 0 | AJ79: 0 | AK79: 0 | AL79: 0 | AM79: 0 | AN79: 0 | AO79: 0
A81: Unit 6 | B81: Starting Volume [acre-ft] | C81: =ROUND('Previous Data'!C77,2) -> 945.78 | D81: =C87 -> 797.31 | E81: 640.34 | F81: 467.8 | G81: 201.74 | H81: 34.24 | I81: 5.66 | J81: =IF($I$16=0,0,IF(-1*($J$3*(I88/(SUM(I$25,I$34,I$43,I$52,I$61,I$70,I$79,I$88))))<I87,$J$3*(I88/(SUM(I$25,I$34,I$43,I$52,I$61,I$70,I$79,I$88))),-I87)) -> 0 | K81: =ROUND(I87+J81,2) -> 1 | L81: =K87 -> 1 | M81: 1 | N81: 1 | O81: 1 | P81: 1 | Q81: 1 | R81: =IF($Q$16=0,0,IF(-1*($R$3*(Q88/(SUM(Q$25,Q$34,Q$43,Q$52,Q$61,Q$70,Q$79,Q$88))))<Q87,$R$3*(Q88/(SUM(Q$25,Q$34,Q$43,Q$52,Q$61,Q$70,Q$79,Q$88))),-Q87)) -> 0 | S81: =ROUND(Q87+R81,2) -> 1 | T81: =S87 -> 1 | U81: 1 | V81: 1 | W81: 1 | X81: 1 | Y81: 1 | Z81: =IF($Y$16=0,0,IF(-1*($Z$3*(Y88/(SUM(Y$25,Y$34,Y$43,Y$52,Y$61,Y$70,Y$79,Y$88))))<Y87,$Z$3*(Y88/(SUM(Y$25,Y$34,Y$43,Y$52,Y$61,Y$70,Y$79,Y$88))),-Y87)) -> 0 | AA81: =ROUND(Y87+Z81,2) -> 1 | AB81: =AA87 -> 1 | AC81: 1 | AD81: 1 | AE81: 1 | AF81: 1 | AG81: 1 | AH81: =IF($AG$16=0,0,IF(-1*($AH$3*(AG88/(SUM(AG$25,AG$34,AG$43,AG$52,AG$61,AG$70,AG$79,AG$88))))<AG87,$AH$3*(AG88/(SUM(AG$25,AG$34,AG$43,AG$52,AG$61,AG$70,AG$79,AG$88))),-AG87)) -> 0 | AI81: =ROUND(AG87+AH81,2) -> 1 | AJ81: =AI87 -> 1 | AK81: 1 | AL81: 1 | AM81: 1 | AN81: 1 | AO81: 1
B82: Starting Area [acres] | C82: =IF(C81>0,VLOOKUP(C81,Table.Pool6.area.volume,2,TRUE),0) -> 707 | D82: 680 | E82: 645 | F82: 607 | G82: 461 | H82: 140 | I82: 28 | K82: =IF(K81>0,VLOOKUP(K81,Table.Pool6.area.volume,2,TRUE),0) -> 0 | L82: 0 | M82: 0 | N82: 0 | O82: 0 | P82: 0 | Q82: 0 | S82: =IF(S81>0,VLOOKUP(S81,Table.Pool6.area.volume,2,TRUE),0) -> 0 | T82: 0 | U82: 0 | V82: 0 | W82: 0 | X82: 0 | Y82: 0 | AA82: =IF(AA81>0,VLOOKUP(AA81,Table.Pool6.area.volume,2,TRUE),0) -> 0 | AB82: 0 | AC82: 0 | AD82: 0 | AE82: 0 | AF82: 0 | AG82: 0 | AI82: =IF(AI81>0,VLOOKUP(AI81,Table.Pool6.area.volume,2,TRUE),0) -> 0 | AJ82: 0 | AK82: 0 | AL82: 0 | AM82: 0 | AN82: 0 | AO82: 0
B83: Precip [acre-ft] | C83: =ROUND(VLOOKUP(SUM(C81,C85,C84),Table.Pool6.area.volume,2,TRUE)*C5/12,2) -> 55.97 | D83: 90.1 | E83: 96.75 | F83: 51.6 | G83: 45.33 | H83: 11.9 | I83: 1.38 | K83: =ROUND(VLOOKUP(SUM(K81,K85,K84),Table.Pool6.area.volume,2,TRUE)*K5/12,2) -> 0 | L83: 0 | M83: 0 | N83: 0 | O83: 0 | P83: 0 | Q83: 0 | S83: =ROUND(VLOOKUP(SUM(S81,S85,S84),Table.Pool6.area.volume,2,TRUE)*S5/12,2) -> 0 | T83: 0 | U83: 0 | V83: 0 | W83: 0 | X83: 0 | Y83: 0 | AA83: =ROUND(VLOOKUP(SUM(AA81,AA85,AA84),Table.Pool6.area.volume,2,TRUE)*AA5/12,2) -> 0 | AB83: 0 | AC83: 0 | AD83: 0 | AE83: 0 | AF83: 0 | AG83: 0 | AI83: =ROUND(VLOOKUP(SUM(AI81,AI85,AI84),Table.Pool6.area.volume,2,TRUE)*AI5/12,2) -> 0 | AJ83: 0 | AK83: 0 | AL83: 0 | AM83: 0 | AN83: 0 | AO83: 0
B84: Runoff [acre-ft] | C84: 0 | D84: 0 | E84: 0 | F84: 0 | G84: 0 | H84: 0 | I84: 0 | K84: 0 | L84: 0 | M84: 0 | N84: 0 | O84: 0 | P84: 0 | Q84: 0 | S84: 0 | T84: 0 | U84: 0 | V84: 0 | W84: 0 | X84: 0 | Y84: 0 | AA84: 0 | AB84: 0 | AC84: 0 | AD84: 0 | AE84: 0 | AF84: 0 | AG84: 0 | AI84: 0 | AJ84: 0 | AK84: 0 | AL84: 0 | AM84: 0 | AN84: 0 | AO84: 0
B85: Pump [acre-ft] | C85: 0 | D85: 0 | E85: 0 | F85: 0 | G85: 0 | H85: 0 | I85: 0 | J85: =SUM(C84:I85) -> 0 | K85: 0 | L85: 0 | M85: 0 | N85: 0 | O85: 0 | P85: 0 | Q85: 0 | R85: =SUM(K84:Q85) -> 0 | S85: 0 | T85: 0 | U85: 0 | V85: 0 | W85: 0 | X85: 0 | Y85: 0 | Z85: =SUM(S84:Y85) -> 0 | AA85: 0 | AB85: 0 | AC85: 0 | AD85: 0 | AE85: 0 | AF85: 0 | AG85: 0 | AH85: =SUM(AA84:AG85) -> 0 | AI85: 0 | AJ85: 0 | AK85: 0 | AL85: 0 | AM85: 0 | AN85: 0 | AO85: 0 | AP85: =SUM(AI84:AO85) -> 0
B86: Evap [acre-ft] | C86: =ROUND(IF(SUM(C81,C85,C84,C83)-(VLOOKUP(SUM(C81,C85,C84),Table.Pool6.area.volume,2,TRUE)*C13/12)>0,(-VLOOKUP(SUM(C81,C85,C84),Table.Pool6.area.volume,2,TRUE)*C13/12),-SUM(C81,C85,C84,C83)),2) -> -204.44 | D86: -247.07 | E86: -269.29 | F86: -317.66 | G86: -212.83 | H86: -40.48 | I86: -6.04 | K86: =ROUND(IF(SUM(K81,K85,K84,K83)-(VLOOKUP(SUM(K81,K85,K84),Table.Pool6.area.volume,2,TRUE)*K13/12)>0,(-VLOOKUP(SUM(K81,K85,K84),Table.Pool6.area.volume,2,TRUE)*K13/12),-SUM(K81,K85,K84,K83)),2) -> 0 | L86: 0 | M86: 0 | N86: 0 | O86: 0 | P86: 0 | Q86: 0 | S86: =ROUND(IF(SUM(S81,S85,S84,S83)-(VLOOKUP(SUM(S81,S85,S84),Table.Pool6.area.volume,2,TRUE)*S13/12)>0,(-VLOOKUP(SUM(S81,S85,S84),Table.Pool6.area.volume,2,TRUE)*S13/12),-SUM(S81,S85,S84,S83)),2) -> 0 | T86: 0 | U86: 0 | V86: 0 | W86: 0 | X86: 0 | Y86: 0 | AA86: =ROUND(IF(SUM(AA81,AA85,AA84,AA83)-(VLOOKUP(SUM(AA81,AA85,AA84),Table.Pool6.area.volume,2,TRUE)*AA13/12)>0,(-VLOOKUP(SUM(AA81,AA85,AA84),Table.Pool6.area.volume,2,TRUE)*AA13/12),-SUM(AA81,AA85,AA84,AA83)),2) -> 0 | AB86: 0 | AC86: 0 | AD86: 0 | AE86: 0 | AF86: 0 | AG86: 0 | AI86: =ROUND(IF(SUM(AI81,AI85,AI84,AI83)-(VLOOKUP(SUM(AI81,AI85,AI84),Table.Pool6.area.volume,2,TRUE)*AI13/12)>0,(-VLOOKUP(SUM(AI81,AI85,AI84),Table.Pool6.area.volume,2,TRUE)*AI13/12),-SUM(AI81,AI85,AI84,AI83)),2) -> 0 | AJ86: 0 | AK86: 0 | AL86: 0 | AM86: 0 | AN86: 0 | AO86: 0
B87: Ending Volume [acre-ft] | C87: =IF(SUM(C81,C83,C84,C85,C86)>0,SUM(C81,C83,C84,C85,C86),0) -> 797.31 | D87: 640.34 | E87: 467.8 | F87: 201.74 | G87: 34.24 | H87: 5.66 | I87: 1 | J87: =K81 -> 1 | K87: =IF(SUM(K81,K83,K84,K85,K86)>0,SUM(K81,K83,K84,K85,K86),0) -> 1 | L87: 1 | M87: 1 | N87: 1 | O87: 1 | P87: 1 | Q87: 1 | R87: =S81 -> 1 | S87: =IF(SUM(S81,S83,S84,S85,S86)>0,SUM(S81,S83,S84,S85,S86),0) -> 1 | T87: 1 | U87: 1 | V87: 1 | W87: 1 | X87: 1 | Y87: 1 | Z87: =AA81 -> 1 | AA87: =IF(SUM(AA81,AA83,AA84,AA85,AA86)>0,SUM(AA81,AA83,AA84,AA85,AA86),0) -> 1 | AB87: 1 | AC87: 1 | AD87: 1 | AE87: 1 | AF87: 1 | AG87: 1 | AH87: =AI81 -> 1 | AI87: =IF(SUM(AI81,AI83,AI84,AI85,AI86)>0,SUM(AI81,AI83,AI84,AI85,AI86),0) -> 1 | AJ87: 1 | AK87: 1 | AL87: 1 | AM87: 1 | AN87: 1 | AO87: 1
B88: Ending Area [acres] | C88: =IF(C87>0,VLOOKUP(C87,Table.Pool6.area.volume,2,TRUE),0) -> 680 | D88: 645 | E88: 607 | F88: 461 | G88: 140 | H88: 28 | I88: 0 | J88: =K82 -> 0 | K88: =IF(K87>0,VLOOKUP(K87,Table.Pool6.area.volume,2,TRUE),0) -> 0 | L88: 0 | M88: 0 | N88: 0 | O88: 0 | P88: 0 | Q88: 0 | R88: =S82 -> 0 | S88: =IF(S87>0,VLOOKUP(S87,Table.Pool6.area.volume,2,TRUE),0) -> 0 | T88: 0 | U88: 0 | V88: 0 | W88: 0 | X88: 0 | Y88: 0 | Z88: =AA82 -> 0 | AA88: =IF(AA87>0,VLOOKUP(AA87,Table.Pool6.area.volume,2,TRUE),0) -> 0 | AB88: 0 | AC88: 0 | AD88: 0 | AE88: 0 | AF88: 0 | AG88: 0 | AH88: =AI82 -> 0 | AI88: =IF(AI87>0,VLOOKUP(AI87,Table.Pool6.area.volume,2,TRUE),0) -> 0 | AJ88: 0 | AK88: 0 | AL88: 0 | AM88: 0 | AN88: 0 | AO88: 0
B90: Pan Coefficent | C90: 0.77 | D90: =C91 -> 39202 | E90: =I91 -> 39386 | J90: =VALUE(J91) -> 39539 | Q90: =VALUE(Q91) -> 39752 | R90: =VALUE(R91) -> 39904 | Y90: =VALUE(Y91) -> 40117 | Z90: =VALUE(Z91) -> 40269 | AG90: =VALUE(AG91) -> 40482 | AH90: =VALUE(AH91) -> 40634 | AO90: =VALUE(AO91) -> 40847
B91: =DATE(YEAR(C91),MONTH(C91),DAY(C91-29)) -> 2007-04-01 | C91: 2007-04-30 | D91: 2007-05-31 | E91: 2007-06-30 | F91: 2007-07-31 | G91: 2007-08-31 | H91: 2007-09-30 | I91: 2007-10-31 | J91: =DATE(YEAR(K91),MONTH(K91),DAY(K91-29)) -> 2008-04-01 | K91: =DATE(YEAR(C91)+1,MONTH(C91),DAY(C91)) -> 2008-04-30 | L91: =DATE(YEAR(D91)+1,MONTH(D91),DAY(D91)) -> 2008-05-31 | M91: 2008-06-30 | N91: 2008-07-31 | O91: 2008-08-31 | P91: 2008-09-30 | Q91: 2008-10-31 | R91: =DATE(YEAR(S91),MONTH(S91),DAY(S91-29)) -> 2009-04-01 | S91: =DATE(YEAR(K91)+1,MONTH(K91),DAY(K91)) -> 2009-04-30 | T91: 2009-05-31 | U91: 2009-06-30 | V91: 2009-07-31 | W91: 2009-08-31 | X91: 2009-09-30 | Y91: 2009-10-31 | Z91: =DATE(YEAR(AA91),MONTH(AA91),DAY(AA91-29)) -> 2010-04-01 | AA91: =DATE(YEAR(S91)+1,MONTH(S91),DAY(S91)) -> 2010-04-30 | AB91: 2010-05-31 | AC91: 2010-06-30 | AD91: 2010-07-31 | AE91: 2010-08-31 | AF91: 2010-09-30 | AG91: 2010-10-31 | AH91: =DATE(YEAR(AI91),MONTH(AI91),DAY(AI91-29)) -> 2011-04-01 | AI91: =DATE(YEAR(AA91)+1,MONTH(AA91),DAY(AA91)) -> 2011-04-30 | AJ91: 2011-05-31 | AK91: 2011-06-30 | AL91: 2011-07-31 | AM91: 2011-08-31 | AN91: 2011-09-30 | AO91: 2011-10-31
A92: Unit 1 | B92: Volume | C92: 2280 | D92: 2280 | E92: 2280 | F92: 2280 | G92: 2280 | H92: 2280 | I92: 2280 | J92: 2280 | K92: 2280 | L92: 2280 | M92: 2280 | N92: 2280 | O92: 2280 | P92: 2280 | Q92: 2280 | R92: 2280 | S92: 2280 | T92: 2280 | U92: 2280 | V92: 2280 | W92: 2280 | X92: 2280 | Y92: 2280 | Z92: 2280 | AA92: 2280 | AB92: 2280 | AC92: 2280 | AD92: 2280 | AE92: 2280 | AF92: 2280 | AG92: 2280 | AH92: 2280 | AI92: 2280 | AJ92: 2280 | AK92: 2280 | AL92: 2280 | AM92: 2280 | AN92: 2280 | AO92: 2280 | AP92: 2280
B93: Area | C93: 529 | D93: 529 | E93: 529 | F93: 529 | G93: 529 | H93: 529 | I93: 529 | J93: 529 | K93: 529 | L93: 529 | M93: 529 | N93: 529 | O93: 529 | P93: 529 | Q93: 529 | R93: 529 | S93: 529 | T93: 529 | U93: 529 | V93: 529 | W93: 529 | X93: 529 | Y93: 529 | Z93: 529 | AA93: 529 | AB93: 529 | AC93: 529 | AD93: 529 | AE93: 529 | AF93: 529 | AG93: 529 | AH93: 529 | AI93: 529 | AJ93: 529 | AK93: 529 | AL93: 529 | AM93: 529 | AN93: 529 | AO93: 529 | AP93: 529
A94: Unit 2 | B94: Volume | C94: 2092 | D94: 2092 | E94: 2092 | F94: 2092 | G94: 2092 | H94: 2092 | I94: 2092 | J94: 2092 | K94: 2092 | L94: 2092 | M94: 2092 | N94: 2092 | O94: 2092 | P94: 2092 | Q94: 2092 | R94: 2092 | S94: 2092 | T94: 2092 | U94: 2092 | V94: 2092 | W94: 2092 | X94: 2092 | Y94: 2092 | Z94: 2092 | AA94: 2092 | AB94: 2092 | AC94: 2092 | AD94: 2092 | AE94: 2092 | AF94: 2092 | AG94: 2092 | AH94: 2092 | AI94: 2092 | AJ94: 2092 | AK94: 2092 | AL94: 2092 | AM94: 2092 | AN94: 2092 | AO94: 2092 | AP94: 2092
B95: Area | C95: 601 | D95: 601 | E95: 601 | F95: 601 | G95: 601 | H95: 601 | I95: 601 | J95: 601 | K95: 601 | L95: 601 | M95: 601 | N95: 601 | O95: 601 | P95: 601 | Q95: 601 | R95: 601 | S95: 601 | T95: 601 | U95: 601 | V95: 601 | W95: 601 | X95: 601 | Y95: 601 | Z95: 601 | AA95: 601 | AB95: 601 | AC95: 601 | AD95: 601 | AE95: 601 | AF95: 601 | AG95: 601 | AH95: 601 | AI95: 601 | AJ95: 601 | AK95: 601 | AL95: 601 | AM95: 601 | AN95: 601 | AO95: 601 | AP95: 601
A96: Unit 3 | B96: Volume | C96: 4084 | D96: 4084 | E96: 4084 | F96: 4084 | G96: 4084 | H96: 4084 | I96: 4084 | J96: 4084 | K96: 4084 | L96: 4084 | M96: 4084 | N96: 4084 | O96: 4084 | P96: 4084 | Q96: 4084 | R96: 4084 | S96: 4084 | T96: 4084 | U96: 4084 | V96: 4084 | W96: 4084 | X96: 4084 | Y96: 4084 | Z96: 4084 | AA96: 4084 | AB96: 4084 | AC96: 4084 | AD96: 4084 | AE96: 4084 | AF96: 4084 | AG96: 4084 | AH96: 4084 | AI96: 4084 | AJ96: 4084 | AK96: 4084 | AL96: 4084 | AM96: 4084 | AN96: 4084 | AO96: 4084 | AP96: 4084
B97: Area | C97: 1204 | D97: 1204 | E97: 1204 | F97: 1204 | G97: 1204 | H97: 1204 | I97: 1204 | J97: 1204 | K97: 1204 | L97: 1204 | M97: 1204 | N97: 1204 | O97: 1204 | P97: 1204 | Q97: 1204 | R97: 1204 | S97: 1204 | T97: 1204 | U97: 1204 | V97: 1204 | W97: 1204 | X97: 1204 | Y97: 1204 | Z97: 1204 | AA97: 1204 | AB97: 1204 | AC97: 1204 | AD97: 1204 | AE97: 1204 | AF97: 1204 | AG97: 1204 | AH97: 1204 | AI97: 1204 | AJ97: 1204 | AK97: 1204 | AL97: 1204 | AM97: 1204 | AN97: 1204 | AO97: 1204 | AP97: 1204
A98: Unit 4a | B98: Volume | C98: 248.5 | D98: 248.5 | E98: 248.5 | F98: 248.5 | G98: 248.5 | H98: 248.5 | I98: 248.5 | J98: 248.5 | K98: 248.5 | L98: 248.5 | M98: 248.5 | N98: 248.5 | O98: 248.5 | P98: 248.5 | Q98: 248.5 | R98: 248.5 | S98: 248.5 | T98: 248.5 | U98: 248.5 | V98: 248.5 | W98: 248.5 | X98: 248.5 | Y98: 248.5 | Z98: 248.5 | AA98: 248.5 | AB98: 248.5 | AC98: 248.5 | AD98: 248.5 | AE98: 248.5 | AF98: 248.5 | AG98: 248.5 | AH98: 248.5 | AI98: 248.5 | AJ98: 248.5 | AK98: 248.5 | AL98: 248.5 | AM98: 248.5 | AN98: 248.5 | AO98: 248.5 | AP98: 248.5
B99: Area | C99: 299 | D99: 299 | E99: 299 | F99: 299 | G99: 299 | H99: 299 | I99: 299 | J99: 299 | K99: 299 | L99: 299 | M99: 299 | N99: 299 | O99: 299 | P99: 299 | Q99: 299 | R99: 299 | S99: 299 | T99: 299 | U99: 299 | V99: 299 | W99: 299 | X99: 299 | Y99: 299 | Z99: 299 | AA99: 299 | AB99: 299 | AC99: 299 | AD99: 299 | AE99: 299 | AF99: 299 | AG99: 299 | AH99: 299 | AI99: 299 | AJ99: 299 | AK99: 299 | AL99: 299 | AM99: 299 | AN99: 299 | AO99: 299 | AP99: 299
A100: Unit 4b | B100: Volume | C100: 692 | D100: 692 | E100: 692 | F100: 692 | G100: 692 | H100: 692 | I100: 692 | J100: 692 | K100: 692 | L100: 692 | M100: 692 | N100: 692 | O100: 692 | P100: 692 | Q100: 692 | R100: 692 | S100: 692 | T100: 692 | U100: 692 | V100: 692 | W100: 692 | X100: 692 | Y100: 692 | Z100: 692 | AA100: 692 | AB100: 692 | AC100: 692 | AD100: 692 | AE100: 692 | AF100: 692 | AG100: 692 | AH100: 692 | AI100: 692 | AJ100: 692 | AK100: 692 | AL100: 692 | AM100: 692 | AN100: 692 | AO100: 692 | AP100: 692
B101: Area | C101: 341 | D101: 341 | E101: 341 | F101: 341 | G101: 341 | H101: 341 | I101: 341 | J101: 341 | K101: 341 | L101: 341 | M101: 341 | N101: 341 | O101: 341 | P101: 341 | Q101: 341 | R101: 341 | S101: 341 | T101: 341 | U101: 341 | V101: 341 | W101: 341 | X101: 341 | Y101: 341 | Z101: 341 | AA101: 341 | AB101: 341 | AC101: 341 | AD101: 341 | AE101: 341 | AF101: 341 | AG101: 341 | AH101: 341 | AI101: 341 | AJ101: 341 | AK101: 341 | AL101: 341 | AM101: 341 | AN101: 341 | AO101: 341 | AP101: 341
A102: Unit 4c | B102: Volume | C102: 1353 | D102: 1353 | E102: 1353 | F102: 1353 | G102: 1353 | H102: 1353 | I102: 1353 | J102: 1353 | K102: 1353 | L102: 1353 | M102: 1353 | N102: 1353 | O102: 1353 | P102: 1353 | Q102: 1353 | R102: 1353 | S102: 1353 | T102: 1353 | U102: 1353 | V102: 1353 | W102: 1353 | X102: 1353 | Y102: 1353 | Z102: 1353 | AA102: 1353 | AB102: 1353 | AC102: 1353 | AD102: 1353 | AE102: 1353 | AF102: 1353 | AG102: 1353 | AH102: 1353 | AI102: 1353 | AJ102: 1353 | AK102: 1353 | AL102: 1353 | AM102: 1353 | AN102: 1353 | AO102: 1353 | AP102: 1353
B103: Area | C103: 1377 | D103: 1377 | E103: 1377 | F103: 1377 | G103: 1377 | H103: 1377 | I103: 1377 | J103: 1377 | K103: 1377 | L103: 1377 | M103: 1377 | N103: 1377 | O103: 1377 | P103: 1377 | Q103: 1377 | R103: 1377 | S103: 1377 | T103: 1377 | U103: 1377 | V103: 1377 | W103: 1377 | X103: 1377 | Y103: 1377 | Z103: 1377 | AA103: 1377 | AB103: 1377 | AC103: 1377 | AD103: 1377 | AE103: 1377 | AF103: 1377 | AG103: 1377 | AH103: 1377 | AI103: 1377 | AJ103: 1377 | AK103: 1377 | AL103: 1377 | AM103: 1377 | AN103: 1377 | AO103: 1377 | AP103: 1377
A104: Unit 5 | B104: Volume | C104: 3071 | D104: 3071 | E104: 3071 | F104: 3071 | G104: 3071 | H104: 3071 | I104: 3071 | J104: 3071 | K104: 3071 | L104: 3071 | M104: 3071 | N104: 3071 | O104: 3071 | P104: 3071 | Q104: 3071 | R104: 3071 | S104: 3071 | T104: 3071 | U104: 3071 | V104: 3071 | W104: 3071 | X104: 3071 | Y104: 3071 | Z104: 3071 | AA104: 3071 | AB104: 3071 | AC104: 3071 | AD104: 3071 | AE104: 3071 | AF104: 3071 | AG104: 3071 | AH104: 3071 | AI104: 3071 | AJ104: 3071 | AK104: 3071 | AL104: 3071 | AM104: 3071 | AN104: 3071 | AO104: 3071 | AP104: 3071
B105: Area | C105: 912 | D105: 912 | E105: 912 | F105: 912 | G105: 912 | H105: 912 | I105: 912 | J105: 912 | K105: 912 | L105: 912 | M105: 912 | N105: 912 | O105: 912 | P105: 912 | Q105: 912 | R105: 912 | S105: 912 | T105: 912 | U105: 912 | V105: 912 | W105: 912 | X105: 912 | Y105: 912 | Z105: 912 | AA105: 912 | AB105: 912 | AC105: 912 | AD105: 912 | AE105: 912 | AF105: 912 | AG105: 912 | AH105: 912 | AI105: 912 | AJ105: 912 | AK105: 912 | AL105: 912 | AM105: 912 | AN105: 912 | AO105: 912 | AP105: 912
A106: Unit 6 | B106: Volume | C106: 2866 | D106: 2866 | E106: 2866 | F106: 2866 | G106: 2866 | H106: 2866 | I106: 2866 | J106: 2866 | K106: 2866 | L106: 2866 | M106: 2866 | N106: 2866 | O106: 2866 | P106: 2866 | Q106: 2866 | R106: 2866 | S106: 2866 | T106: 2866 | U106: 2866 | V106: 2866 | W106: 2866 | X106: 2866 | Y106: 2866 | Z106: 2866 | AA106: 2866 | AB106: 2866 | AC106: 2866 | AD106: 2866 | AE106: 2866 | AF106: 2866 | AG106: 2866 | AH106: 2866 | AI106: 2866 | AJ106: 2866 | AK106: 2866 | AL106: 2866 | AM106: 2866 | AN106: 2866 | AO106: 2866 | AP106: 2866
B107: Area | C107: 865 | D107: 865 | E107: 865 | F107: 865 | G107: 865 | H107: 865 | I107: 865 | J107: 865 | K107: 865 | L107: 865 | M107: 865 | N107: 865 | O107: 865 | P107: 865 | Q107: 865 | R107: 865 | S107: 865 | T107: 865 | U107: 865 | V107: 865 | W107: 865 | X107: 865 | Y107: 865 | Z107: 865 | AA107: 865 | AB107: 865 | AC107: 865 | AD107: 865 | AE107: 865 | AF107: 865 | AG107: 865 | AH107: 865 | AI107: 865 | AJ107: 865 | AK107: 865 | AL107: 865 | AM107: 865 | AN107: 865 | AO107: 865 | AP107: 865
J110: Year 1 | K110: Unit 1 | L110: Unit 2 | M110: Unit 3 | N110: Unit 4a | O110: Unit 4b | P110: Unit 4c | Q110: Unit 5 | R110: Unit 6 | S110: Total
J111: Gain/Loss during Previous Winter [acre-feet]
J113: Initial Values (April 1)
J114: Volume [acre-feet] | K114: =C18 -> 752.4 | L114: =C27 -> 690.36 | M114: =C36 -> 1347.72 | N114: =C45 -> 81.99 | O114: =C54 -> 228.32 | P114: =C63 -> 446.34 | Q114: =C72 -> 1013.43 | R114: =C81 -> 945.78 | S114: =SUM(K114:R114) -> 5506.34
J115: Surface Area [acres] | K115: =C19 -> 348 | L115: =C28 -> 475 | M115: =C37 -> 1026 | N115: =C46 -> 186 | O115: =C55 -> 243.89 | P115: =C64 -> 820 | Q115: =C73 -> 804 | R115: =C82 -> 707 | S115: =SUM(K115:R115) -> 4609.89
J116: Percent Full | K116: =K114/2280 -> 0.33 | L116: =L114/2092 -> 0.33 | M116: =M114/4084 -> 0.33 | N116: =N114/248.45 -> 0.3300060374 | O116: =O114/691.87 -> 0.3300041915 | P116: =P114/1352.55 -> 0.329998891 | Q116: =Q114/3071 -> 0.33 | R116: =R114/2866 -> 0.33 | S116: =S114/16685.87 -> 0.3300001738
J117: Inflows [acre-feet]
J118: Runoff | K118: =SUM(C21:I21) -> 157 | L118: =SUM(C30:I30) -> 0 | M118: =SUM(C39:I39) -> 0 | N118: =SUM(C48:I48) -> 0 | O118: =SUM(C57:I57) -> 0 | P118: =SUM(C66:I66) -> 0 | Q118: =SUM(C75:I75) -> 0 | R118: =SUM(C84:I84) -> 0 | S118: =SUM(K118:R118) -> 157
J119: Pumped | K119: =SUM(C22:I22) -> 0 | L119: =SUM(C31:I31) -> 0 | M119: =SUM(C40:I40) -> 0 | N119: =SUM(C49:I49) -> 0 | O119: =SUM(C58:I58) -> 0 | P119: =SUM(C67:I67) -> 0 | Q119: =SUM(C76:I76) -> 0 | R119: =SUM(C85:I85) -> 0 | S119: =SUM(K119:R119) -> 0
J120: Precipi-tation | K120: =SUM(C20:I20) -> 218.36 | L120: =SUM(C29:I29) -> 219.16 | M120: =SUM(C38:I38) -> 508.09 | N120: =SUM(C47:I47) -> 40.78 | O120: =SUM(C56:I56) -> 94.97 | P120: =SUM(C65:I65) -> 205.43 | Q120: =SUM(C74:I74) -> 386.42 | R120: =SUM(C83:I83) -> 353.03 | S120: =SUM(K120:R120) -> 2026.24
J121: Total | K121: =SUM(K118:K120) -> 375.36 | L121: 219.16 | M121: 508.09 | N121: 40.78 | O121: 94.97 | P121: 205.43 | Q121: 386.42 | R121: 353.03 | S121: 2183.24
J122: Outflow [acre-feet]
J123: Evapor-ation | K123: =SUM(C23:I23) -> -814.91 | L123: =SUM(C32:I32) -> -792.78 | M123: =SUM(C41:I41) -> -1855.81 | N123: =SUM(C50:I50) -> -122.77 | O123: =SUM(C59:I59) -> -323.29 | P123: =SUM(C68:I68) -> -651.77 | Q123: =SUM(C77:I77) -> -1399.85 | R123: =SUM(C86:I86) -> -1297.81 | S123: =SUM(K123:R123) -> -7258.99
J124: Ending Values (October 31)
J125: Volume [acre-feet] | K125: =I24 -> 312.85 | L125: =I33 -> 116.74 | M125: =I42 -> 0 | N125: =I51 -> 0 | O125: =I60 -> 0 | P125: =I69 -> 0 | Q125: =I78 -> 0 | R125: =I87 -> 1 | S125: =SUM(K125:R125) -> 430.59
J126: Surface Area [acres] | K126: =I16 -> 376 | L126: =I34 -> 140 | M126: =I43 -> 0 | N126: =I52 -> 0 | O126: =I61 -> 0 | P126: =I70 -> 0 | Q126: =I79 -> 0 | R126: =I88 -> 0 | S126: =SUM(K126:R126) -> 516
J127: Percent Full | K127: =K125/2280 -> 0.1372149123 | L127: =L125/2092 -> 0.05580305927 | M127: =M125/4084 -> 0 | N127: =N125/248.45 -> 0 | O127: =O125/691.87 -> 0 | P127: =P125/1352.55 -> 0 | Q127: =Q125/3071 -> 0 | R127: =R125/2866 -> 0.0003489183531 | S127: =S125/16685.87 -> 0.02580566671
J158: Year 2 | K158: Unit 1 | L158: Unit 2 | M158: Unit 3 | N158: Unit 4a | O158: Unit 4b | P158: Unit 4c | Q158: Unit 5 | R158: Unit 6 | S158: Total
J159: Gain/Loss during Previous Winter [acre-feet]
J161: Initial Values (April 1)
J162: Volume [acre-feet] | K162: =K$18 -> 187.32 | L162: =K$27 -> 42.27 | M162: =K$36 -> 0 | N162: =K$45 -> 0 | O162: =K$54 -> 0 | P162: =K$63 -> 0 | Q162: =K$72 -> 0 | R162: =K$81 -> 1 | S162: =SUM(K162:R162) -> 230.59
J163: Surface Area [acres] | K163: =K$19 -> 181 | L163: =K$28 -> 86 | M163: =K$37 -> 0 | N163: =K$46 -> 0 | O163: =K$55 -> 0 | P163: =K$64 -> 0 | Q163: =K$73 -> 0 | R163: =K$82 -> 0 | S163: =SUM(K163:R163) -> 267
J164: Percent Full | K164: =K162/2280 -> 0.08215789474 | L164: =L162/2092 -> 0.02020554493 | M164: =M162/4084 -> 0 | N164: =N162/248.45 -> 0 | O164: =O162/691.87 -> 0 | P164: =P162/1352.55 -> 0 | Q164: =Q162/3071 -> 0 | R164: =R162/2866 -> 0.0003489183531 | S164: =S162/16685.87 -> 0.0138194772
J165: Inflows [acre-feet]
J166: Runoff | K166: =SUM(K$21:Q$21) -> 353 | L166: =SUM(K$30:Q$30) -> 0 | M166: =SUM(K$39:Q$39) -> 0 | N166: =SUM(K$48:Q$48) -> 0 | O166: =SUM(K$57:Q$57) -> 0 | P166: =SUM(K$66:Q$66) -> 0 | Q166: =SUM(K$75:Q$75) -> 0 | R166: =SUM(K$84:Q$84) -> 0 | S166: =SUM(K166:R166) -> 353
J167: Pumped | K167: =SUM(K$22:Q$22) -> 0 | L167: =SUM(K$31:Q$31) -> 0 | M167: =SUM(K$40:Q$40) -> 0 | N167: =SUM(K$49:Q$49) -> 0 | O167: =SUM(K$58:Q$58) -> 0 | P167: =SUM(K$67:Q$67) -> 0 | Q167: =SUM(K$76:Q$76) -> 0 | R167: =SUM(K$85:Q$85) -> 0 | S167: =SUM(K167:R167) -> 0
J168: Precipi-tation | K168: =SUM(K$20:Q$20) -> 199.38 | L168: =SUM(K$29:Q$29) -> 30.69 | M168: =SUM(K$38:Q$38) -> 0 | N168: =SUM(K$47:Q$47) -> 0 | O168: =SUM(K$56:Q$56) -> 0 | P168: =SUM(K$65:Q$65) -> 0 | Q168: =SUM(K$74:Q$74) -> 0 | R168: =SUM(K$83:Q$83) -> 0 | S168: =SUM(K168:R168) -> 230.07
J169: Total | K169: =SUM(K166:K168) -> 552.38 | L169: 30.69 | M169: 0 | N169: 0 | O169: 0 | P169: 0 | Q169: 0 | R169: 0 | S169: 583.07
J170: Outflow [acre-feet]
J171: Evapor-ation | K171: =SUM(K$23:Q$23) -> -574.1 | L171: =SUM(K$32:Q$32) -> -72.96 | M171: =SUM(K$41:Q$41) -> 0 | N171: =SUM(K$50:Q$50) -> 0 | O171: =SUM(K$59:Q$59) -> 0 | P171: =SUM(K$68:Q$68) -> 0 | Q171: =SUM(K$77:Q$77) -> 0 | R171: =SUM(K$86:Q$86) -> 0 | S171: =SUM(K171:R171) -> -647.06
J172: Ending Values (October 31)
J173: Volume [acre-feet] | K173: =Q$24 -> 165.6 | L173: =Q$33 -> 0 | M173: =Q$42 -> 0 | N173: =Q$51 -> 0 | O173: =Q$60 -> 0 | P173: =Q$69 -> 0 | Q173: =Q$78 -> 0 | R173: =Q$87 -> 1 | S173: =SUM(K173:R173) -> 166.6
J174: Surface Area [acres] | K174: =Q$25 -> 168 | L174: =Q$34 -> 0 | M174: =Q$43 -> 0 | N174: =Q$52 -> 0 | O174: =Q$61 -> 0 | P174: =Q$70 -> 0 | Q174: =Q$79 -> 0 | R174: =Q$88 -> 0 | S174: =SUM(K174:R174) -> 168
J175: Percent Full | K175: =K173/2280 -> 0.07263157895 | L175: =L173/2092 -> 0 | M175: =M173/4084 -> 0 | N175: =N173/248.45 -> 0 | O175: =O173/691.87 -> 0 | P175: =P173/1352.55 -> 0 | Q175: =Q173/3071 -> 0 | R175: =R173/2866 -> 0.0003489183531 | S175: =S173/16685.87 -> 0.009984495864
J212: Year 3 | K212: Unit 1 | L212: Unit 2 | M212: Unit 3 | N212: Unit 4a | O212: Unit 4b | P212: Unit 4c | Q212: Unit 5 | R212: Unit 6 | S212: Total
J213: Gain/Loss during Previous Winter [acre-feet]
J215: Initial Values (April 1)
J216: Volume [acre-feet] | K216: =S$18 -> 0 | L216: =S$27 -> 0 | M216: =S$36 -> 0 | N216: =S$45 -> 0 | O216: =S$54 -> 0 | P216: =S$63 -> 0 | Q216: =S$72 -> 0 | R216: =S$81 -> 1 | S216: =SUM(K216:R216) -> 1
J217: Surface Area [acres] | K217: =S$19 -> 0 | L217: =S$28 -> 0 | M217: =S$37 -> 0 | N217: =S$46 -> 0 | O217: =S$55 -> 0 | P217: =S$64 -> 0 | Q217: =S$73 -> 0 | R217: =S$82 -> 0 | S217: =SUM(K217:R217) -> 0
J218: Percent Full | K218: =K216/2280 -> 0 | L218: =L216/2092 -> 0 | M218: =M216/4084 -> 0 | N218: =N216/248.45 -> 0 | O218: =O216/691.87 -> 0 | P218: =P216/1352.55 -> 0 | Q218: =Q216/3071 -> 0 | R218: =R216/2866 -> 0.0003489183531 | S218: =S216/16685.87 -> 5.993094756e-05
J219: Inflows [acre-feet]
J220: Runoff | K220: =SUM(S$21:Y$21) -> 0 | L220: =SUM(S$30:Y$30) -> 0 | M220: =SUM(S$39:Y$39) -> 0 | N220: =SUM(S$48:Y$48) -> 0 | O220: =SUM(S$57:Y$57) -> 0 | P220: =SUM(S$66:Y$66) -> 0 | Q220: =SUM(S$75:Y$75) -> 0 | R220: =SUM(S$84:Y$84) -> 0 | S220: =SUM(K220:R220) -> 0
J221: Pumped | K221: =SUM(S$22:Y$22) -> 0 | L221: =SUM(S$31:Y$31) -> 0 | M221: =SUM(S$40:Y$40) -> 0 | N221: =SUM(S$49:Y$49) -> 0 | O221: =SUM(S$58:Y$58) -> 0 | P221: =SUM(S$67:Y$67) -> 0 | Q221: =SUM(S$76:Y$76) -> 0 | R221: =SUM(S$85:Y$85) -> 0 | S221: =SUM(K221:R221) -> 0
J222: Precipi-tation | K222: =SUM(S$20:Y$20) -> 0 | L222: =SUM(S$29:Y$29) -> 0 | M222: =SUM(S$38:Y$38) -> 0 | N222: =SUM(S$47:Y$47) -> 0 | O222: =SUM(S$56:Y$56) -> 0 | P222: =SUM(S$65:Y$65) -> 0 | Q222: =SUM(S$74:Y$74) -> 0 | R222: =SUM(S$83:Y$83) -> 0 | S222: =SUM(K222:R222) -> 0
J223: Total | K223: =SUM(K220:K222) -> 0 | L223: 0 | M223: 0 | N223: 0 | O223: 0 | P223: 0 | Q223: 0 | R223: 0 | S223: 0
J224: Outflow [acre-feet]
J225: Evapor-ation | K225: =SUM(S$23:Y$23) -> 0 | L225: =SUM(S$32:Y$32) -> 0 | M225: =SUM(S$41:Y$41) -> 0 | N225: =SUM(S$50:Y$50) -> 0 | O225: =SUM(S$59:Y$59) -> 0 | P225: =SUM(S$68:Y$68) -> 0 | Q225: =SUM(S$77:Y$77) -> 0 | R225: =SUM(S$86:Y$86) -> 0 | S225: =SUM(K225:R225) -> 0
J226: Ending Values (October 31)
J227: Volume [acre-feet] | K227: =Y$24 -> 0 | L227: =Y$33 -> 0 | M227: =Y$42 -> 0 | N227: =Y$51 -> 0 | O227: =Y$60 -> 0 | P227: =Y$69 -> 0 | Q227: =Y$78 -> 0 | R227: =Y$87 -> 1 | S227: =SUM(K227:R227) -> 1
J228: Surface Area [acres] | K228: =Y$25 -> 0 | L228: =Y$34 -> 0 | M228: =Y$43 -> 0 | N228: =Y$52 -> 0 | O228: =Y$61 -> 0 | P228: =Y$70 -> 0 | Q228: =Y$79 -> 0 | R228: =Y$88 -> 0 | S228: =SUM(K228:R228) -> 0
J229: Percent Full | K229: =K227/2280 -> 0 | L229: =L227/2092 -> 0 | M229: =M227/4084 -> 0 | N229: =N227/248.45 -> 0 | O229: =O227/691.87 -> 0 | P229: =P227/1352.55 -> 0 | Q229: =Q227/3071 -> 0 | R229: =R227/2866 -> 0.0003489183531 | S229: =S227/16685.87 -> 5.993094756e-05
J263: Year 4 | K263: Unit 1 | L263: Unit 2 | M263: Unit 3 | N263: Unit 4a | O263: Unit 4b | P263: Unit 4c | Q263: Unit 5 | R263: Unit 6 | S263: Total
J264: Gain/Loss during Previous Winter [acre-feet]
J266: Initial Values (April 1)
J267: Volume [acre-feet] | K267: =AA$18 -> 0 | L267: =AA$27 -> 0 | M267: =AA$36 -> 0 | N267: =AA$45 -> 0 | O267: =AA$54 -> 0 | P267: =AA$63 -> 0 | Q267: =AA$72 -> 0 | R267: =AA$81 -> 1 | S267: =SUM(K267:R267) -> 1
J268: Surface Area [acres] | K268: =AA$19 -> 0 | L268: =AA$28 -> 0 | M268: =AA$37 -> 0 | N268: =AA$46 -> 0 | O268: =AA$55 -> 0 | P268: =AA$64 -> 0 | Q268: =AA$73 -> 0 | R268: =AA$82 -> 0 | S268: =SUM(K268:R268) -> 0
J269: Percent Full | K269: =K267/2280 -> 0 | L269: =L267/2092 -> 0 | M269: =M267/4084 -> 0 | N269: =N267/248.45 -> 0 | O269: =O267/691.87 -> 0 | P269: =P267/1352.55 -> 0 | Q269: =Q267/3071 -> 0 | R269: =R267/2866 -> 0.0003489183531 | S269: =S267/16685.87 -> 5.993094756e-05
J270: Inflows [acre-feet]
J271: Runoff | K271: =SUM(AA$21:AG$21) -> 0 | L271: =SUM(AA$30:AG$30) -> 0 | M271: =SUM(AA$39:AG$39) -> 0 | N271: =SUM(AA$48:AG$48) -> 0 | O271: =SUM(AA$57:AG$57) -> 0 | P271: =SUM(AA$66:AG$66) -> 0 | Q271: =SUM(AA$75:AG$75) -> 0 | R271: =SUM(AA$84:AG$84) -> 0 | S271: =SUM(K271:R271) -> 0
J272: Pumped | K272: =SUM(AA$22:AG$22) -> 0 | L272: =SUM(AA$31:AG$31) -> 0 | M272: =SUM(AA$40:AG$40) -> 0 | N272: =SUM(AA$49:AG$49) -> 0 | O272: =SUM(AA$58:AG$58) -> 0 | P272: =SUM(AA$67:AG$67) -> 0 | Q272: =SUM(AA$76:AG$76) -> 0 | R272: =SUM(AA$85:AG$85) -> 0 | S272: =SUM(K272:R272) -> 0
J273: Precipi-tation | K273: =SUM(AA$20:AG$20) -> 0 | L273: =SUM(AA$29:AG$29) -> 0 | M273: =SUM(AA$38:AG$38) -> 0 | N273: =SUM(AA$47:AG$47) -> 0 | O273: =SUM(AA$56:AG$56) -> 0 | P273: =SUM(AA$65:AG$65) -> 0 | Q273: =SUM(AA$74:AG$74) -> 0 | R273: =SUM(AA$83:AG$83) -> 0 | S273: =SUM(K273:R273) -> 0
J274: Total | K274: =SUM(K271:K273) -> 0 | L274: 0 | M274: 0 | N274: 0 | O274: 0 | P274: 0 | Q274: 0 | R274: 0 | S274: 0
J275: Outflow [acre-feet]
J276: Evapor-ation | K276: =SUM(AA$23:AG$23) -> 0 | L276: =SUM(AA$32:AG$32) -> 0 | M276: =SUM(AA$41:AG$41) -> 0 | N276: =SUM(AA$50:AG$50) -> 0 | O276: =SUM(AA$59:AG$59) -> 0 | P276: =SUM(AA$68:AG$68) -> 0 | Q276: =SUM(AA$77:AG$77) -> 0 | R276: =SUM(AA$86:AG$86) -> 0 | S276: =SUM(K276:R276) -> 0
J277: Ending Values (October 31)
J278: Volume [acre-feet] | K278: =AG$24 -> 0 | L278: =AG$33 -> 0 | M278: =AG$42 -> 0 | N278: =AG$51 -> 0 | O278: =AG$60 -> 0 | P278: =AG$69 -> 0 | Q278: =AG$78 -> 0 | R278: =AG$87 -> 1 | S278: =SUM(K278:R278) -> 1
J279: Surface Area [acres] | K279: =AG$25 -> 0 | L279: =AG$34 -> 0 | M279: =AG$43 -> 0 | N279: =AG$52 -> 0 | O279: =AG$61 -> 0 | P279: =AG$70 -> 0 | Q279: =AG$79 -> 0 | R279: =AG$88 -> 0 | S279: =SUM(K279:R279) -> 0
J280: Percent Full | K280: =K278/2280 -> 0 | L280: =L278/2092 -> 0 | M280: =M278/4084 -> 0 | N280: =N278/248.45 -> 0 | O280: =O278/691.87 -> 0 | P280: =P278/1352.55 -> 0 | Q280: =Q278/3071 -> 0 | R280: =R278/2866 -> 0.0003489183531 | S280: =S278/16685.87 -> 5.993094756e-05
J318: Year 5 | K318: Unit 1 | L318: Unit 2 | M318: Unit 3 | N318: Unit 4a | O318: Unit 4b | P318: Unit 4c | Q318: Unit 5 | R318: Unit 6 | S318: Total
J319: Gain/Loss during Previous Winter [acre-feet]
J321: Initial Values (April 1)
J322: Volume [acre-feet] | K322: =AI$18 -> 0 | L322: =AI$27 -> 0 | M322: =AI$36 -> 0 | N322: =AI$45 -> 0 | O322: =AI$54 -> 0 | P322: =AI$63 -> 0 | Q322: =AI$72 -> 0 | R322: =AI$81 -> 1 | S322: =SUM(K322:R322) -> 1
J323: Surface Area [acres] | K323: =AI$19 -> 0 | L323: =AI$28 -> 0 | M323: =AI$37 -> 0 | N323: =AI$46 -> 0 | O323: =AI$55 -> 0 | P323: =AI$64 -> 0 | Q323: =AI$73 -> 0 | R323: =AI$82 -> 0 | S323: =SUM(K323:R323) -> 0
J324: Percent Full | K324: =K322/2280 -> 0 | L324: =L322/2092 -> 0 | M324: =M322/4084 -> 0 | N324: =N322/248.45 -> 0 | O324: =O322/691.87 -> 0 | P324: =P322/1352.55 -> 0 | Q324: =Q322/3071 -> 0 | R324: =R322/2866 -> 0.0003489183531 | S324: =S322/16685.87 -> 5.993094756e-05
J325: Inflows [acre-feet]
J326: Runoff | K326: =SUM(AI$21:AO$21) -> 0 | L326: =SUM(AI$30:AO$30) -> 0 | M326: =SUM(AI$39:AO$39) -> 0 | N326: =SUM(AI$48:AO$48) -> 0 | O326: =SUM(AI$57:AO$57) -> 0 | P326: =SUM(AI$66:AO$66) -> 0 | Q326: =SUM(AI$75:AO$75) -> 0 | R326: =SUM(AI$84:AO$84) -> 0 | S326: =SUM(K326:R326) -> 0
J327: Pumped | K327: =SUM(AI$22:AO$22) -> 0 | L327: =SUM(AI$31:AO$31) -> 0 | M327: =SUM(AI$40:AO$40) -> 0 | N327: =SUM(AI$49:AO$49) -> 0 | O327: =SUM(AI$58:AO$58) -> 0 | P327: =SUM(AI$67:AO$67) -> 0 | Q327: =SUM(AI$76:AO$76) -> 0 | R327: =SUM(AI$85:AO$85) -> 0 | S327: =SUM(K327:R327) -> 0
J328: Precipi-tation | K328: =SUM(AI$20:AO$20) -> 0 | L328: =SUM(AI$29:AO$29) -> 0 | M328: =SUM(AI$38:AO$38) -> 0 | N328: =SUM(AI$47:AO$47) -> 0 | O328: =SUM(AI$56:AO$56) -> 0 | P328: =SUM(AI$65:AO$65) -> 0 | Q328: =SUM(AI$74:AO$74) -> 0 | R328: =SUM(AI$83:AO$83) -> 0 | S328: =SUM(K328:R328) -> 0
J329: Total | K329: =SUM(K326:K328) -> 0 | L329: 0 | M329: 0 | N329: 0 | O329: 0 | P329: 0 | Q329: 0 | R329: 0 | S329: 0
J330: Outflow [acre-feet]
J331: Evapor-ation | K331: =SUM(AI$23:AO$23) -> 0 | L331: =SUM(AI$32:AO$32) -> 0 | M331: =SUM(AI$41:AO$41) -> 0 | N331: =SUM(AI$50:AO$50) -> 0 | O331: =SUM(AI$59:AO$59) -> 0 | P331: =SUM(AI$68:AO$68) -> 0 | Q331: =SUM(AI$77:AO$77) -> 0 | R331: =SUM(AI$86:AO$86) -> 0 | S331: =SUM(K331:R331) -> 0
J332: Ending Values (October 31)
J333: Volume [acre-feet] | K333: =AO$24 -> 0 | L333: =AO$33 -> 0 | M333: =AO$42 -> 0 | N333: =AO$51 -> 0 | O333: =AO$60 -> 0 | P333: =AO$69 -> 0 | Q333: =AO$78 -> 0 | R333: =AO$87 -> 1 | S333: =SUM(K333:R333) -> 1
J334: Surface Area [acres] | K334: =AO$25 -> 0 | L334: =AO$34 -> 0 | M334: =AO$43 -> 0 | N334: =AO$52 -> 0 | O334: =AO$61 -> 0 | P334: =AO$70 -> 0 | Q334: =AO$79 -> 0 | R334: =AO$88 -> 0 | S334: =SUM(K334:R334) -> 0
J335: Percent Full | K335: =K333/2280 -> 0 | L335: =L333/2092 -> 0 | M335: =M333/4084 -> 0 | N335: =N333/248.45 -> 0 | O335: =O333/691.87 -> 0 | P335: =P333/1352.55 -> 0 | Q335: =Q333/3071 -> 0 | R335: =R333/2866 -> 0.0003489183531 | S335: =S333/16685.87 -> 5.993094756e-05

Sheet Area.Volume Tables
A1: Unit 1 | D1: Unit 2 | G1: Unit 3 | J1: Unit 4a | M1: Unit 4b | P1: Unit 4c | S1: Unit 5 | V1: Unit 6
A2: Volume | B2: Area | C2: Stage | D2: Volume | E2: Area | F2: Stage | G2: Volume | H2: Area | I2: Stage | J2: Volume | K2: Area | L2: Stage | M2: Volume | N2: Area | O2: Stage | P2: Volume | Q2: Area | R2: Stage | S2: Volume | T2: Area | U2: Stage | V2: Volume | W2: Area | X2: Stage | Y2: Password=flood
A3: (acre-feet) | B3: (acres) | C3: (feet) | D3: (acre-feet) | E3: (acres) | F3: (feet) | G3: (acre-feet) | H3: (acres) | I3: (feet) | J3: (acre-feet) | K3: (acres) | L3: (feet) | M3: (acre-feet) | N3: (acres) | O3: (feet) | P3: (acre-feet) | Q3: (acres) | R3: (feet) | S3: (acre-feet) | T3: (acres) | U3: (feet) | V3: (acre-feet) | W3: (acres) | X3: (feet)
A4: 0 | B4: 0 | D4: 0 | E4: 0 | G4: 0 | H4: 0 | P4: 0 | Q4: 0 | S4: 0 | T4: 0
A5: 0 | B5: 0 | C5: 3621.6 | D5: 0 | E5: 0 | F5: 3618 | G5: 0 | H5: 0 | I5: 3614.2 | L5: 3615.4 | M5: 0 | N5: 0 | O5: 3614.8 | P5: 0 | Q5: 0 | R5: 3613.4 | S5: 0 | T5: 0 | U5: 3614.8 | V5: 0 | W5: 0 | X5: 3614.4
A6: 0 | B6: 0 | C6: =C5+0.05 -> 3621.65 | D6: 0 | E6: 0 | F6: =F5+0.05 -> 3618.05 | G6: 0 | H6: 0 | I6: =I5+0.05 -> 3614.25 | J6: 0 | K6: 0 | L6: =L5+0.05 -> 3615.45 | M6: 0.65 | N6: 6 | O6: =O5+0.1 -> 3614.9 | P6: 0 | Q6: 0 | R6: =R5+0.05 -> 3613.45 | S6: 0 | T6: 0 | U6: =U5+0.05 -> 3614.85 | V6: 1.18 | W6: 23 | X6: =X5+0.05 -> 3614.45
A7: 0 | B7: 0 | C7: =C6+0.05 -> 3621.7 | D7: 3 | E7: 17 | F7: =F6+0.05 -> 3618.1 | G7: 1.2 | H7: 12 | I7: =I6+0.05 -> 3614.3 | J7: 1.15 | K7: 17 | L7: =L6+0.05 -> 3615.5 | M7: 1.34 | N7: 10.7 | O7: =O6+0.1 -> 3615 | P7: 0.6 | Q7: 6 | R7: =R6+0.05 -> 3613.5 | S7: 0.7 | T7: 7 | U7: =U6+0.05 -> 3614.9 | V7: 2.35 | W7: 25 | X7: =X6+0.05 -> 3614.5
A8: 0 | B8: 0 | C8: 3621.75 | D8: 5 | E8: 22 | F8: 3618.15 | G8: 1.8 | H8: 12 | I8: 3614.35 | J8: 2.28 | K8: 22 | L8: 3615.55 | M8: 6 | N8: 38 | O8: 3615.1 | P8: 0.9 | Q8: 6 | R8: 3613.55 | S8: 1.08 | T8: 23 | U8: 3614.95 | V8: 3.68 | W8: 26 | X8: 3614.55
A9: 8 | B9: 18 | C9: 3621.8 | D9: 6 | E9: 27 | F9: 3618.2 | G9: 2.4 | H9: 12 | I9: 3614.4 | J9: 3.4 | K9: 28 | L9: 3615.6 | M9: 9.25 | N9: 68.43 | O9: 3615.2 | P9: 1.2 | Q9: 6 | R9: 3613.6 | S9: 2.72 | T9: 39 | U9: 3615 | V9: 5 | W9: 28 | X9: 3614.6
A10: 10 | B10: 23 | C10: 3621.85 | D10: 8 | E10: 32 | F10: 3618.25 | G10: 3 | H10: 12 | I10: 3614.45 | J10: 5.15 | K10: 35 | L10: 3615.65 | M10: 18 | N10: 91 | O10: 3615.3 | P10: 1.5 | Q10: 6 | R10: 3613.65 | S10: 7.77 | T10: 101 | U10: 3615.05 | V10: 7.05 | W10: 41 | X10: 3614.65
A11: 13 | B11: 28 | C11: 3621.9 | D11: 10 | E11: 37 | F11: 3618.3 | G11: 3.6 | H11: 12 | I11: 3614.5 | J11: 6.9 | K11: 42 | L11: 3615.7 | M11: 27.53 | N11: 114.34 | O11: 3615.4 | P11: 1.8 | Q11: 6 | R11: 3613.7 | S11: 12.82 | T11: 163 | U11: 3615.1 | V11: 9.1 | W11: 54 | X11: 3614.7
A12: 15 | B12: 33 | C12: 3621.95 | D12: 12 | E12: 42 | F12: 3618.35 | G12: 4.35 | H12: 14 | I12: 3614.55 | J12: 9.38 | K12: 50 | L12: 3615.75 | M12: 41 | N12: 140 | O12: 3615.5 | P12: 2.35 | Q12: 11 | R12: 3613.75 | S12: 24.42 | T12: 232 | U12: 3615.15 | V12: 12.45 | W12: 67 | X12: 3614.75
A13: 18 | B13: 38 | C13: 3622 | D13: 14 | E13: 47 | F13: 3618.4 | G13: 5.05 | H13: 17 | I13: 3614.6 | J13: 11.85 | K13: 57 | L13: 3615.8 | M13: 55.67 | N13: 167.09 | O13: 3615.6 | P13: 2.95 | Q13: 17 | R13: 3613.8 | S13: 36.02 | T13: 262 | U13: 3615.2 | V13: 15.8 | W13: 80 | X13: 3614.8
A14: 21 | B14: 42 | C14: 3622.05 | D14: 15 | E14: 52 | F14: 3618.45 | G14: 6.4 | H14: 27 | I14: 3614.65 | J14: 15.43 | K14: 72 | L14: 3615.85 | M14: 73.9 | N14: 182.9 | O14: 3615.7 | P14: 4.25 | Q14: 26 | R14: 3613.85 | S14: 50.42 | T14: 288 | U14: 3615.25 | V14: 20.8 | W14: 100 | X14: 3614.85
A15: 24 | B15: 46 | C15: 3622.1 | D15: 19 | E15: 57 | F15: 3618.5 | G15: 7.75 | H15: 37 | I15: 3614.7 | J15: 19 | K15: 86 | L15: 3615.9 | M15: 92.26 | N15: 198.79 | O15: 3615.8 | P15: 5.55 | Q15: 35 | R15: 3613.9 | S15: 64.82 | T15: 314 | U15: 3615.3 | V15: 25.8 | W15: 120 | X15: 3614.9
A16: 27 | B16: 51 | C16: 3622.15 | D16: 23 | E16: 62 | F16: 3618.55 | G16: 11.6 | H16: 62 | I16: 3614.75 | J16: 24.03 | K16: 101 | L16: 3615.95 | M16: 113 | N16: 209 | O16: 3615.9 | P16: 7.75 | Q16: 44 | R16: 3613.95 | S16: 81.82 | T16: 340 | U16: 3615.35 | V16: 32.8 | W16: 140 | X16: 3614.95
A17: 30 | B17: 56 | C17: 3622.2 | D17: 26 | E17: 67 | F17: 3618.6 | G17: 13.9 | H17: 86 | I17: 3614.8 | J17: 29.05 | K17: 115 | L17: 3616 | M17: 134.14 | N17: 220.02 | O17: 3616 | P17: 10 | Q17: 54 | R17: 3614 | S17: 98.82 | T17: 366 | U17: 3615.4 | V17: 39.8 | W17: 160 | X17: 3615
A18: 34 | B18: 61 | C18: 3622.25 | D18: 30 | E18: 72 | F18: 3618.65 | G18: 21.15 | H18: 145 | I18: 3614.85 | J18: 35.43 | K18: 127 | L18: 3616.05 | M18: 161.84 | N18: 227.27 | O18: 3616.1 | P18: 13.4 | Q18: 67 | R18: 3614.05 | S18: 119.22 | T18: 408 | U18: 3615.45 | V18: 49.73 | W18: 198 | X18: 3615.05
A19: 38 | B19: 66 | C19: 3622.3 | D19: 33 | E19: 76 | F19: 3618.7 | G19: 28.4 | H19: 204 | I19: 3614.9 | J19: 41.8 | K19: 140 | L19: 3616.1 | M19: 179.69 | N19: 235.52 | O19: 3616.2 | P19: 16.75 | Q19: 81 | R19: 3614.1 | S19: 139.63 | T19: 450 | U19: 3615.5 | V19: 59.65 | W19: 237 | X19: 3615.1
A20: 43 | B20: 70 | C20: 3622.35 | D20: 38 | E20: 81 | F20: 3618.75 | G20: 41.55 | H20: 263 | I20: 3614.95 | J20: 49.45 | K20: 153 | L20: 3616.15 | M20: 203.6 | N20: 239 | O20: 3616.3 | P20: 21.5 | Q20: 95 | R20: 3614.15 | S20: 164.25 | T20: 492 | U20: 3615.55 | V20: 73.43 | W20: 275 | X20: 3615.15
A21: 47 | B21: 74 | C21: 3622.4 | D21: 42 | E21: 86 | F21: 3618.8 | G21: 54.7 | H21: 322 | I21: 3615 | J21: 57.1 | K21: 166 | L21: 3616.2 | M21: 227.63 | N21: 243.89 | O21: 3616.4 | P21: 26.2 | Q21: 108 | R21: 3614.2 | S21: 188.87 | T21: 535 | U21: 3615.6 | V21: 87.2 | W21: 314 | X21: 3615.2
A22: 52 | B22: 79 | C22: 3622.45 | D22: 47 | E22: 91 | F22: 3618.85 | G22: 72.55 | H22: 357 | I22: 3615.05 | J22: 35.9 | K22: 176 | L22: 3616.25 | M22: 252 | N22: 248 | O22: 3616.5 | P22: 34.2 | Q22: 120 | R22: 3614.25 | S22: 217.22 | T22: 567 | U22: 3615.65 | V22: 104.43 | W22: 344 | X22: 3615.25
A23: 56 | B23: 84 | C23: 3622.5 | D23: 52 | E23: 96 | F23: 3618.9 | G23: 90.4 | H23: 392 | I23: 3615.1 | J23: 74.7 | K23: 186 | L23: 3616.3 | M23: 277.21 | N23: 251.86 | O23: 3616.6 | P23: 38.15 | Q23: 131 | R23: 3614.3 | S23: 245.57 | T23: 599 | U23: 3615.7 | V23: 121.65 | W23: 375 | X23: 3615.3
A24: 60 | B24: 89 | C24: 3622.55 | D24: 57 | E24: 101 | F24: 3618.95 | G24: 111.75 | H24: 427 | I24: 3615.15 | J24: 84.5 | K24: 196 | L24: 3616.35 | M24: 302.8 | N24: 256 | O24: 3616.7 | P24: 45.25 | Q24: 143 | R24: 3614.35 | S24: 277.17 | T24: 636 | U24: 3615.75 | V24: 141.95 | W24: 405 | X24: 3615.35
A25: 64 | B25: 94 | C25: 3622.6 | D25: 63 | E25: 105 | F25: 3619 | G25: 133.1 | H25: 462 | I25: 3615.2 | J25: 94.3 | K25: 206 | L25: 3616.4 | M25: 328.56 | N25: 261.67 | O25: 3616.8 | P25: 52.4 | Q25: 154 | R25: 3614.4 | S25: 308.72 | T25: 664 | U25: 3615.8 | V25: 162.2 | W25: 436 | X25: 3615.4
A26: 69 | B26: 98 | C26: 3622.65 | D26: 69 | E26: 110 | F26: 3619.05 | G26: 158.1 | H26: 500 | I26: 3615.25 | J26: 105.1 | K26: 216 | L26: 3616.45 | M26: 355 | N26: 268 | O26: 3616.9 | P26: 61.25 | Q26: 181 | R26: 3614.45 | S26: 342.7 | T26: 679 | U26: 3615.85 | V26: 185.25 | W26: 461 | X26: 3615.45
A27: 73 | B27: 102 | C27: 3622.7 | D27: 76 | E27: 115 | F27: 3619.1 | G27: 183.1 | H27: 538 | I27: 3615.3 | J27: 115.9 | K27: 226 | L27: 3616.5 | M27: 382.24 | N27: 275.15 | O27: 3617 | P27: 70.5 | Q27: 208 | R27: 3614.5 | S27: 376.67 | T27: 695 | U27: 3615.9 | V27: 208.3 | W27: 486 | X27: 3615.5
A28: 78 | B28: 107 | C28: 3622.75 | D28: 82 | E28: 120 | F28: 3619.15 | G28: 211.9 | H28: 566 | I28: 3615.35 | J28: 127.73 | K28: 236 | L28: 3616.55 | M28: 411.6 | N28: 282 | O28: 3617.1 | P28: 82.25 | Q28: 225 | R28: 3614.55 | S28: 412.22 | T28: 711 | U28: 3615.95 | V28: 233.85 | W28: 511 | X28: 3615.55
A29: 84 | B29: 112 | C29: 3622.8 | D29: 89 | E29: 125 | F29: 3619.2 | G29: 240.7 | H29: 614 | I29: 3615.4 | J29: 139.55 | K29: 247 | L29: 3616.6 | M29: 440.9 | N29: 289 | O29: 3617.2 | P29: 94 | Q29: 262 | R29: 3614.6 | S29: 447.77 | T29: 727 | U29: 3616 | V29: 259.4 | W29: 536 | X29: 3615.6
A30: 90 | B30: 117 | C30: 3622.85 | D30: 98 | E30: 130 | F30: 3619.25 | G30: 273.35 | H30: 653 | I30: 3615.45 | J30: 152.2 | K30: 253 | L30: 3616.65 | M30: 470.3 | N30: 296 | O30: 3617.3 | P30: 109 | Q30: 281 | R30: 3614.65 | S30: 484.4 | T30: 732 | U30: 3616.05 | V30: 286.73 | W30: 546 | X30: 3615.65
A31: 95 | B31: 122 | C31: 3622.9 | D31: 108 | E31: 135 | F31: 3619.3 | G31: 306 | H31: 692 | I31: 3615.5 | J31: 164.85 | K31: 259 | L31: 3616.7 | M31: 499.7 | N31: 303 | O31: 3617.4 | P31: 124 | Q31: 338 | R31: 3614.7 | S31: 521.02 | T31: 738 | U31: 3616.1 | V31: 314.05 | W31: 557 | X31: 3615.7
A32: 100 | B32: 126 | C32: 3622.95 | D32: 115 | E32: 140 | F32: 3619.35 | G32: 342.5 | H32: 732 | I32: 3615.55 | J32: 178.43 | K32: 265 | L32: 3616.75 | M32: 528.81 | N32: 311.11 | O32: 3617.5 | P32: 142.8 | Q32: 376 | R32: 3614.75 | S32: 558.2 | T32: 743 | U32: 3616.15 | V32: 342.4 | W32: 567 | X32: 3615.75
A33: 105 | B33: 130 | C33: 3623 | D33: 121 | E33: 145 | F33: 3619.4 | G33: 379.15 | H33: 771 | I33: 3615.6 | J33: 191.4 | K33: 272 | L33: 3616.8 | M33: 561.4 | N33: 317 | O33: 3617.6 | P33: 161.6 | Q33: 414 | R33: 3614.8 | S33: 595.37 | T33: 749 | U33: 3616.2 | V33: 370.85 | W33: 577 | X33: 3615.8
A34: 111 | B34: 135 | C34: 3623.05 | D34: 127 | E34: 150 | F34: 3619.45 | G34: 418 | H34: 791 | I34: 3615.65 | J34: 205.33 | K34: 278 | L34: 3616.85 | M34: 594 | N34: 323 | O34: =O33+0.1 -> 3617.7 | P34: 184.45 | Q34: 457 | R34: 3614.85 | S34: 633.1 | T34: 754 | U34: 3616.25 | V34: 400.1 | W34: 587 | X34: 3615.85
A35: 116 | B35: 140 | C35: 3623.1 | D35: 133 | E35: 154 | F35: 3619.5 | G35: 458.55 | H35: 817 | I35: 3615.7 | J35: 219.25 | K35: 285 | L35: 3616.9 | M35: 626.6 | N35: 329 | O35: 3617.8 | P35: 207.3 | Q35: 500 | R35: 3614.9 | S35: 670.82 | T35: 760 | U35: 3616.3 | V35: 429.45 | W35: 597 | X35: 3615.9
A36: 123 | B36: 145 | C36: 3623.15 | D36: 140 | E36: 159 | F36: 3619.55 | G36: 500.5 | H36: 841 | I36: 3615.75 | J36: 233.85 | K36: 292 | L36: 3616.95 | M36: 659.2 | N36: 335 | O36: 3617.9 | P36: 234.45 | Q36: 543 | R36: 3614.95 | S36: 709.1 | T36: 765 | U36: 3616.35 | V36: 459.8 | W36: 607 | X36: 3615.95
A37: 129 | B37: 149 | C37: 3623.2 | D37: 147 | E37: 164 | F37: 3619.6 | G37: 542.6 | H37: 864 | I37: 3615.8 | J37: 248.45 | K37: 299 | L37: 3617 | M37: 691.87 | N37: 341.12 | O37: =O36+0.1 -> 3618 | P37: 261.6 | Q37: 586 | R37: 3615 | S37: 747.37 | T37: 771 | U37: 3616.4 | V37: 490.15 | W37: 617 | X37: 3616
A38: 137 | B38: 154 | C38: 3623.25 | D38: 155 | E38: 169 | F38: 3619.65 | G38: 586.5 | H38: 879 | I38: 3615.85 | P38: 293.85 | Q38: 645 | R38: 3615.05 | S38: 786.2 | T38: 776 | U38: 3616.45 | V38: 521.35 | W38: 624 | X38: 3616.05
A39: 144 | B39: 159 | C39: 3623.3 | D39: 163 | E39: 174 | F39: 3619.7 | G39: 630.45 | H39: 893 | I39: 3615.9 | P39: 326.05 | Q39: 703 | R39: 3615.1 | S39: 825.02 | T39: 782 | U39: 3616.5 | V39: 552.55 | W39: 631 | X39: 3616.1
A40: 151 | B40: 164 | C40: 3623.35 | D40: 171 | E40: 179 | F40: 3619.75 | G40: 675.8 | H40: 908 | I40: 3615.95 | P40: 364.15 | Q40: 762 | R40: 3615.15 | S40: 864.4 | T40: 787 | U40: 3616.55 | V40: 584.45 | W40: 638 | X40: 3616.15
A41: 159 | B41: 168 | C41: 3623.4 | D41: 180 | E41: 184 | F41: 3619.8 | G41: 721.2 | H41: 922 | I41: 3616 | P41: 402.2 | Q41: 820 | R41: 3615.2 | S41: 903.77 | T41: 793 | U41: 3616.6 | V41: 616.35 | W41: 645 | X41: 3616.2
A42: 167 | B42: 172 | C42: 3623.45 | D42: 189 | E42: 189 | F42: 3619.85 | G42: 767.7 | H42: 930 | I42: 3616.05 | P42: 446.75 | Q42: 891 | R42: 3615.25 | S42: 943.7 | T42: 798 | U42: 3616.65 | V42: 648.95 | W42: 652 | X42: 3616.25
A43: 175 | B43: 176 | C43: 3623.5 | D43: 197 | E43: 193 | F43: 3619.9 | G43: 814.25 | H43: 939 | I43: 3616.1 | P43: 491.35 | Q43: 963 | R43: 3615.3 | S43: 983.62 | T43: 804 | U43: 3616.7 | V43: 681.55 | W43: 659 | X43: 3616.3
A44: 184 | B44: 181 | C44: 3623.55 | D44: 205 | E44: 198 | F44: 3619.95 | G44: 861.6 | H44: 947 | I44: 3616.15 | P44: 544.1 | Q44: 1035 | R44: 3615.35 | S44: 1024.1 | T44: 809 | U44: 3616.75 | V44: 714.85 | W44: 666 | X44: 3616.35
A45: 193 | B45: 186 | C45: 3623.6 | D45: 213 | E45: 203 | F45: 3620 | G45: 909 | H45: 956 | I45: 3616.2 | P45: 596.85 | Q45: 1107 | R45: 3615.4 | S45: 1064.57 | T45: 815 | U45: 3616.8 | V45: 748.15 | W45: 673 | X45: 3616.4
A46: 198 | B46: 191 | C46: 3623.65 | D46: 221 | E46: 208 | F46: 3620.05 | G46: 957.3 | H46: 964 | I46: 3616.25 | P46: 653.7 | Q46: 1137 | R46: 3615.45 | S46: 1105.6 | T46: 820 | U46: 3616.85 | V46: 782.15 | W46: 680 | X46: 3616.45
A47: 203 | B47: 196 | C47: 3623.7 | D47: 230 | E47: 213 | F47: 3620.1 | G47: 1005.45 | H47: 973 | I47: 3616.3 | P47: 710.5 | Q47: 1166 | R47: 3615.5 | S47: 1146.62 | T47: 826 | U47: 3616.9 | V47: 816.15 | W47: 685 | X47: 3616.5
A48: 213 | B48: 201 | C48: 3623.75 | D48: 239 | E48: 218 | F48: 3620.15 | G48: 1054.5 | H48: 981 | I48: 3616.35 | P48: 770.3 | Q48: 1196 | R48: 3615.55 | S48: 1188.1 | T48: 829 | U48: 3616.95 | V48: 850.83 | W48: 694 | X48: 3616.55
A49: 223 | B49: 206 | C49: 3623.8 | D49: 251 | E49: 224 | F49: 3620.2 | G49: 1103.6 | H49: 990 | I49: 3616.4 | P49: 830.1 | Q49: 1226 | R49: =R48+0.05 -> 3615.6 | S49: 1229.57 | T49: 833 | U49: 3617 | V49: 885.5 | W49: 700 | X49: 3616.6
A50: 234 | B50: 210 | C50: 3623.85 | D50: 261 | E50: 229 | F50: 3620.25 | G50: 1153.6 | H50: 999 | I50: 3616.45 | P50: 892.45 | Q50: 1247 | R50: 3615.65 | S50: 1271.32 | T50: 835 | U50: 3617.05 | V50: 920.83 | W50: 707 | X50: 3616.65
A51: 245 | B51: 215 | C51: 3623.9 | D51: 273 | E51: 236 | F51: 3620.3 | G51: 1203.5 | H51: 1008 | I51: 3616.5 | P51: 954.8 | Q51: 1268 | R51: 3615.7 | S51: 1313.07 | T51: 837 | U51: 3617.1 | V51: 965.15 | W51: 713 | X51: 3616.7
A52: 258 | B52: 219 | C52: 3623.95 | D52: 284 | E52: 242 | F52: 3620.35 | G52: 1254.4 | H52: 1017 | I52: 3616.55 | P52: 1019.25 | Q52: 1289 | R52: 3615.75 | S52: 1355.02 | T52: 839 | U52: 3617.15 | V52: 1001.13 | W52: 720 | X52: 3616.75
A53: 270 | B53: 224 | C53: 3624 | D53: 296 | E53: 249 | F53: 3620.4 | G53: 1305.2 | H53: 1026 | I53: 3616.6 | P53: 1083.75 | Q53: 1311 | R53: 3615.8 | S53: 1396.97 | T53: 841 | U53: 3617.2 | V53: 1028.1 | W53: 726 | X53: 3616.8
A54: 283 | B54: 228 | C54: 3624.05 | D54: 308 | E54: 256 | F54: 3620.45 | G54: 1356.95 | H54: 1035 | I54: 3616.65 | P54: 1150.1 | Q54: 1327 | R54: 3615.85 | S54: 1439.12 | T54: 843 | U54: 3617.25 | V54: 1064.73 | W54: 733 | X54: 3616.85
A55: 296 | B55: 232 | C55: 3624.1 | D55: 320 | E55: 264 | F55: 3620.5 | G55: 1408.7 | H55: 1044 | I55: 3616.7 | P55: 1216.5 | Q55: 1344 | R55: 3615.9 | S55: 1481.27 | T55: 845 | U55: 3617.3 | V55: 1101.35 | W55: 739 | X55: 3616.9
A56: 310 | B56: 236 | C56: 3624.15 | D56: 334 | E56: 272 | F56: 3620.55 | G56: 1461.35 | H56: 1053 | I56: 3616.75 | P56: 1285.4 | Q56: 1360 | R56: =R55+0.05 -> 3615.95 | S56: 1523.62 | T56: 847 | U56: 3617.35 | V56: 1138.63 | W56: 746 | X56: 3616.95
A57: 323 | B57: 244 | C57: 3624.2 | D57: 347 | E57: 280 | F57: 3620.6 | G57: 1514 | H57: 1062 | I57: 3616.8 | P57: 1352.55 | Q57: 1377 | R57: =R56+0.05 -> 3616 | S57: 1656.97 | T57: 849 | U57: 3617.4 | V57: 1175.9 | W57: 751 | X57: 3617
A58: 338 | B58: 248 | C58: 3624.25 | D58: 362 | E58: 282 | F58: 3620.65 | G58: 1567.55 | H58: 1071 | I58: 3616.85 | S58: 1608.52 | T58: 851 | U58: 3617.45 | V58: 1213.6 | W58: 754 | X58: 3617.05
A59: 352 | B59: 252 | C59: 3624.3 | D59: 376 | E59: 294 | F59: 3620.7 | G59: 1621.1 | H59: 1080 | I59: 3616.9 | S59: 1651.07 | T59: 853 | U59: 3617.5 | V59: 1251 | W59: 757 | X59: 3617.1
A60: 367 | B60: 257 | C60: 3624.35 | D60: 382 | E60: 304 | F60: 3620.75 | G60: 1675.55 | H60: 1089 | I60: 3616.95 | S60: 1693.85 | T60: 855 | U60: 3617.55 | V60: 1289.3 | W60: 760 | X60: 3617.15
A61: 382 | B61: 262 | C61: 3624.4 | D61: 408 | E61: 314 | F61: 3620.8 | G61: 1730 | H61: 1098 | I61: 3617 | S61: 1736.62 | T61: 858 | U61: =U60+0.05 -> 3617.6 | V61: 1327.3 | W61: 763 | X61: 3617.2
A62: 397 | B62: 267 | C62: 3624.45 | D62: 428 | E62: 320 | F62: 3620.85 | G62: 1785.1 | H62: 1103 | I62: 3617.05 | S62: 1779.65 | T62: 860 | U62: 3617.65 | V62: 1365.6 | W62: 766 | X62: 3617.25
A63: 412 | B63: 272 | C63: 3624.5 | D63: 447 | E63: 336 | F63: 3620.9 | G63: 1840.25 | H63: 1107 | I63: 3617.1 | S63: 1822.67 | T63: 863 | U63: 3617.7 | V63: 1403.9 | W63: 770 | X63: 3617.3
A64: 427 | B64: 276 | C64: 3624.55 | D64: 458 | E64: 350 | F64: 3620.95 | G64: 1895.8 | H64: 1111 | I64: 3617.15 | S64: 1856.96 | T64: 865 | U64: 3617.75 | V64: 1442.55 | W64: 773 | X64: 3617.35
A65: 442 | B65: 280 | C65: 3624.6 | D65: 491 | E65: 364 | F65: 3621 | G65: 1951.4 | H65: 1116 | I65: 3617.2 | S65: 1909.22 | T65: 868 | U65: 3617.8 | V65: 1481.2 | W65: 776 | X65: 3617.4
A66: 457 | B66: 281 | C66: 3624.65 | D66: 513 | E66: 383 | F66: 3621.05 | G66: 2007.4 | H66: 1120 | I66: 3617.25 | S66: 1952.75 | T66: 870 | U66: 3617.85 | V66: 1520.15 | W66: 779 | X66: 3617.45
A67: 471 | B67: 290 | C67: 3624.7 | D67: 538 | E67: 402 | F67: 3621.1 | G67: 2063.45 | H67: 1125 | I67: 3617.3 | S67: 1996.27 | T67: 873 | U67: 3617.9 | V67: 1559.1 | W67: 782 | X67: 3617.5
A68: 486 | B68: 295 | C68: 3624.75 | D68: 560 | E68: 419 | F68: 3621.15 | G68: 2119.9 | H68: 1129 | I68: 3617.35 | S68: 2040.02 | T68: 875 | U68: 3617.95 | V68: 1598.35 | W68: 786 | X68: 3617.55
A69: 501 | B69: 300 | C69: 3624.8 | D69: 583 | E69: 432 | F69: 3621.2 | G69: 2176.4 | H69: 1134 | I69: 3617.4 | S69: 2083.77 | T69: 877 | U69: 3618 | V69: 1637.6 | W69: 788 | X69: 3617.6
A70: 516 | B70: 304 | C70: 3624.85 | D70: 605 | E70: 445 | F70: 3621.25 | G70: 2233.35 | H70: 1139 | I70: 3617.45 | S70: 2127.22 | T70: 879 | U70: 3618.05 | V70: 1677.15 | W70: 791 | X70: 3617.65
A71: 530 | B71: 308 | C71: =C70+0.05 -> 3624.9 | D71: 628 | E71: 458 | F71: =F70+0.05 -> 3621.3 | G71: 2290.3 | H71: 1144 | I71: =I70+0.05 -> 3617.5 | S71: 2171.67 | T71: 881 | U71: =U70+0.05 -> 3618.1 | V71: 1716.7 | W71: 794 | X71: =X70+0.05 -> 3617.7
A72: 546 | B72: 313 | C72: 3624.95 | D72: 650 | E72: 466 | F72: 3621.35 | G72: 2347.75 | H72: 1149 | I72: 3617.55 | S72: 2215.82 | T72: 883 | U72: 3618.15 | V72: 1756.55 | W72: 797 | X72: 3617.75
A73: 563 | B73: 318 | C73: 3625 | D73: 673 | E73: 475 | F73: 3621.4 | G73: 2405.2 | H73: 1154 | I73: 3617.6 | S73: 2259.97 | T73: 885 | U73: 3618.2 | V73: 1796.4 | W73: 800 | X73: 3617.8
A74: 579 | B74: 321 | C74: 3625.05 | D74: 693 | E74: 483 | F74: 3621.45 | G74: 2463.15 | H74: 1159 | I74: 3617.65 | S74: 2304.32 | T74: 887 | U74: 3618.25 | V74: 1836.53 | W74: 803 | X74: 3617.85
A75: 595 | B75: 324 | C75: 3625.1 | D75: 713 | E75: 490 | F75: 3621.5 | G75: 2521.1 | H75: 1164 | I75: 3617.7 | S75: 2348.67 | T75: 889 | U75: 3618.3 | V75: 1876.65 | W75: 805 | X75: 3617.9
A76: 610 | B76: 327 | C76: 3625.15 | D76: 735 | E76: 497 | F76: 3621.55 | G76: 2579.55 | H76: 1169 | I76: 3617.75 | S76: 2393.22 | T76: 891 | U76: 3618.35 | V76: 1917.03 | W76: 807 | X76: 3617.95
A77: 624 | B77: 330 | C77: 3625.2 | D77: 758 | E77: 503 | F77: 3621.6 | G77: 2638 | H77: 1174 | I77: 3617.8 | S77: 2437.77 | T77: 893 | U77: 3618.4 | V77: 1957.4 | W77: 810 | X77: 3618
A78: 639 | B78: 332 | C78: 3625.25 | D78: 782 | E78: 508 | F78: 3621.65 | G78: 2695.95 | H78: 1179 | I78: 3617.85 | S78: 2482.52 | T78: 895 | U78: 3618.45 | V78: 1998.03 | W78: 812 | X78: 3618.05
A79: 654 | B79: 334 | C79: 3625.3 | D79: 805 | E79: 512 | F79: 3621.7 | G79: 2755.9 | H79: 1184 | I79: 3617.9 | S79: 2527.27 | T79: 897 | U79: 3618.5 | V79: 2038.65 | W79: 815 | X79: 3618.1
A80: 669 | B80: 337 | C80: 3625.35 | D80: 828 | E80: 517 | F80: 3621.75 | G80: 2815.35 | H80: 1189 | I80: 3617.95 | S80: 2572.02 | T80: 899 | U80: 3618.55 | V80: 2079.28 | W80: 817 | X80: 3618.15
A81: 684 | B81: 340 | C81: 3625.4 | D81: 851 | E81: 522 | F81: 3621.8 | G81: 2874.8 | H81: 1194 | I81: 3618 | S81: 2617 | T81: 901 | U81: =U80+0.05 -> 3618.6 | V81: 2120.4 | W81: 820 | X81: 3618.2
A82: 699 | B82: 343 | C82: 3625.45 | D82: 873 | E82: 526 | F82: 3621.85 | G82: 2934.8 | H82: 1194 | I82: 3618.05 | S82: 2662 | T82: 903 | U82: =U81+0.05 -> 3618.65 | V82: 2161.53 | W82: 822 | X82: 3618.25
A83: 715 | B83: 346 | C83: 3625.5 | D83: 896 | E83: 529 | F83: 3621.9 | G83: 2995 | H83: 1195 | I83: 3618.1 | S83: 2707 | T83: 905 | U83: 3618.7 | V83: 2202.65 | W83: 825 | X83: 3618.3
A84: 729 | B84: 348 | C84: 3625.55 | D84: 919 | E84: 532 | F84: 3621.95 | G84: 3055 | H84: 1195 | I84: 3618.15 | S84: 2752 | T84: 907 | U84: 3618.75 | V84: 2243.65 | W84: 827 | X84: 3618.35
A85: 753 | B85: 350 | C85: 3625.6 | D85: 942 | E85: 535 | F85: 3622 | G85: 3115 | H85: 1196 | I85: 3618.2 | S85: 2798 | T85: 909 | U85: 3618.8 | V85: 2284 | W85: 830 | X85: 3618.4
A86: 767 | B86: 353 | C86: 3625.65 | D86: 971 | E86: 537 | F86: 3622.05 | G86: 3175 | H86: 1196 | I86: 3618.25 | S86: 2843 | T86: 910 | U86: 3618.85 | V86: 2325 | W86: 832 | X86: 3618.45
A87: 781 | B87: 356 | C87: 3625.7 | D87: 999 | E87: 538 | F87: 3622.1 | G87: 3236 | H87: 1197 | I87: 3618.3 | S87: 2889 | T87: 910 | U87: 3618.9 | V87: 2366 | W87: 835 | X87: 3618.5
A88: 799 | B88: 358 | C88: 3625.75 | D88: 1028 | E88: 539 | F88: 3622.15 | G88: 3296 | H88: 1197 | I88: 3618.35 | S88: 2934 | T88: 911 | U88: 3618.95 | V88: 2407 | W88: 837 | X88: 3618.55
A89: 818 | B89: 360 | C89: 3625.8 | D89: 1056 | E89: 541 | F89: 3622.2 | G89: 3357 | H89: 1198 | I89: 3618.4 | S89: 2380 | T89: 911 | U89: 3619 | V89: 2449 | W89: 840 | X89: 3618.6
A90: 842 | B90: 363 | C90: 3625.85 | D90: 1085 | E90: 542 | F90: 3622.25 | G90: 3417 | H90: 1198 | I90: 3618.45 | S90: 3025 | T90: 911 | U90: 3619.05 | V90: 2490 | W90: 842 | X90: 3618.65
A91: 866 | B91: 366 | C91: 3625.9 | D91: 1113 | E91: 544 | F91: 3622.3 | G91: 3479 | H91: 1199 | I91: 3618.5 | S91: 3071 | T91: 912 | U91: 3619.1 | V91: 2532 | W91: 845 | X91: 3618.7
A92: 884 | B92: 368 | C92: 3625.95 | D92: 1142 | E92: 546 | F92: 3622.35 | G92: 3559 | H92: 1199 | I92: 3618.55 | V92: 2573 | W92: 847 | X92: 3618.75
A93: 898 | B93: 371 | C93: 3626 | D93: 1170 | E93: 548 | F93: 3622.4 | G93: 3600 | H93: 1200 | I93: 3618.6 | V93: 2615 | W93: 850 | X93: 3618.8
A94: 918 | B94: 374 | C94: 3626.05 | D94: 1185 | E94: 550 | F94: 3622.45 | G94: 3660 | H94: 1200 | I94: 3618.65 | V94: 2657 | W94: 852 | X94: 3618.85
A95: 938 | B95: 377 | C95: 3626.1 | D95: 1222 | E95: 552 | F95: 3622.5 | G95: 3720 | H95: 1201 | I95: 3618.7 | V95: 2698 | W95: 855 | X95: 3618.9
A96: 956 | B96: 380 | C96: 3626.15 | D96: 1248 | E96: 554 | F96: 3622.55 | G96: 3780 | H96: 1201 | I96: 3618.75 | V96: 2740 | W96: 857 | X96: 3618.95
A97: 974 | B97: 382 | C97: 3626.2 | D97: 1275 | E97: 556 | F97: 3622.6 | G97: 3842 | H97: 1202 | I97: 3618.8 | V97: 2783 | W97: 860 | X97: 3619
A98: 994 | B98: 385 | C98: 3626.25 | D98: 1301 | E98: 558 | F98: 3622.65 | G98: 3902 | H98: 1202 | I98: 3618.85 | V98: 2824 | W98: 862 | X98: 3619.05
A99: 1013 | B99: 387 | C99: 3626.3 | D99: 1327 | E99: 560 | F99: 3622.7 | G99: 3962 | H99: 1203 | I99: 3618.9 | V99: 2866 | W99: 865 | X99: 3619.1
A100: 1032 | B100: 390 | C100: 3626.35 | D100: 1353 | E100: 561 | F100: =F99+0.05 -> 3622.75 | G100: 4022 | H100: 1203 | I100: 3618.95
A101: 1051 | B101: 393 | C101: 3626.4 | D101: 1382 | E101: 563 | F101: 3622.8 | G101: 4084 | H101: 1204 | I101: =I100+0.05 -> 3619
A102: 1070 | B102: 396 | C102: 3626.45 | D102: 1409 | E102: 563 | F102: 3622.85
A103: 1089 | B103: 398 | C103: 3626.5 | D103: 1427 | E103: 564 | F103: 3622.9
A104: 1108 | B104: 401 | C104: 3626.55 | D104: 1472 | E104: 566 | F104: 3622.95
A105: 1127 | B105: 403 | C105: =C104+0.05 -> 3626.6 | D105: 1507 | E105: 568 | F105: 3623
A106: 1145 | B106: 406 | C106: =C105+0.05 -> 3626.65 | D106: 1353 | E106: 569 | F106: 3623.05
A107: 1166 | B107: 409 | C107: 3626.7 | D107: 1564 | E107: 571 | F107: 3623.1
A108: 1186 | B108: 412 | C108: 3626.75 | D108: 1594 | E108: 572 | F108: 3623.15
A109: 1206 | B109: 414 | C109: 3626.8 | D109: 1623 | E109: 574 | F109: 3623.2
A110: 1225 | B110: 417 | C110: 3626.85 | D110: 1652 | E110: 575 | F110: 3623.25
A111: 1247 | B111: 419 | C111: 3626.9 | D111: 1681 | E111: 577 | F111: 3623.3
A112: 1266 | B112: 422 | C112: 3626.95 | D112: 1710 | E112: 578 | F112: 3623.35
A113: 1285 | B113: 424 | C113: 3627 | D113: 1739 | E113: 580 | F113: 3623.4
A114: 1310 | B114: 427 | C114: =C113+0.05 -> 3627.05 | D114: 1768 | E114: 582 | F114: 3623.45
A115: 1334 | B115: 429 | C115: =C114+0.05 -> 3627.1 | D115: 1800 | E115: 585 | F115: 3623.5
A116: 1359 | B116: 432 | C116: 3627.15 | D116: 1830 | E116: 586 | F116: 3623.55
A117: 1383 | B117: 434 | C117: 3627.2 | D117: 1859 | E117: 588 | F117: 3623.6
A118: 1408 | B118: 437 | C118: 3627.25 | D118: 1889 | E118: 590 | F118: 3623.65
A119: 1342 | B119: 439 | C119: 3627.3 | D119: 1918 | E119: 592 | F119: 3623.7
A120: 1457 | B120: 442 | C120: 3627.35 | D120: 1947 | E120: 594 | F120: 3623.75
A121: 1481 | B121: 444 | C121: 3627.4 | D121: 1976 | E121: 596 | F121: 3623.8
A122: 1506 | B122: 447 | C122: =C121+0.05 -> 3627.45 | D122: 2005 | E122: 597 | F122: 3623.85
A123: 1530 | B123: 449 | C123: =C122+0.05 -> 3627.5 | D123: 2034 | E123: 599 | F123: 3623.9
A124: 1550 | B124: 452 | C124: 3627.55 | D124: 2063 | E124: 600 | F124: 3623.95
A125: 1580 | B125: 454 | C125: 3627.6 | D125: 2092 | E125: 601 | F125: 3624
A126: 1605 | B126: 457 | C126: 3627.65
A127: 1629 | B127: 459 | C127: 3627.7
A128: 1654 | B128: 462 | C128: 3627.75
A129: 1678 | B129: 464 | C129: =C128+0.05 -> 3627.8
A130: 1703 | B130: 467 | C130: =C129+0.05 -> 3627.85
A131: 1727 | B131: 469 | C131: =C130+0.05 -> 3627.9
A132: 1752 | B132: 471 | C132: =C131+0.05 -> 3627.95
A133: 1776 | B133: 477 | C133: =C132+0.05 -> 3628
A134: 2280 | B134: 529 | C134: 3629

Sheet Runoff
A1: Monthly natural runoff recorded as diffuse runoff and at USGS streamflow-gaging station on Lake Creek, Montana [Natural runoff in acre-feet]
A3: Year | B3: MAR | C3: APR | D3: MAY | E3: JUN | F3: JUL | G3: AUG | H3: SEP | I3: OCT | J3: Total
A4: 1983
A5: 1984
A6: 1985
A7: 1986
A8: 1987
A9: 1988
A10: 1989
A11: 1990
A12: 1991 | B12: 26 | C12: 487 | D12: 0 | E12: 493 | F12: 11 | G12: 0 | H12: 0 | I12: 0 | J12: 1017
A13: 1992 | B13: 12 | C13: 9 | D13: 0 | E13: 0 | F13: 0 | G13: 0 | H13: 0 | I13: 0 | J13: 21
A14: 1993 | B14: 1600 | C14: 510 | D14: 30 | E14: 242 | F14: 595 | G14: 36 | H14: 0 | I14: 12 | J14: 3025
A15: 1994 | B15: 173 | C15: 45 | D15: 9 | E15: 0 | F15: 0 | G15: 0 | H15: 0 | I15: 0 | J15: 227
A16: 1995 | B16: 8.5 | C16: 24 | D16: 120 | E16: 243 | F16: 3.2 | G16: 0 | H16: 0 | I16: 0 | J16: 398.7
A17: 1996 | B17: 45 | C17: 234 | D17: 111 | E17: 0 | F17: 0 | G17: 0 | H17: 0 | I17: 0 | J17: 390
A18: 1997 | B18: 14 | C18: 16 | D18: 0 | E18: 145 | F18: 453 | G18: 122 | H18: 0 | I18: 0 | J18: 750 | K18: no recorded data; used 1991-2008 mean values | N18: used place holders for programming purposes
A19: 1998 | B19: 14 | C19: 16 | D19: 0 | E19: 145 | F19: 453 | G19: 122 | H19: 0 | I19: 0 | J19: 750
A20: 1999 | B20: 0 | C20: 40 | D20: 24 | E20: 22 | F20: 0 | G20: 4 | H20: 16 | I20: 16 | J20: 122
A21: 2000 | B21: 3.4 | C21: 14 | D21: 6 | E21: 30 | F21: 0 | G21: 0 | H21: 0 | I21: 0 | J21: 53.4
A22: 2001 | B22: 27 | C22: 13 | D22: 0 | E22: 4 | F22: 2.3 | G22: 5 | H22: 0 | I22: 0 | J22: 51.3
A23: 2002 | B23: 0 | C23: 16 | D23: 12 | E23: 547 | F23: 13 | G23: 22 | H23: 0 | I23: 0 | J23: 610
A24: 2003 | B24: 0 | C24: 0.6 | D24: 0.1 | E24: 3.6 | F24: 0 | G24: 0 | H24: 0 | I24: 0 | J24: 4.3
A25: 2004 | B25: 0 | C25: 2.9 | D25: 16 | E25: 3.2 | F25: 0 | G25: 51 | H25: 0 | I25: 0 | J25: 73.1
A26: 2005 | B26: 0 | C26: 14 | D26: 3.5 | E26: 823 | F26: 2.2 | G26: 0 | H26: 42 | I26: 0 | J26: 884.7
A27: 2006 | B27: 0 | C27: 121 | D27: 20 | E27: 2181 | F27: 16 | G27: 81 | H27: 0 | I27: 0 | J27: 2419
A28: 2007 | B28: 553 | C28: 43 | D28: 11 | E28: 0.2 | F28: 0 | G28: 0 | H28: 0 | I28: 0 | J28: 607.2
A29: 2008 | B29: 0 | C29: 41 | D29: 195 | E29: 588 | F29: 13 | G29: 0 | H29: 0 | I29: 0 | J29: 837
A35: average | B35: 144.8176471 | C35: 95.91176471 | D35: 32.8 | E35: 313.2352941 | F35: 65.21764706 | G35: 18.88235294 | H35: 3.411764706 | I35: 1.647058824 | J35: 675.9235294

Sheet Precipitation
A1: Means of monthly precipitation values recorded at NOAA weather stations at Carter 14 W, Power 6 SE, and Great Falls AirportCarter , Montana, 1983-2008 [Monthly precipitation in inches. Annual precipitation for wet and dry years computed as mean annual plus and minus, respectively, one standard deviation. Monthly precipitation values for wet and dry years are defined as the mean monthly plus and minus, respectively, a percentage of the mean monthly where the percentage is the percent difference of the annual standard deviation from the mean annual.]
B4: JAN | C4: FEB | D4: MAR | E4: APR | F4: MAY | G4: JUN | H4: JUL | I4: AUG | J4: SEP | K4: OCT | L4: NOV | M4: DEC | N4: Annual | O4: APR -OCT.
A5: 1983 | B5: 0.07333333333 | C5: 0.1866666667 | D5: 1.396666667 | E5: 0.3 | F5: 1.39 | G5: 2.563333333 | H5: 3.44 | I5: 0.84 | J5: 1.426666667 | K5: 0.63 | L5: 0.9566666667 | M5: 0.57 | N5: 13.77333333 | O5: =SUM(E5:K5) -> 10.59
A6: 1984 | B6: 0.55 | C6: 0.6 | D6: 0.6433333333 | E6: 0.7366666667 | F6: 1.32 | G6: 1.6 | H6: 0.1633333333 | I6: 1.053333333 | J6: 0.8 | K6: 1.273333333 | L6: 0.1866666667 | M6: 0.8266666667 | N6: 9.753333333 | O6: =SUM(E6:K6) -> 6.946666667
A7: 1985 | B7: 0.2166666667 | C7: 0.2366666667 | D7: 0.9033333333 | E7: 0.5 | F7: 2.383333333 | G7: 0.6133333333 | H7: 0.3033333333 | I7: 4.923333333 | J7: 3.633333333 | K7: 1.013333333 | L7: 1.253333333 | M7: 0.4233333333 | N7: 16.40333333 | O7: 13.37
A8: 1986 | B8: 0.4 | C8: 0.84 | D8: 0.1833333333 | E8: 2.086666667 | F8: 1.636666667 | G8: 1.216666667 | H8: 1.096666667 | I8: 1.293333333 | J8: 2.746666667 | K8: 0.6566666667 | L8: 0.5166666667 | M8: 0.26 | N8: 12.93333333 | O8: 10.73333333
A9: 1987 | B9: 0.04 | C9: 0.16 | D9: 1.59 | E9: 0.54 | F9: 2.416666667 | G9: 0.8366666667 | H9: 2.583333333 | I9: 2.28 | J9: 0.83 | K9: 0.01666666667 | L9: 0.25 | M9: 0.1433333333 | N9: 11.68666667 | O9: 9.503333333
A10: 1988 | B10: 0.6133333333 | C10: 0.3366666667 | D10: 0.38 | E10: 0.4533333333 | F10: 1.693333333 | G10: 1.473333333 | H10: 1.276666667 | I10: 0.1533333333 | J10: 2.263333333 | K10: 0.4766666667 | L10: 0.2166666667 | M10: 0.69 | N10: 10.02666667 | O10: 7.79
A11: 1989 | B11: 0.7566666667 | C11: 1.04 | D11: 1.073333333 | E11: 2.16 | F11: 2.01 | G11: 1.833333333 | H11: 2.63 | I11: 4.486666667 | J11: 1.29 | K11: 0.47 | L11: 0.72 | M11: 1.093333333 | N11: 19.56333333 | O11: 14.88
A12: 1990 | B12: 0.2233333333 | C12: 0.1133333333 | D12: 1.446666667 | E12: 0.88 | F12: 2.886666667 | G12: 0.96 | H12: 1.086666667 | I12: 2.623333333 | J12: 0.04333333333 | K12: 0.06 | L12: 0.5 | M12: 0.4833333333 | N12: 11.30666667 | O12: 8.54
A13: 1991 | B13: 0.54 | C13: 0.2966666667 | D13: 1.076666667 | E13: 1.92 | F13: 1.933333333 | G13: 4.483333333 | H13: 0.6 | I13: 0.8433333333 | J13: 0.7 | K13: 0.66 | L13: 0.5733333333 | M13: 0.05333333333 | N13: 13.68 | O13: 11.14
A14: 1992 | B14: 0.3533333333 | C14: 0.1933333333 | D14: 0.3266666667 | E14: 1.17 | F14: 1.646666667 | G14: 2.523333333 | H14: 2.05 | I14: 1.28 | J14: 0.29 | K14: 2.22 | L14: 0.33 | M14: 0.2933333333 | N14: 12.67666667 | O14: 11.18
A15: 1993 | B15: 0.83 | C15: 0.5966666667 | D15: 0.6566666667 | E15: 2.626666667 | F15: 2.266666667 | G15: 2.646666667 | H15: 5.286666667 | I15: 2.863333333 | J15: 1.446666667 | K15: 0.91 | L15: 0.83 | M15: 0.2233333333 | N15: 21.18333333 | O15: 18.04666667
A16: 1994 | B16: 0.2766666667 | C16: 0.3866666667 | D16: 0.3066666667 | E16: 1.59 | F16: 2.14 | G16: 1.66 | H16: 1.053333333 | I16: 0.6266666667 | J16: 0.4666666667 | K16: 1.21 | L16: 0.3866666667 | M16: 0.2466666667 | N16: 10.35 | O16: 8.746666667
A17: 1995 | B17: 0.1466666667 | C17: 0.19 | D17: 0.3633333333 | E17: 1.6 | F17: 2.483333333 | G17: 2.516666667 | H17: 1.896666667 | I17: 0.5133333333 | J17: 1.02 | K17: 0.9633333333 | L17: 0.3633333333 | M17: 0.19 | N17: 12.24666667 | O17: 10.99333333
A18: 1996 | B18: 0.5133333333 | C18: 0.2766666667 | D18: 0.7733333333 | E18: 1.09 | F18: 2.69 | G18: 1.053333333 | H18: 0.2366666667 | I18: 0.56 | J18: 1.373333333 | K18: 0.44 | L18: 0.4433333333 | M18: 1.076666667 | N18: 10.52666667 | O18: 7.443333333
A19: 1997 | B19: 0.2766666667 | C19: 0.3166666667 | D19: 0.5166666667 | E19: 1.156666667 | F19: 2.283333333 | G19: 2.13 | H19: 1.466666667 | I19: 1.226666667 | J19: 0.32 | K19: 0.6733333333 | L19: 0.2133333333 | M19: 0.2233333333 | N19: 10.80333333 | O19: 9.256666667
A20: 1998 | B20: 0.5966666667 | C20: 0.2066666667 | D20: 0.7933333333 | E20: 0.41 | F20: 2.106666667 | G20: 4.266666667 | H20: 2.19 | I20: 1.576666667 | J20: 1.133333333 | K20: 0.6933333333 | L20: 1.036666667 | M20: 0.2 | N20: 15.21 | O20: 12.37666667
A21: 1999 | B21: 0.33 | C21: 0.3566666667 | D21: 0.5866666667 | E21: 1.243333333 | F21: 2.163333333 | G21: 1.936666667 | H21: 0.7033333333 | I21: 2.443333333 | J21: 1.783333333 | K21: 0.8633333333 | L21: 0.4933333333 | M21: 0.05 | N21: 12.95333333 | O21: 11.13666667
A22: 2000 | B22: 0.36 | C22: 0.6833333333 | D22: 0.6633333333 | E22: 0.3466666667 | F22: 2.09 | G22: 1.803333333 | H22: 0.7333333333 | I22: 0.19 | J22: 1.146666667 | K22: 1.313333333 | L22: 0.4733333333 | M22: 0.27 | N22: 10.07333333 | O22: 7.623333333
A23: 2001 | B23: 0.4566666667 | C23: 0.4166666667 | D23: 0.3966666667 | E23: 1.046666667 | F23: 0.3266666667 | G23: 1.73 | H23: 2.136666667 | I23: 0.3633333333 | J23: 1.103333333 | K23: 0.29 | L23: 0.2166666667 | M23: 0.1733333333 | N23: 8.656666667 | O23: 6.996666667
A24: 2002 | B24: 0.2433333333 | C24: 0.2466666667 | D24: 0.6933333333 | E24: 0.4333333333 | F24: 1.623333333 | G24: 5.21 | H24: 0.9133333333 | I24: 2.596666667 | J24: 1.59 | K24: 0.58 | L24: 0.33 | M24: 0.27 | N24: 14.73 | O24: 12.94666667
A25: 2003 | B25: 0.1333333333 | C25: 0.5 | D25: 0.45 | E25: 1.636666667 | F25: 1.856666667 | G25: 1.89 | H25: 0.13 | I25: 1.003333333 | J25: 1.346666667 | K25: 0.6833333333 | L25: 0.2566666667 | M25: 0.2666666667 | N25: 10.15333333 | O25: 8.546666667
A26: 2004 | B26: 0.3466666667 | C26: 0.05333333333 | D26: 0.1933333333 | E26: 1.406666667 | F26: 2.683333333 | G26: 2.516666667 | H26: 0.29 | I26: 2.736666667 | J26: 1.563333333 | K26: 1.093333333 | L26: 0.09666666667 | M26: 0.4133333333 | N26: 13.39333333 | O26: 12.29
A27: 2005 | B27: 0.2733333333 | C27: 0.01666666667 | D27: 1.106666667 | E27: 1.196666667 | F27: 1.293333333 | G27: 5.423333333 | H27: 0.13 | I27: 1.28 | J27: 1.316666667 | K27: 0.74 | L27: 1.253333333 | M27: 0.2333333333 | N27: 14.26333333 | O27: 11.38
A28: 2006 | B28: 0.4766666667 | C28: 0.33 | D28: 1.343333333 | E28: 2.3 | F28: 2.613333333 | G28: 4.16 | H28: 0.39 | I28: 1.03 | J28: 1.36 | K28: 1.26 | L28: 0.3166666667 | M28: 0.61 | N28: 16.19 | O28: 13.11333333
A29: 2007 | B29: 0.1966666667 | C29: 1.13 | D29: 0.1233333333 | E29: 2.13 | F29: 2.246666667 | G29: 1.28 | H29: 0.2766666667 | I29: 0.3033333333 | J29: 1.67 | K29: 0.6733333333 | L29: 0.4233333333 | M29: 0.07 | N29: 10.52333333 | O29: 8.58
A30: 2008 | B30: 0.5266666667 | C30: 0.3366666667 | D30: 0.3866666667 | E30: 1.313333333 | F30: 4.066666667 | G30: 2.83 | H30: 1.686666667 | I30: 1.066666667 | J30: 1.896666667 | K30: 0.3 | L30: 0.6333333333 | M30: 1.16 | N30: 16.20333333 | O30: 13.16
A36: Mean | B36: =AVERAGE(B5:B30) -> 0.375 | C36: 0.3864102564 | D36: 0.7066666667 | E36: 1.241282051 | F36: 2.086538462 | G36: 2.352179487 | H36: 1.336538462 | I36: 1.544487179 | J36: 1.329230769 | K36: 0.7755128205 | L36: 0.5103846154 | M36: 0.4043589744 | N36: 13.04858974 | O36: 10.66576923
A37: Standard deviation | B37: =STDEV(B5:B30) -> 0.2020324506 | C37: 0.2810787522 | D37: 0.4205425068 | E37: 0.6764909965 | F37: 0.6831030381 | G37: 1.328342641 | H37: 1.215833498 | I37: 1.245054552 | J37: 0.7648676328 | K37: 0.4575975353 | L37: 0.3204737145 | M37: 0.3232154689 | N37: 3.078806143 | O37: 6.371289893
A38: Maximum | B38: =MAX(B5:B30) -> 0.83 | C38: 1.13 | D38: 1.59 | E38: 2.626666667 | F38: 4.066666667 | G38: 5.423333333 | H38: 5.286666667 | I38: 4.923333333 | J38: 3.633333333 | K38: 2.22 | L38: 1.253333333 | M38: 1.16 | N38: 21.18333333 | O38: 28.18
A39: Minimum | B39: =MIN(B5:B30) -> 0.04 | C39: 0.01666666667 | D39: 0.1233333333 | E39: 0.3 | F39: 0.24 | G39: 0.59 | H39: 0.11 | I39: 0.1 | J39: 0.02 | K39: 0.02 | L39: 0.09666666667 | M39: 0.05 | N39: 8.656666667 | O39: 1.38
A40: Wet year | B40: 0.4127619923 | C40: 0.4432214769 | D40: 0.7960238538 | E40: 1.45 | F40: 2.46 | G40: 2.79 | H40: 1.58 | I40: 1.88 | J40: 1.61 | K40: 0.93 | L40: 0.5928806769 | M40: 0.4520955 | N40: 15.39 | O40: 12.7
A41: Dry year | B41: 0.2491610846 | C41: 0.2675477538 | D41: 0.4805146077 | E41: 0.88 | F41: 1.49 | G41: 1.68 | H41: 0.95 | I41: 1.13 | J41: 0.97 | K41: 0.56 | L41: 0.3578885538 | M41: 0.2729045 | N41: 9.29 | O41: 7.66
A42: Evap | E42: 4.5 | F42: 5.66 | G42: 6.51 | H42: 8.16 | I42: 7.19 | J42: 4.5 | K42: 3.37 | O42: 39.89
A43: Very wet | E43: 2.026144672 | F43: 3.440224807 | G43: 3.894499307 | H43: 2.204705371 | I43: 2.620453641 | J43: 2.24792175 | K43: 1.294146307 | O43: 17.72809585
M45: Password=flood

Sheet Previous Data
A1: units for input | B1: ComboBox5 | C1: 2 | D1: 2
A2: pool 1 | B2: TextBox 1 | C2: 33 | D2: 50
A3: pool 2 | B3: TextBox 2 | C3: 33 | D3: 50
A4: pool 3 | B4: TextBox 3 | C4: 33 | D4: 50
A5: pool 4a | B5: TextBox 4 | C5: 33 | D5: 50
A6: pool 4b | B6: TextBox 5 | C6: 33 | D6: 50
A7: pool 4c | B7: TextBox 6 | C7: 33 | D7: 50
A8: pool 5 | B8: TextBox 7 | C8: 33 | D8: 50
A9: pool 6 | B9: TextBox 8 | C9: 33 | D9: 50
A10: years to run model | B10: ComboBox6 | C10: 1 | D10: 4
A11: pan coefficient | B11: TextBox 42 | C11: 0.77 | D11: 0.77
A12: Precip method | B12: ComboBox 1 | C12: 1 | D12: 1
A13: Year for precip | B13: ComboBox 7 | C13: -1 | D13: -1
A15: Year 1 | B15: Frame11 | C15: Year 1 | D15: Year 1
A16: Type of precip | B16: ComboBox8 | C16: 0 | D16: 0
A18: April | B18: Textbox 107 | C18: 0.95 | D18: 0.88
A19: May | B19: Textbox 108 | C19: 1.59 | D19: 1.49
A20: June | B20: Textbox 109 | C20: 1.8 | D20: 1.68
A21: July | B21: Textbox 110 | C21: 1.02 | D21: 0.95
A22: August | B22: Textbox 111 | C22: 1.18 | D22: 1.13
A23: September | B23: Textbox 112 | C23: 1.02 | D23: 0.97
A24: October | B24: Textbox 113 | C24: 0.59 | D24: 0.56
A26: Year 2 | B26: Frame10 | C26: Year 2 | D26: Year 2
A27: Type of precip | B27: ComboBox9 | C27: 1 | D27: 0
A28: Carryover | C28: -200 | D28: -200
A29: April | B29: Textbox 98 | C29: 1.24 | D29: 0.88
A30: May | B30: Textbox 99 | C30: 2.09 | D30: 1.49
A31: June | B31: Textbox 100 | C31: 2.35 | D31: 1.68
A32: July | B32: Textbox 101 | C32: 1.34 | D32: 0.95
A33: August | B33: Textbox 102 | C33: 1.54 | D33: 1.13
A34: September | B34: Textbox 103 | C34: 1.33 | D34: 0.56
A35: October | B35: Textbox 104 | C35: 0.77 | D35: 0.56
A37: Year 3 | B37: Frame9 | D37: Year 3
A38: Type of precip | B38: ComboBox10 | C38: -1 | D38: 0
A39: Carryover | C39: -165.6 | D39: -129.5721657
A40: April | B40: Textbox 89 | D40: 0.88
A41: May | B41: Textbox 90 | D41: 1.49
A42: June | B42: Textbox 91 | D42: 1.68
A43: July | B43: Textbox 92 | D43: 0.95
A44: August | B44: Textbox 93 | D44: 1.13
A45: September | B45: Textbox 94 | D45: 0.97
A46: October | B46: Textbox 95 | D46: 0.56
A48: Year 4 | B48: Frame8 | D48: Year 4
A49: Type of precip | B49: ComboBox11 | C49: -1 | D49: 0
A50: Carryover | C50: 0 | D50: -11.43
A51: April | B51: Textbox 80 | D51: 0.88
A52: May | B52: Textbox 81 | D52: 1.49
A53: June | B53: Textbox 82 | D53: 1.68
A54: July | B54: Textbox 83 | D54: 0.95
A55: August | B55: Textbox 84 | D55: 1.13
A56: September | B56: Textbox 85 | D56: 0.97
A57: October | B57: Textbox 86 | D57: 0.56
A59: Year 5 | B59: Frame7 | D59: Year 5
A60: Type of precip | B60: ComboBox12 | C60: -1 | D60: 0
A61: Carryover | C61: 0 | D61: -11.43
A62: April | B62: Textbox 71 | D62: 0.88
A63: May | B63: Textbox 72 | D63: 1.49
A64: June | B64: Textbox 73 | D64: 1.68
A65: July | B65: Textbox 74 | D65: 0.95
A66: August | B66: Textbox 75 | D66: 1.13
A67: September | B67: Textbox 76 | D67: 0.97
A68: October | B68: Textbox 77 | D68: 0.56
A70: pool 1 | B70: StartVolume | C70: 752.4 | D70: 1140
A71: pool 2 | B71: StartVolume | C71: 690.36 | D71: 1046
A72: pool 3 | B72: StartVolume | C72: 1347.72 | D72: 2042
A73: pool 4a | B73: StartVolume | C73: 81.99 | D73: 124.22
A74: pool 4b | B74: StartVolume | C74: 228.32 | D74: 345.94
A75: pool 4c | B75: StartVolume | C75: 446.34 | D75: 676.28
A76: pool 5 | B76: StartVolume | C76: 1013.43 | D76: 1535.5
A77: pool 6 | B77: StartVolume | C77: 945.78 | D77: 1433
A81: P1Y1M1 | B81: Runoff | C81: 6 | D81: 3
A82: P1Y1M2 | B82: Runoff | C82: 48 | D82: 40
A83: P1Y1M3 | B83: Runoff | C83: 67 | D83: 56
A84: P1Y1M4 | B84: Runoff | C84: 9 | D84: 6
A85: P1Y1M5 | B85: Runoff | C85: 18 | D85: 15
A86: P1Y1M6 | B86: Runoff | C86: 9 | D86: 7
A87: P1Y1M7 | B87: Runoff | C87: 0 | D87: 0
C88: 0 | D88: 0
A89: P1Y2M1 | B89: Runoff | C89: 22 | D89: 3
A90: P1Y2M2 | B90: Runoff | C90: 99 | D90: 40
A91: P1Y2M3 | B91: Runoff | C91: 132 | D91: 56
A92: P1Y2M4 | B92: Runoff | C92: 28 | D92: 6
A93: P1Y2M5 | B93: Runoff | C93: 44 | D93: 15
A94: P1Y2M6 | B94: Runoff | C94: 28 | D94: 0
A95: P1Y2M7 | B95: Runoff | C95: 0 | D95: 0
C96: 0 | D96: 0
A97: P1Y3M1 | B97: Runoff | C97: 0 | D97: 3
A98: P1Y3M2 | B98: Runoff | C98: 0 | D98: 40
A99: P1Y3M3 | B99: Runoff | C99: 0 | D99: 56
A100: P1Y3M4 | B100: Runoff | C100: 0 | D100: 6
A101: P1Y3M5 | B101: Runoff | C101: 0 | D101: 15
A102: P1Y3M6 | B102: Runoff | C102: 0 | D102: 7
A103: P1Y3M7 | B103: Runoff | C103: 0 | D103: 0
C104: 0 | D104: 0
A105: P1Y4M1 | B105: Runoff | C105: 0 | D105: 3
A106: P1Y4M2 | B106: Runoff | C106: 0 | D106: 40
A107: P1Y4M3 | B107: Runoff | C107: 0 | D107: 56
A108: P1Y4M4 | B108: Runoff | C108: 0 | D108: 6
A109: P1Y4M5 | B109: Runoff | C109: 0 | D109: 15
A110: P1Y4M6 | B110: Runoff | C110: 0 | D110: 7
A111: P1Y4M7 | B111: Runoff | C111: 0 | D111: 0
C112: 0 | D112: 0
A113: P1Y5M1 | B113: Runoff | C113: 0 | D113: 3
A114: P1Y5M2 | B114: Runoff | C114: 0 | D114: 40
A115: P1Y5M3 | B115: Runoff | C115: 0 | D115: 56
A116: P1Y5M4 | B116: Runoff | C116: 0 | D116: 6
A117: P1Y5M5 | B117: Runoff | C117: 0 | D117: 15
A118: P1Y5M6 | B118: Runoff | C118: 0 | D118: 7
A119: P1Y5M7 | B119: Runoff | C119: 0 | D119: 0
C120: 0 | D120: 0
A121: P1Y1M1 | B121: Pumped | C121: 0 | D121: 0
A122: P1Y1M2 | B122: Pumped | C122: 0 | D122: 0
A123: P1Y1M3 | B123: Pumped | C123: 0 | D123: 0
A124: P1Y1M4 | B124: Pumped | C124: 0 | D124: 0
A125: P1Y1M5 | B125: Pumped | C125: 0 | D125: 0
A126: P1Y1M6 | B126: Pumped | C126: 0 | D126: 0
A127: P1Y1M7 | B127: Pumped | C127: 0 | D127: 0
C128: 0 | D128: 0
A129: P1Y2M1 | B129: Pumped | C129: 0 | D129: 0
A130: P1Y2M2 | B130: Pumped | C130: 0 | D130: 0
A131: P1Y2M3 | B131: Pumped | C131: 0 | D131: 0
A132: P1Y2M4 | B132: Pumped | C132: 0 | D132: 0
A133: P1Y2M5 | B133: Pumped | C133: 0 | D133: 0
A134: P1Y2M6 | B134: Pumped | C134: 0 | D134: 7
A135: P1Y2M7 | B135: Pumped | C135: 0 | D135: 0
C136: 0 | D136: 0
A137: P1Y3M1 | B137: Pumped | C137: 0 | D137: 0
A138: P1Y3M2 | B138: Pumped | C138: 0 | D138: 0
A139: P1Y3M3 | B139: Pumped | C139: 0 | D139: 0
A140: P1Y3M4 | B140: Pumped | C140: 0 | D140: 0
A141: P1Y3M5 | B141: Pumped | C141: 0 | D141: 0
A142: P1Y3M6 | B142: Pumped | C142: 0 | D142: 0
A143: P1Y3M7 | B143: Pumped | C143: 0 | D143: 0
C144: 0 | D144: 0
A145: P1Y4M1 | B145: Pumped | C145: 0 | D145: 0
A146: P1Y4M2 | B146: Pumped | C146: 0 | D146: 0
A147: P1Y4M3 | B147: Pumped | C147: 0 | D147: 0
A148: P1Y4M4 | B148: Pumped | C148: 0 | D148: 0
A149: P1Y4M5 | B149: Pumped | C149: 0 | D149: 0
A150: P1Y4M6 | B150: Pumped | C150: 0 | D150: 0
A151: P1Y4M7 | B151: Pumped | C151: 0 | D151: 0
C152: 0 | D152: 0
A153: P1Y5M1 | B153: Pumped | C153: 0 | D153: 0
A154: P1Y5M2 | B154: Pumped | C154: 0 | D154: 0
A155: P1Y5M3 | B155: Pumped | C155: 0 | D155: 0
A156: P1Y5M4 | B156: Pumped | C156: 0 | D156: 0
A157: P1Y5M5 | B157: Pumped | C157: 0 | D157: 0
A158: P1Y5M6 | B158: Pumped | C158: 0 | D158: 0
A159: P1Y5M7 | B159: Pumped | C159: 0 | D159: 0
C160: 0 | D160: 0
A161: P2Y1M1 | B161: Runoff | C161: 0 | D161: 0
A162: P2Y1M2 | B162: Runoff | C162: 0 | D162: 0
A163: P2Y1M3 | B163: Runoff | C163: 0 | D163: 0
A164: P2Y1M4 | B164: Runoff | C164: 0 | D164: 0
A165: P2Y1M5 | B165: Runoff | C165: 0 | D165: 0
A166: P2Y1M6 | B166: Runoff | C166: 0 | D166: 0
A167: P2Y1M7 | B167: Runoff | C167: 0 | D167: 0
C168: 0 | D168: 0
A169: P2Y2M1 | B169: Runoff | C169: 0 | D169: 0
A170: P2Y2M2 | B170: Runoff | C170: 0 | D170: 0
A171: P2Y2M3 | B171: Runoff | C171: 0 | D171: 0
A172: P2Y2M4 | B172: Runoff | C172: 0 | D172: 0
A173: P2Y2M5 | B173: Runoff | C173: 0 | D173: 0
A174: P2Y2M6 | B174: Runoff | C174: 0 | D174: 0
A175: P2Y2M7 | B175: Runoff | C175: 0 | D175: 0
C176: 0 | D176: 0
A177: P2Y3M1 | B177: Runoff | C177: 0 | D177: 0
A178: P2Y3M2 | B178: Runoff | C178: 0 | D178: 0
A179: P2Y3M3 | B179: Runoff | C179: 0 | D179: 0
A180: P2Y3M4 | B180: Runoff | C180: 0 | D180: 0
A181: P2Y3M5 | B181: Runoff | C181: 0 | D181: 0
A182: P2Y3M6 | B182: Runoff | C182: 0 | D182: 0
A183: P2Y3M7 | B183: Runoff | C183: 0 | D183: 0
C184: 0 | D184: 0
A185: P2Y4M1 | B185: Runoff | C185: 0 | D185: 0
A186: P2Y4M2 | B186: Runoff | C186: 0 | D186: 0
A187: P2Y4M3 | B187: Runoff | C187: 0 | D187: 0
A188: P2Y4M4 | B188: Runoff | C188: 0 | D188: 0
A189: P2Y4M5 | B189: Runoff | C189: 0 | D189: 0
A190: P2Y4M6 | B190: Runoff | C190: 0 | D190: 0
A191: P2Y4M7 | B191: Runoff | C191: 0 | D191: 0
C192: 0 | D192: 0
A193: P2Y5M1 | B193: Runoff | C193: 0 | D193: 0
A194: P2Y5M2 | B194: Runoff | C194: 0 | D194: 0
A195: P2Y5M3 | B195: Runoff | C195: 0 | D195: 0
A196: P2Y5M4 | B196: Runoff | C196: 0 | D196: 0
A197: P2Y5M5 | B197: Runoff | C197: 0 | D197: 0
A198: P2Y5M6 | B198: Runoff | C198: 0 | D198: 0
A199: P2Y5M7 | B199: Runoff | C199: 0 | D199: 0
C200: 0 | D200: 0
A201: P2Y1M1 | B201: Pumped | C201: 0 | D201: 0
A202: P2Y1M2 | B202: Pumped | C202: 0 | D202: 0
A203: P2Y1M3 | B203: Pumped | C203: 0 | D203: 0
A204: P2Y1M4 | B204: Pumped | C204: 0 | D204: 0
A205: P2Y1M5 | B205: Pumped | C205: 0 | D205: 0
A206: P2Y1M6 | B206: Pumped | C206: 0 | D206: 0
A207: P2Y1M7 | B207: Pumped | C207: 0 | D207: 0
C208: 0 | D208: 0
A209: P2Y2M1 | B209: Pumped | C209: 0 | D209: 0
A210: P2Y2M2 | B210: Pumped | C210: 0 | D210: 0
... 512 more rows

Sheet Help
